Body Name,Organisational Unit,Business Unit No.,Business Unit Description,Expense Code,Expense Code Description,GL Date,Document No.,Invoice No.,Invoiced Value,Supplier Name,Address Book No.,Proclass Details Level 1,Thomson Classification Description
SHEFFIELD CITY COUNCIL        ,RESOURCES                     ,1,SCC BALANCE SHEET             ,1780,ERROR SUSPENSE CARE FIRST     ,12/04/2017,4185023,30254,"3,792.80",REDACTED PERSONAL DATA,352082,,ADOPTION & FOSTERING          
SHEFFIELD CITY COUNCIL        ,COMMUNITIES                   ,47046,LOC REFORM & COM VOICES: DOLS ,8440,FEE EXPENSES                  ,03/04/2017,4180679,ERS INVOICE153185        ,610.00,DR WAN IZWIN WAN HASSAN                 ,553448,,DOCTORS                       
SHEFFIELD CITY COUNCIL        ,COMMUNITIES                   ,47046,LOC REFORM & COM VOICES: DOLS ,8440,FEE EXPENSES                  ,03/04/2017,4180680,ERS INVOICE153188        ,920.00,JYC CARE LTD                            ,636768,,ASSESSORS                     
SHEFFIELD CITY COUNCIL        ,COMMUNITIES                   ,47046,LOC REFORM & COM VOICES: DOLS ,8440,FEE EXPENSES                  ,03/04/2017,4180681,ERS INVOICE153189        ,"1,280.00",DR LESZEK PABJAN INDEPENDENT PSYCHIATRIS,618575,,PSYCHIATRISTS                 
SHEFFIELD CITY COUNCIL        ,COMMUNITIES                   ,47046,LOC REFORM & COM VOICES: DOLS ,8440,FEE EXPENSES                  ,03/04/2017,4180682,ERS INVOICE153192        ,"1,280.00",DR LESZEK PABJAN INDEPENDENT PSYCHIATRIS,618575,,PSYCHIATRISTS                 
SHEFFIELD CITY COUNCIL        ,COMMUNITIES                   ,49030,PRIVATE RENTED SOLUTIONS      ,9120,OTHER AGENCIES                ,03/04/2017,4181170,ERS INVOICE153196        ,459.00,KATHERINE JONES                         ,578555,,LETTING AGENTS                
SHEFFIELD CITY COUNCIL        ,COMMUNITIES                   ,24138,PARK HILL LEGAL FEES          ,8440,FEE EXPENSES                  ,03/04/2017,4136481,1526276,"29,310.00",GELDARDS LLP                            ,634975,,SOLICITORS                    
SHEFFIELD CITY COUNCIL        ,COMMUNITIES                   ,42034,PURCHASING LEARNING DISABILITI,4080,FEES & CHARGES                ,03/04/2017,4173333,1862506,"5,258.40",INTERSERVE HEALTHCARE LTD               ,637260,,INSURANCE - HEALTH            
SHEFFIELD CITY COUNCIL        ,COMMUNITIES                   ,49725,DOMESTIC ABUSE                ,8620,COMPUTER SOFTWARE LICENCES    ,03/04/2017,4175556,206909,"7,000.00",PALOMA SYSTEMS LTD                      ,528089,,COMPUTER SYSTEMS & SOFTWARE (S
SHEFFIELD CITY COUNCIL        ,COMMUNITIES                   ,49487,EXECUTIVE                     ,8350,MISCELLANEOUS EXPENSES        ,03/04/2017,4176076,35191,433.33,THE WATER MANAGEMENT SOCIETY            ,404027,,WATER TREATMENT EQUIPMENT & SE
SHEFFIELD CITY COUNCIL        ,COMMUNITIES                   ,47048,SASP SPEND PLAN               ,8440,FEE EXPENSES                  ,03/04/2017,4176239,2875,"1,095.00",EDGE TRAINING AND CONSULTANCY LTD       ,633076,,TRAINING CONSULTANTS          
SHEFFIELD CITY COUNCIL        ,PLACE                         ,25070,TREE TEAM                     ,6370,GROUNDS MTCE AND ARBORICULTURE,03/04/2017,4176657,3680,"1,600.00",ANDERSON TREE CARE LTD                  ,316084,,TREE WORK & FORESTRY SERVICES 
SHEFFIELD CITY COUNCIL        ,COMMUNITIES                   ,47046,LOC REFORM & COM VOICES: DOLS ,8390,STATIONERY                    ,03/04/2017,4176921,6901050927,280.05,LYRECO UK LTD                           ,593417,,OFFICE FURNITURE & EQUIPMENT  
SHEFFIELD CITY COUNCIL        ,COMMUNITIES                   ,47046,LOC REFORM & COM VOICES: DOLS ,8440,FEE EXPENSES                  ,03/04/2017,4178456,35301,"1,120.00",ACTION FIRST RECRUITMENT LTD            ,639157,,ASSESSORS                     
SHEFFIELD CITY COUNCIL        ,COMMUNITIES                   ,47046,LOC REFORM & COM VOICES: DOLS ,8440,FEE EXPENSES                  ,03/04/2017,4178457,35300,"1,400.00",ACTION FIRST RECRUITMENT LTD            ,639157,,ASSESSORS                     
SHEFFIELD CITY COUNCIL        ,COMMUNITIES                   ,47046,LOC REFORM & COM VOICES: DOLS ,8440,FEE EXPENSES                  ,03/04/2017,4178459,35299,840.00,ACTION FIRST RECRUITMENT LTD            ,639157,,ASSESSORS                     
SHEFFIELD CITY COUNCIL        ,COMMUNITIES                   ,47046,LOC REFORM & COM VOICES: DOLS ,8440,FEE EXPENSES                  ,03/04/2017,4178460,35298,"2,240.00",ACTION FIRST RECRUITMENT LTD            ,639157,,ASSESSORS                     
SHEFFIELD CITY COUNCIL        ,PLACE                         ,25076,SHEFFIELD HOMES TREES         ,6370,GROUNDS MTCE AND ARBORICULTURE,03/04/2017,4178464,1296,"1,080.00",TINSLEY TREE PROJECT                    ,387262,,COMMUNITY PROJECTS            
SHEFFIELD CITY COUNCIL        ,COMMUNITIES                   ,47046,LOC REFORM & COM VOICES: DOLS ,8440,FEE EXPENSES                  ,03/04/2017,4178471,35297,"2,520.00",ACTION FIRST RECRUITMENT LTD            ,639157,,ASSESSORS                     
SHEFFIELD CITY COUNCIL        ,CYPF                          ,39260,SERVICE MANAGEMENT            ,7140,PUBLIC TRANSPORT COSTS        ,03/04/2017,4178876,01/7469004               ,367.00,CLARITY TRAVEL MANAGEMENT               ,202987,,TRAVEL AGENTS & HOLIDAY COMPAN
SHEFFIELD CITY COUNCIL        ,COMMUNITIES                   ,47046,LOC REFORM & COM VOICES: DOLS ,8440,FEE EXPENSES                  ,03/04/2017,4179148,35296,840.00,ACTION FIRST RECRUITMENT LTD            ,639157,,ASSESSORS                     
SHEFFIELD CITY COUNCIL        ,COMMUNITIES                   ,47046,LOC REFORM & COM VOICES: DOLS ,8440,FEE EXPENSES                  ,03/04/2017,4179149,35295,"1,120.00",ACTION FIRST RECRUITMENT LTD            ,639157,,ASSESSORS                     
SHEFFIELD CITY COUNCIL        ,COMMUNITIES                   ,49028,SUPPORTED & TEMP ACCOM TEAM   ,6210,BED & BREAKFAST PAYMENTS      ,03/04/2017,4179150,HOM050                   ,488.97,EARL MARSHALL GUEST HOUSE LTD           ,391589,,GUEST HOUSES                  
SHEFFIELD CITY COUNCIL        ,COMMUNITIES                   ,49316,CITY & WEST SHEFFIELD         ,8010,EQUIPMENT PURCHASE AND REPAIR ,03/04/2017,4180265,INV025446                ,"1,048.00",MARMAX PRODUCTS LTD                     ,508468,,GARDEN & PATIO FURNITURE MNFRS
SHEFFIELD CITY COUNCIL        ,COMMUNITIES                   ,49320,OLDER PERSON INDEPENDENT LIVIN,6190,WATER SERVICES                ,03/04/2017,4181088,5981423675,"2,691.49",SEVERN TRENT WATER LTD                  ,388402,,WATER COMPANIES               
SHEFFIELD CITY COUNCIL        ,CYPF                          ,32046,OUTDOOR EDUCATION             ,6190,WATER SERVICES                ,03/04/2017,4181130,5981615343,255.77,SEVERN TRENT WATER LTD                  ,388402,,WATER COMPANIES               
SHEFFIELD CITY COUNCIL        ,PLACE                         ,24062,MGMT OF SRQ PROPERTIES        ,6160,GAS                           ,03/04/2017,4181134,561649708/0038           ,305.18,SOUTHERN ELECTRIC                       ,318926,,ELECTRICITY COMPANIES         
SHEFFIELD CITY COUNCIL        ,PLACE                         ,24062,MGMT OF SRQ PROPERTIES        ,6160,GAS                           ,03/04/2017,4181137,561649708/0030           ,305.18,SOUTHERN ELECTRIC                       ,318926,,ELECTRICITY COMPANIES         
SHEFFIELD CITY COUNCIL        ,PLACE                         ,24062,MGMT OF SRQ PROPERTIES        ,6160,GAS                           ,03/04/2017,4181139,561649708/0031           ,305.18,SOUTHERN ELECTRIC                       ,318926,,ELECTRICITY COMPANIES         
SHEFFIELD CITY COUNCIL        ,PLACE                         ,24062,MGMT OF SRQ PROPERTIES        ,6160,GAS                           ,03/04/2017,4181140,561649708/0039           ,305.18,SOUTHERN ELECTRIC                       ,318926,,ELECTRICITY COMPANIES         
SHEFFIELD CITY COUNCIL        ,RESOURCES                     ,15217,STADIA TECHNOLOGY PARK        ,6150,ELECTRICITY                   ,03/04/2017,4181144,601495303,"1,372.63",BRITISH GAS BUSINESS                    ,466029,,GAS COMPANIES                 
SHEFFIELD CITY COUNCIL        ,RESOURCES                     ,15217,STADIA TECHNOLOGY PARK        ,6150,ELECTRICITY                   ,03/04/2017,4181145,600883493,"1,254.00",BRITISH GAS BUSINESS                    ,466029,,GAS COMPANIES                 
SHEFFIELD CITY COUNCIL        ,PLACE                         ,21307,WINTER GARDEN                 ,6170,COMBINED HEAT AND POWER       ,03/04/2017,4181147,2113VEOL242101           ,"2,161.66",SWITCH2 ENERGY LIMITED                  ,546534,,INSTRUMENTATION ENGINEERS     
SHEFFIELD CITY COUNCIL        ,RESOURCES                     ,16002,BIS TELECOMMS                 ,8600,MOBILE TELEPHONES - INVOICE   ,03/04/2017,4181148,JY63582                  ,550.00,VODAFONE LTD (CORPORATE)                ,209321,,MOBILE PHONES                 
SHEFFIELD CITY COUNCIL        ,RESOURCES                     ,16002,BIS TELECOMMS                 ,8600,MOBILE TELEPHONES - INVOICE   ,03/04/2017,4181152,83409104,"32,056.41",VODAFONE LTD (CORPORATE)                ,209321,,MOBILE PHONES                 
SHEFFIELD CITY COUNCIL        ,COMMUNITIES                   ,42034,PURCHASING LEARNING DISABILITI,9180,OTHER CLIENT EXPENDITURE      ,03/04/2017,4180685,J1841404 020417          ,522.00,REDACTED PERSONAL DATA,617131,Unclassified Non Trade,OUT OF SCOPE FOR SIC MONITORIN
SHEFFIELD CITY COUNCIL        ,COMMUNITIES                   ,42034,PURCHASING LEARNING DISABILITI,9180,OTHER CLIENT EXPENDITURE      ,03/04/2017,4180686,J1841405 020417          ,811.00,REDACTED PERSONAL DATA,332448,,HOME CARE SERVICES            
SHEFFIELD CITY COUNCIL        ,COMMUNITIES                   ,42034,PURCHASING LEARNING DISABILITI,9180,OTHER CLIENT EXPENDITURE      ,03/04/2017,4180687,J1841406 020417          ,261.00,REDACTED PERSONAL DATA,328030,,HOME CARE SERVICES            
SHEFFIELD CITY COUNCIL        ,COMMUNITIES                   ,42034,PURCHASING LEARNING DISABILITI,9180,OTHER CLIENT EXPENDITURE      ,03/04/2017,4180688,J1841407 020417          ,261.00,REDACTED PERSONAL DATA,206291,,HOME CARE SERVICES            
SHEFFIELD CITY COUNCIL        ,COMMUNITIES                   ,42034,PURCHASING LEARNING DISABILITI,9180,OTHER CLIENT EXPENDITURE      ,03/04/2017,4180689,J1841408 020417          ,550.00,REDACTED PERSONAL DATA,328070,,HOME CARE SERVICES            
SHEFFIELD CITY COUNCIL        ,COMMUNITIES                   ,42034,PURCHASING LEARNING DISABILITI,9180,OTHER CLIENT EXPENDITURE      ,03/04/2017,4180690,J1841409 020417          ,261.00,REDACTED PERSONAL DATA,202619,,HOME CARE SERVICES            
SHEFFIELD CITY COUNCIL        ,COMMUNITIES                   ,42034,PURCHASING LEARNING DISABILITI,9180,OTHER CLIENT EXPENDITURE      ,03/04/2017,4180691,J1841410 020417          ,797.00,REDACTED PERSONAL DATA,408112,,HOME CARE SERVICES            
SHEFFIELD CITY COUNCIL        ,COMMUNITIES                   ,42034,PURCHASING LEARNING DISABILITI,9180,OTHER CLIENT EXPENDITURE      ,03/04/2017,4180692,J1841411 020417          ,261.00,REDACTED PERSONAL DATA,328091,,HOME CARE SERVICES            
SHEFFIELD CITY COUNCIL        ,COMMUNITIES                   ,44001,PURCHASING                    ,9180,OTHER CLIENT EXPENDITURE      ,03/04/2017,4180692,J1841411 020417          ,261.00,REDACTED PERSONAL DATA,328091,,HOME CARE SERVICES            
SHEFFIELD CITY COUNCIL        ,COMMUNITIES                   ,42034,PURCHASING LEARNING DISABILITI,9180,OTHER CLIENT EXPENDITURE      ,03/04/2017,4180693,J1841412 020417          ,261.00,REDACTED PERSONAL DATA,328101,,HOME CARE SERVICES            
SHEFFIELD CITY COUNCIL        ,COMMUNITIES                   ,42034,PURCHASING LEARNING DISABILITI,9180,OTHER CLIENT EXPENDITURE      ,03/04/2017,4180694,J1841413 020417          ,550.00,REDACTED PERSONAL DATA,369406,,HOME CARE SERVICES            
SHEFFIELD CITY COUNCIL        ,COMMUNITIES                   ,42034,PURCHASING LEARNING DISABILITI,9180,OTHER CLIENT EXPENDITURE      ,03/04/2017,4180695,J1841414 020417          ,275.00,REDACTED PERSONAL DATA,208144,,HOME CARE SERVICES            
SHEFFIELD CITY COUNCIL        ,COMMUNITIES                   ,42034,PURCHASING LEARNING DISABILITI,9180,OTHER CLIENT EXPENDITURE      ,03/04/2017,4180696,J1841415 020417          ,522.00,REDACTED PERSONAL DATA,332870,,HOME CARE SERVICES            
SHEFFIELD CITY COUNCIL        ,COMMUNITIES                   ,42034,PURCHASING LEARNING DISABILITI,9180,OTHER CLIENT EXPENDITURE      ,03/04/2017,4180697,J1841416 020417          ,261.00,REDACTED PERSONAL DATA,333307,,HOME CARE SERVICES            
SHEFFIELD CITY COUNCIL        ,COMMUNITIES                   ,42034,PURCHASING LEARNING DISABILITI,9180,OTHER CLIENT EXPENDITURE      ,03/04/2017,4180698,J1841417 020417          ,261.00,REDACTED PERSONAL DATA,333400,,HOME CARE SERVICES            
SHEFFIELD CITY COUNCIL        ,COMMUNITIES                   ,42034,PURCHASING LEARNING DISABILITI,9180,OTHER CLIENT EXPENDITURE      ,03/04/2017,4180699,J1841418 020417          ,261.00,REDACTED PERSONAL DATA,501798,Unclassified Non Trade,OUT OF SCOPE FOR SIC MONITORIN
SHEFFIELD CITY COUNCIL        ,COMMUNITIES                   ,42034,PURCHASING LEARNING DISABILITI,9180,OTHER CLIENT EXPENDITURE      ,03/04/2017,4180700,J1841419 020417          ,261.00,REDACTED PERSONAL DATA,328095,,HOME CARE SERVICES            
SHEFFIELD CITY COUNCIL        ,COMMUNITIES                   ,42034,PURCHASING LEARNING DISABILITI,9180,OTHER CLIENT EXPENDITURE      ,03/04/2017,4180701,J1841420 020417          ,261.00,REDACTED PERSONAL DATA,553116,Unclassified Non Trade,OUT OF SCOPE FOR SIC MONITORIN
SHEFFIELD CITY COUNCIL        ,COMMUNITIES                   ,42034,PURCHASING LEARNING DISABILITI,9180,RESPITE                       ,03/04/2017,4180940,J1841353 260317          ,257.16,REDACTED PERSONAL DATA,369406,,HOME CARE SERVICES            
SHEFFIELD CITY COUNCIL        ,COMMUNITIES                   ,42034,PURCHASING LEARNING DISABILITI,9180,RESPITE                       ,03/04/2017,4180956,J1846318 260317          ,257.16,REDACTED PERSONAL DATA,329204,,HOME CARE SERVICES            
SHEFFIELD CITY COUNCIL        ,COMMUNITIES                   ,44001,PURCHASING                    ,9180,RESPITE                       ,03/04/2017,4180964,J1847309 260317          ,257.16,REDACTED PERSONAL DATA,328101,,HOME CARE SERVICES            
SHEFFIELD CITY COUNCIL        ,COMMUNITIES                   ,44001,PURCHASING                    ,4260,DIRECT PAYMENTS               ,03/04/2017,4180872,J1847326                 ,676.88,REDACTED PERSONAL DATA,442238,Social Community Care,CAREFIRST DIRECT PAYMENTS     
SHEFFIELD CITY COUNCIL        ,COMMUNITIES                   ,42034,PURCHASING LEARNING DISABILITI,9190,DIRECT PAYMENTS               ,03/04/2017,4180873,J1847326                 ,"4,832.80",PEOPLEPLUS GROUP LIMITED                ,547567,,TRAINING SERVICES             
SHEFFIELD CITY COUNCIL        ,COMMUNITIES                   ,46039,ADULT SOCIAL CARE PURCHASING  ,9190,DIRECT PAYMENTS               ,03/04/2017,4180875,J1847326                 ,"1,232.00",REDACTED PERSONAL DATA,556890,Social Community Care,CAREFIRST DIRECT PAYMENTS     
SHEFFIELD CITY COUNCIL        ,COMMUNITIES                   ,46039,ADULT SOCIAL CARE PURCHASING  ,9190,DIRECT PAYMENTS               ,03/04/2017,4180876,J1847326                 ,"1,399.00",REDACTED PERSONAL DATA,562178,Social Community Care,CAREFIRST DIRECT PAYMENTS     
SHEFFIELD CITY COUNCIL        ,COMMUNITIES                   ,46039,ADULT SOCIAL CARE PURCHASING  ,9190,DIRECT PAYMENTS               ,03/04/2017,4180877,J1847326                 ,480.00,REDACTED PERSONAL DATA,581547,Social Community Care,CAREFIRST DIRECT PAYMENTS     
SHEFFIELD CITY COUNCIL        ,COMMUNITIES                   ,42034,PURCHASING LEARNING DISABILITI,9190,DIRECT PAYMENTS               ,03/04/2017,4180878,J1847326                 ,292.29,REDACTED PERSONAL DATA,584228,Social Community Care,CAREFIRST DIRECT PAYMENTS     
SHEFFIELD CITY COUNCIL        ,COMMUNITIES                   ,46039,ADULT SOCIAL CARE PURCHASING  ,9190,DIRECT PAYMENTS               ,03/04/2017,4180879,J1847326                 ,427.04,REDACTED PERSONAL DATA,620238,Social Community Care,CAREFIRST DIRECT PAYMENTS     
SHEFFIELD CITY COUNCIL        ,COMMUNITIES                   ,44001,PURCHASING                    ,9190,DIRECT PAYMENTS               ,03/04/2017,4180880,J1847326                 ,"1,118.71",RETHINK MHREC                           ,631266,Social Community Care,CAREFIRST DIRECT PAYMENTS     
SHEFFIELD CITY COUNCIL        ,COMMUNITIES                   ,44001,PURCHASING                    ,9190,DIRECT PAYMENTS               ,03/04/2017,4180881,J1847326                 ,"2,217.42",SHEFFIELD HEALTH & SOCIAL CARE          ,631483,Unclassified Non Trade,OUT OF SCOPE FOR SIC MONITORIN
SHEFFIELD CITY COUNCIL        ,COMMUNITIES                   ,44001,PURCHASING                    ,9190,DIRECT PAYMENTS               ,03/04/2017,4180882,J1847326                 ,"1,142.25",SHEFFIELD MIND - USE 556296             ,631484,Unclassified Non Trade,OUT OF SCOPE FOR SIC MONITORIN
SHEFFIELD CITY COUNCIL        ,COMMUNITIES                   ,44001,PURCHASING                    ,9190,DIRECT PAYMENTS               ,03/04/2017,4180883,J1847326                 ,"2,256.36",SOUTH YORKSHIRE HOUSING ASSOCIATION     ,631485,Unclassified Non Trade,OUT OF SCOPE FOR SIC MONITORIN
SHEFFIELD CITY COUNCIL        ,COMMUNITIES                   ,46039,ADULT SOCIAL CARE PURCHASING  ,9190,DIRECT PAYMENTS               ,03/04/2017,4180884,J1847326                 ,"2,675.53",REDACTED PERSONAL DATA,643837,Social Community Care,CAREFIRST DIRECT PAYMENTS     
SHEFFIELD CITY COUNCIL        ,COMMUNITIES                   ,46039,ADULT SOCIAL CARE PURCHASING  ,4260,DIRECT PAYMENTS               ,03/04/2017,4180998,J1848147                 ,"1,133.38",REDACTED PERSONAL DATA,562178,Social Community Care,CAREFIRST DIRECT PAYMENTS     
SHEFFIELD CITY COUNCIL        ,CYPF                          ,39148,DIRECT PAYMENTS               ,9190,DIRECT PAYMENTS               ,03/04/2017,4181000,J1848147                 ,"2,146.44",REDACTED PERSONAL DATA,573070,Social Community Care,CAREFIRST DIRECT PAYMENTS     
SHEFFIELD CITY COUNCIL        ,COMMUNITIES                   ,46039,ADULT SOCIAL CARE PURCHASING  ,9190,BLOCK CONTRACT                ,03/04/2017,4180886,J1730999 131116          ,"16,492.00",REDACTED PERSONAL DATA,571404,Social Community Care,CAREFIRST DIRECT PAYMENTS     
SHEFFIELD CITY COUNCIL        ,COMMUNITIES                   ,42034,PURCHASING LEARNING DISABILITI,9240,SUPPORTED LIVING CARE         ,03/04/2017,4180887,3146749,827.08,MENCAP HOMECARE                         ,361858,,CHARITIES & VOLUNTARY ORGANISA
SHEFFIELD CITY COUNCIL        ,COMMUNITIES                   ,42034,PURCHASING LEARNING DISABILITI,9190,CITYWIDE SPOT                 ,03/04/2017,4180888,3146750,905.64,MENCAP HOMECARE                         ,361858,,CHARITIES & VOLUNTARY ORGANISA
SHEFFIELD CITY COUNCIL        ,COMMUNITIES                   ,42034,PURCHASING LEARNING DISABILITI,9240,FUNDED NURSING CARE (IN       ,03/04/2017,4180889,3146752,"1,787.32",MENCAP HOMECARE                         ,361858,,CHARITIES & VOLUNTARY ORGANISA
SHEFFIELD CITY COUNCIL        ,COMMUNITIES                   ,42034,PURCHASING LEARNING DISABILITI,9240,SUPPORTED LIVING CARE         ,03/04/2017,4180889,3146752,"2,915.04",MENCAP HOMECARE                         ,361858,,CHARITIES & VOLUNTARY ORGANISA
SHEFFIELD CITY COUNCIL        ,COMMUNITIES                   ,42034,PURCHASING LEARNING DISABILITI,9240,FUNDED NURSING CARE (IN       ,03/04/2017,4180890,3146753,933.80,MENCAP HOMECARE                         ,361858,,CHARITIES & VOLUNTARY ORGANISA
SHEFFIELD CITY COUNCIL        ,COMMUNITIES                   ,42034,PURCHASING LEARNING DISABILITI,9240,SUPPORTED LIVING CARE         ,03/04/2017,4180891,3146754,"2,264.76",MENCAP HOMECARE                         ,361858,,CHARITIES & VOLUNTARY ORGANISA
SHEFFIELD CITY COUNCIL        ,COMMUNITIES                   ,42034,PURCHASING LEARNING DISABILITI,9240,FUNDED NURSING CARE (IN       ,03/04/2017,4180892,3146755,"1,614.12",MENCAP HOMECARE                         ,361858,,CHARITIES & VOLUNTARY ORGANISA
SHEFFIELD CITY COUNCIL        ,COMMUNITIES                   ,42034,PURCHASING LEARNING DISABILITI,9240,SUPPORTED LIVING CARE         ,03/04/2017,4180893,3146762,613.64,MENCAP HOMECARE                         ,361858,,CHARITIES & VOLUNTARY ORGANISA
SHEFFIELD CITY COUNCIL        ,COMMUNITIES                   ,42034,PURCHASING LEARNING DISABILITI,9240,SUPPORTED LIVING CARE         ,03/04/2017,4180894,3146763,"2,065.84",MENCAP HOMECARE                         ,361858,,CHARITIES & VOLUNTARY ORGANISA
SHEFFIELD CITY COUNCIL        ,COMMUNITIES                   ,42034,PURCHASING LEARNING DISABILITI,9190,CITYWIDE SPOT                 ,03/04/2017,4180895,3146764,853.76,MENCAP HOMECARE                         ,361858,,CHARITIES & VOLUNTARY ORGANISA
SHEFFIELD CITY COUNCIL        ,COMMUNITIES                   ,42034,PURCHASING LEARNING DISABILITI,9240,SUPPORTED LIVING CARE         ,03/04/2017,4180896,3146765,"1,762.60",MENCAP HOMECARE                         ,361858,,CHARITIES & VOLUNTARY ORGANISA
SHEFFIELD CITY COUNCIL        ,COMMUNITIES                   ,42034,PURCHASING LEARNING DISABILITI,9250,INDEPENDENT DAY CARE          ,03/04/2017,4180897,6612,288.00,SHEFFIELD MENCAP                        ,431582,,SOCIAL SERVICES               
SHEFFIELD CITY COUNCIL        ,COMMUNITIES                   ,42034,PURCHASING LEARNING DISABILITI,9240,SUPPORTED LIVING CARE         ,03/04/2017,4180898,727LFEB                  ,"69,549.53",COMMUNITY INTEGRATED CARE               ,620703,,SOCIAL SERVICES               
SHEFFIELD CITY COUNCIL        ,COMMUNITIES                   ,42034,PURCHASING LEARNING DISABILITI,9240,SUPPORTED LIVING CARE         ,03/04/2017,4180899,786LMAR                  ,"40,391.30",COMMUNITY INTEGRATED CARE               ,620703,,SOCIAL SERVICES               
SHEFFIELD CITY COUNCIL        ,COMMUNITIES                   ,42034,PURCHASING LEARNING DISABILITI,9190,CITYWIDE SPOT                 ,03/04/2017,4180900,9209,"6,442.52",REDACTED PERSONAL DATA,518159,,HOME CARE SERVICES            
SHEFFIELD CITY COUNCIL        ,COMMUNITIES                   ,42034,PURCHASING LEARNING DISABILITI,9190,FUNDED HOME SUPPORT           ,03/04/2017,4180900,9209,"1,701.96",REDACTED PERSONAL DATA,518159,,HOME CARE SERVICES            
SHEFFIELD CITY COUNCIL        ,COMMUNITIES                   ,42034,PURCHASING LEARNING DISABILITI,9240,SUPPORTED LIVING CARE         ,03/04/2017,4180901,3137240,"2,065.84",MENCAP HOMECARE                         ,361858,,CHARITIES & VOLUNTARY ORGANISA
SHEFFIELD CITY COUNCIL        ,COMMUNITIES                   ,42034,PURCHASING LEARNING DISABILITI,9240,SUPPORTED LIVING CARE         ,03/04/2017,4180902,3146766,"1,280.64",MENCAP HOMECARE                         ,361858,,CHARITIES & VOLUNTARY ORGANISA
SHEFFIELD CITY COUNCIL        ,COMMUNITIES                   ,42034,PURCHASING LEARNING DISABILITI,9240,SUPPORTED LIVING CARE         ,03/04/2017,4180903,3146767,"6,115.92",MENCAP HOMECARE                         ,361858,,CHARITIES & VOLUNTARY ORGANISA
SHEFFIELD CITY COUNCIL        ,COMMUNITIES                   ,42034,PURCHASING LEARNING DISABILITI,9240,FUNDED NURSING CARE (IN       ,03/04/2017,4180903,3146767,997.52,MENCAP HOMECARE                         ,361858,,CHARITIES & VOLUNTARY ORGANISA
SHEFFIELD CITY COUNCIL        ,COMMUNITIES                   ,42034,PURCHASING LEARNING DISABILITI,9190,CITYWIDE SPOT                 ,03/04/2017,4180904,3146768,853.76,MENCAP HOMECARE                         ,361858,,CHARITIES & VOLUNTARY ORGANISA
SHEFFIELD CITY COUNCIL        ,COMMUNITIES                   ,42034,PURCHASING LEARNING DISABILITI,9190,CITYWIDE SPOT                 ,03/04/2017,4180905,3146770,853.76,MENCAP HOMECARE                         ,361858,,CHARITIES & VOLUNTARY ORGANISA
SHEFFIELD CITY COUNCIL        ,COMMUNITIES                   ,42034,PURCHASING LEARNING DISABILITI,9240,SUPPORTED LIVING CARE         ,03/04/2017,4180906,3146781,853.76,MENCAP HOMECARE                         ,361858,,CHARITIES & VOLUNTARY ORGANISA
SHEFFIELD CITY COUNCIL        ,COMMUNITIES                   ,42034,PURCHASING LEARNING DISABILITI,9240,SUPPORTED LIVING CARE         ,03/04/2017,4180907,3146784,853.76,MENCAP HOMECARE                         ,361858,,CHARITIES & VOLUNTARY ORGANISA
SHEFFIELD CITY COUNCIL        ,COMMUNITIES                   ,42034,PURCHASING LEARNING DISABILITI,9240,FUNDED NURSING CARE (IN       ,03/04/2017,4180908,3146785,"1,698.44",MENCAP HOMECARE                         ,361858,,CHARITIES & VOLUNTARY ORGANISA
SHEFFIELD CITY COUNCIL        ,COMMUNITIES                   ,42034,PURCHASING LEARNING DISABILITI,9240,SUPPORTED LIVING CARE         ,03/04/2017,4180909,3146786,"2,207.12",MENCAP HOMECARE                         ,361858,,CHARITIES & VOLUNTARY ORGANISA
SHEFFIELD CITY COUNCIL        ,COMMUNITIES                   ,42034,PURCHASING LEARNING DISABILITI,9240,SUPPORTED LIVING CARE         ,03/04/2017,4180910,3146787,"2,344.80",MENCAP HOMECARE                         ,361858,,CHARITIES & VOLUNTARY ORGANISA
SHEFFIELD CITY COUNCIL        ,COMMUNITIES                   ,42034,PURCHASING LEARNING DISABILITI,9240,SUPPORTED LIVING CARE         ,03/04/2017,4180911,3146788,746.92,MENCAP HOMECARE                         ,361858,,CHARITIES & VOLUNTARY ORGANISA
SHEFFIELD CITY COUNCIL        ,COMMUNITIES                   ,42034,PURCHASING LEARNING DISABILITI,9190,CITYWIDE SPOT                 ,03/04/2017,4180912,3137241,853.76,MENCAP HOMECARE                         ,361858,,CHARITIES & VOLUNTARY ORGANISA
SHEFFIELD CITY COUNCIL        ,COMMUNITIES                   ,42034,PURCHASING LEARNING DISABILITI,9240,FUNDED NURSING CARE (IN       ,03/04/2017,4180913,14879,"3,736.14",DIMENSIONS (UK) LTD (NEW ERA HOUSING)   ,505956,,"HOUSING ASSOCIATIONS, SOCIETIE"
SHEFFIELD CITY COUNCIL        ,COMMUNITIES                   ,42034,PURCHASING LEARNING DISABILITI,9240,SUPPORTED LIVING CARE         ,03/04/2017,4180913,14879,"34,966.33",DIMENSIONS (UK) LTD (NEW ERA HOUSING)   ,505956,,"HOUSING ASSOCIATIONS, SOCIETIE"
SHEFFIELD CITY COUNCIL        ,COMMUNITIES                   ,42034,PURCHASING LEARNING DISABILITI,9240,SUPPORTED LIVING CARE         ,03/04/2017,4180914,14945,"34,034.10",DIMENSIONS (UK) LTD (NEW ERA HOUSING)   ,505956,,"HOUSING ASSOCIATIONS, SOCIETIE"
SHEFFIELD CITY COUNCIL        ,COMMUNITIES                   ,42034,PURCHASING LEARNING DISABILITI,9240,FUNDED NURSING CARE (IN       ,03/04/2017,4180914,14945,"3,377.38",DIMENSIONS (UK) LTD (NEW ERA HOUSING)   ,505956,,"HOUSING ASSOCIATIONS, SOCIETIE"
SHEFFIELD CITY COUNCIL        ,COMMUNITIES                   ,42034,PURCHASING LEARNING DISABILITI,9240,SUPPORTED LIVING CARE         ,03/04/2017,4180915,3137242,"1,762.60",MENCAP HOMECARE                         ,361858,,CHARITIES & VOLUNTARY ORGANISA
SHEFFIELD CITY COUNCIL        ,COMMUNITIES                   ,42034,PURCHASING LEARNING DISABILITI,9240,SUPPORTED LIVING CARE         ,03/04/2017,4180916,3137243,"1,280.64",MENCAP HOMECARE                         ,361858,,CHARITIES & VOLUNTARY ORGANISA
SHEFFIELD CITY COUNCIL        ,COMMUNITIES                   ,42034,PURCHASING LEARNING DISABILITI,9240,FUNDED NURSING CARE (IN       ,03/04/2017,4180917,3146745,"2,801.40",MENCAP HOMECARE                         ,361858,,CHARITIES & VOLUNTARY ORGANISA
SHEFFIELD CITY COUNCIL        ,COMMUNITIES                   ,42034,PURCHASING LEARNING DISABILITI,9240,SUPPORTED LIVING CARE         ,03/04/2017,4180918,3146746,933.80,MENCAP HOMECARE                         ,361858,,CHARITIES & VOLUNTARY ORGANISA
SHEFFIELD CITY COUNCIL        ,COMMUNITIES                   ,46039,ADULT SOCIAL CARE PURCHASING  ,9240,SUPPORTED LIVING CARE         ,03/04/2017,4180919,3146747,453.56,MENCAP HOMECARE                         ,361858,,CHARITIES & VOLUNTARY ORGANISA
SHEFFIELD CITY COUNCIL        ,COMMUNITIES                   ,42034,PURCHASING LEARNING DISABILITI,9240,SUPPORTED LIVING CARE         ,03/04/2017,4180920,3146748,"1,205.80",MENCAP HOMECARE                         ,361858,,CHARITIES & VOLUNTARY ORGANISA
SHEFFIELD CITY COUNCIL        ,COMMUNITIES                   ,42034,PURCHASING LEARNING DISABILITI,9240,SUPPORTED LIVING CARE         ,03/04/2017,4181002,3146756,"4,449.44",MENCAP HOMECARE                         ,361858,,CHARITIES & VOLUNTARY ORGANISA
SHEFFIELD CITY COUNCIL        ,COMMUNITIES                   ,42034,PURCHASING LEARNING DISABILITI,9240,FUNDED NURSING CARE (IN       ,03/04/2017,4181002,3146756,"1,787.20",MENCAP HOMECARE                         ,361858,,CHARITIES & VOLUNTARY ORGANISA
SHEFFIELD CITY COUNCIL        ,COMMUNITIES                   ,42034,PURCHASING LEARNING DISABILITI,9240,SUPPORTED LIVING CARE         ,03/04/2017,4181003,3146776,453.56,MENCAP HOMECARE                         ,361858,,CHARITIES & VOLUNTARY ORGANISA
SHEFFIELD CITY COUNCIL        ,COMMUNITIES                   ,42034,PURCHASING LEARNING DISABILITI,9240,SUPPORTED LIVING CARE         ,03/04/2017,4181004,3146777,426.88,MENCAP HOMECARE                         ,361858,,CHARITIES & VOLUNTARY ORGANISA
SHEFFIELD CITY COUNCIL        ,COMMUNITIES                   ,42034,PURCHASING LEARNING DISABILITI,9240,SUPPORTED LIVING CARE         ,03/04/2017,4181005,3146778,"2,888.04",MENCAP HOMECARE                         ,361858,,CHARITIES & VOLUNTARY ORGANISA
SHEFFIELD CITY COUNCIL        ,COMMUNITIES                   ,42034,PURCHASING LEARNING DISABILITI,9240,SUPPORTED LIVING CARE         ,03/04/2017,4181006,3146779,747.04,MENCAP HOMECARE                         ,361858,,CHARITIES & VOLUNTARY ORGANISA
SHEFFIELD CITY COUNCIL        ,COMMUNITIES                   ,42034,PURCHASING LEARNING DISABILITI,9240,SUPPORTED LIVING CARE         ,03/04/2017,4181007,3146780,"1,027.20",MENCAP HOMECARE                         ,361858,,CHARITIES & VOLUNTARY ORGANISA
SHEFFIELD CITY COUNCIL        ,COMMUNITIES                   ,42034,PURCHASING LEARNING DISABILITI,9240,FUNDED NURSING CARE (IN       ,03/04/2017,4181008,3146789,280.12,MENCAP HOMECARE                         ,361858,,CHARITIES & VOLUNTARY ORGANISA
SHEFFIELD CITY COUNCIL        ,COMMUNITIES                   ,42034,PURCHASING LEARNING DISABILITI,9240,SUPPORTED LIVING CARE         ,03/04/2017,4181009,RR003643                 ,"3,022.56",SANCTUARY HOMECARE                      ,583116,,HOME CARE SERVICES            
SHEFFIELD CITY COUNCIL        ,COMMUNITIES                   ,42034,PURCHASING LEARNING DISABILITI,9240,FUNDED NURSING CARE (IN       ,03/04/2017,4181009,RR003643                 ,"1,626.80",SANCTUARY HOMECARE                      ,583116,,HOME CARE SERVICES            
SHEFFIELD CITY COUNCIL        ,COMMUNITIES                   ,42034,PURCHASING LEARNING DISABILITI,9240,SUPPORTED LIVING CARE         ,03/04/2017,4181011,3146791,853.76,MENCAP HOMECARE                         ,361858,,CHARITIES & VOLUNTARY ORGANISA
SHEFFIELD CITY COUNCIL        ,COMMUNITIES                   ,42034,PURCHASING LEARNING DISABILITI,9240,SUPPORTED LIVING CARE         ,03/04/2017,4181012,3146792,"7,220.72",MENCAP HOMECARE                         ,361858,,CHARITIES & VOLUNTARY ORGANISA
SHEFFIELD CITY COUNCIL        ,COMMUNITIES                   ,42034,PURCHASING LEARNING DISABILITI,9240,FUNDED NURSING CARE (IN       ,03/04/2017,4181013,3146793,"2,140.92",MENCAP HOMECARE                         ,361858,,CHARITIES & VOLUNTARY ORGANISA
SHEFFIELD CITY COUNCIL        ,COMMUNITIES                   ,42034,PURCHASING LEARNING DISABILITI,9240,SUPPORTED LIVING CARE         ,03/04/2017,4181014,3146757,"5,416.04",MENCAP HOMECARE                         ,361858,,CHARITIES & VOLUNTARY ORGANISA
SHEFFIELD CITY COUNCIL        ,COMMUNITIES                   ,42034,PURCHASING LEARNING DISABILITI,9240,SUPPORTED LIVING CARE         ,03/04/2017,4181015,3146794,"1,568.68",MENCAP HOMECARE                         ,361858,,CHARITIES & VOLUNTARY ORGANISA
SHEFFIELD CITY COUNCIL        ,COMMUNITIES                   ,42034,PURCHASING LEARNING DISABILITI,9240,FUNDED NURSING CARE (IN       ,03/04/2017,4181016,3146795,"1,067.20",MENCAP HOMECARE                         ,361858,,CHARITIES & VOLUNTARY ORGANISA
SHEFFIELD CITY COUNCIL        ,COMMUNITIES                   ,42034,PURCHASING LEARNING DISABILITI,9240,SUPPORTED LIVING CARE         ,03/04/2017,4181017,3146796,"3,302.20",MENCAP HOMECARE                         ,361858,,CHARITIES & VOLUNTARY ORGANISA
SHEFFIELD CITY COUNCIL        ,COMMUNITIES                   ,42034,PURCHASING LEARNING DISABILITI,9240,SUPPORTED LIVING CARE         ,03/04/2017,4181018,3146797,853.76,MENCAP HOMECARE                         ,361858,,CHARITIES & VOLUNTARY ORGANISA
SHEFFIELD CITY COUNCIL        ,COMMUNITIES                   ,42034,PURCHASING LEARNING DISABILITI,9240,SUPPORTED LIVING CARE         ,03/04/2017,4181019,3146798,"1,560.48",MENCAP HOMECARE                         ,361858,,CHARITIES & VOLUNTARY ORGANISA
SHEFFIELD CITY COUNCIL        ,COMMUNITIES                   ,42034,PURCHASING LEARNING DISABILITI,9240,FUNDED NURSING CARE (IN       ,03/04/2017,4181019,3146798,"1,000.20",MENCAP HOMECARE                         ,361858,,CHARITIES & VOLUNTARY ORGANISA
SHEFFIELD CITY COUNCIL        ,COMMUNITIES                   ,42034,PURCHASING LEARNING DISABILITI,9240,SUPPORTED LIVING CARE         ,03/04/2017,4181020,3146799,426.88,MENCAP HOMECARE                         ,361858,,CHARITIES & VOLUNTARY ORGANISA
SHEFFIELD CITY COUNCIL        ,COMMUNITIES                   ,42034,PURCHASING LEARNING DISABILITI,9240,SUPPORTED LIVING CARE         ,03/04/2017,4181021,3146800,767.32,MENCAP HOMECARE                         ,361858,,CHARITIES & VOLUNTARY ORGANISA
SHEFFIELD CITY COUNCIL        ,COMMUNITIES                   ,42034,PURCHASING LEARNING DISABILITI,9240,SUPPORTED LIVING CARE         ,03/04/2017,4181022,3146802,"1,905.56",MENCAP HOMECARE                         ,361858,,CHARITIES & VOLUNTARY ORGANISA
SHEFFIELD CITY COUNCIL        ,COMMUNITIES                   ,42034,PURCHASING LEARNING DISABILITI,9240,SUPPORTED LIVING CARE         ,03/04/2017,4181023,3146803,323.36,MENCAP HOMECARE                         ,361858,,CHARITIES & VOLUNTARY ORGANISA
SHEFFIELD CITY COUNCIL        ,COMMUNITIES                   ,42034,PURCHASING LEARNING DISABILITI,9240,SUPPORTED LIVING CARE         ,03/04/2017,4181025,3146761,933.80,MENCAP HOMECARE                         ,361858,,CHARITIES & VOLUNTARY ORGANISA
SHEFFIELD CITY COUNCIL        ,COMMUNITIES                   ,42034,PURCHASING LEARNING DISABILITI,9240,SUPPORTED LIVING CARE         ,03/04/2017,4181026,3146806,705.20,MENCAP HOMECARE                         ,361858,,CHARITIES & VOLUNTARY ORGANISA
SHEFFIELD CITY COUNCIL        ,COMMUNITIES                   ,42034,PURCHASING LEARNING DISABILITI,9240,SUPPORTED LIVING CARE         ,03/04/2017,4181027,3146807,"2,771.68",MENCAP HOMECARE                         ,361858,,CHARITIES & VOLUNTARY ORGANISA
SHEFFIELD CITY COUNCIL        ,COMMUNITIES                   ,42034,PURCHASING LEARNING DISABILITI,9240,SUPPORTED LIVING CARE         ,03/04/2017,4181028,3146808,"1,651.88",MENCAP HOMECARE                         ,361858,,CHARITIES & VOLUNTARY ORGANISA
SHEFFIELD CITY COUNCIL        ,COMMUNITIES                   ,42034,PURCHASING LEARNING DISABILITI,9240,SUPPORTED LIVING CARE         ,03/04/2017,4181029,3146809,693.68,MENCAP HOMECARE                         ,361858,,CHARITIES & VOLUNTARY ORGANISA
SHEFFIELD CITY COUNCIL        ,COMMUNITIES                   ,42034,PURCHASING LEARNING DISABILITI,9240,SUPPORTED LIVING CARE         ,03/04/2017,4181030,3146812,614.60,MENCAP HOMECARE                         ,361858,,CHARITIES & VOLUNTARY ORGANISA
SHEFFIELD CITY COUNCIL        ,COMMUNITIES                   ,42034,PURCHASING LEARNING DISABILITI,9240,SUPPORTED LIVING CARE         ,03/04/2017,4181031,3146813,"3,532.08",MENCAP HOMECARE                         ,361858,,CHARITIES & VOLUNTARY ORGANISA
SHEFFIELD CITY COUNCIL        ,COMMUNITIES                   ,42034,PURCHASING LEARNING DISABILITI,9240,SUPPORTED LIVING CARE         ,03/04/2017,4181032,3146814,640.32,MENCAP HOMECARE                         ,361858,,CHARITIES & VOLUNTARY ORGANISA
SHEFFIELD CITY COUNCIL        ,COMMUNITIES                   ,42034,PURCHASING LEARNING DISABILITI,9190,CITYWIDE SPOT                 ,03/04/2017,4181033,29719,300.00,SPECTRUM SOCIAL CARE LTD                ,328608,,EMPLOYMENT & RECRUITMENT AGENC
SHEFFIELD CITY COUNCIL        ,COMMUNITIES                   ,44001,PURCHASING                    ,9240,SUPPORTED LIVING CARE         ,03/04/2017,4181034,4002317,"2,440.80",SANCTUARY HOMECARE                      ,583116,,HOME CARE SERVICES            
SHEFFIELD CITY COUNCIL        ,COMMUNITIES                   ,42034,PURCHASING LEARNING DISABILITI,9240,SUPPORTED LIVING CARE         ,03/04/2017,4181035,AE/13/365106             ,"1,445.48",H F TRUST LIMITED                       ,362078,,CHARITIES & VOLUNTARY ORGANISA
SHEFFIELD CITY COUNCIL        ,COMMUNITIES                   ,42034,PURCHASING LEARNING DISABILITI,9240,FUNDED NURSING CARE (IN       ,03/04/2017,4181035,AE/13/365106             ,442.52,H F TRUST LIMITED                       ,362078,,CHARITIES & VOLUNTARY ORGANISA
SHEFFIELD CITY COUNCIL        ,COMMUNITIES                   ,42034,PURCHASING LEARNING DISABILITI,9190,CITYWIDE SPOT                 ,03/04/2017,4181036,3146769,"2,065.84",MENCAP HOMECARE                         ,361858,,CHARITIES & VOLUNTARY ORGANISA
SHEFFIELD CITY COUNCIL        ,COMMUNITIES                   ,42034,PURCHASING LEARNING DISABILITI,9240,SUPPORTED LIVING CARE         ,03/04/2017,4181037,AE/13/365107             ,590.00,H F TRUST LIMITED                       ,362078,,CHARITIES & VOLUNTARY ORGANISA
SHEFFIELD CITY COUNCIL        ,COMMUNITIES                   ,42034,PURCHASING LEARNING DISABILITI,9240,SUPPORTED LIVING CARE         ,03/04/2017,4181038,AE/13/365698             ,"3,480.88",H F TRUST LIMITED                       ,362078,,CHARITIES & VOLUNTARY ORGANISA
SHEFFIELD CITY COUNCIL        ,COMMUNITIES                   ,42034,PURCHASING LEARNING DISABILITI,9240,SUPPORTED LIVING CARE         ,03/04/2017,4181039,AE/13/365699             ,"1,566.00",H F TRUST LIMITED                       ,362078,,CHARITIES & VOLUNTARY ORGANISA
SHEFFIELD CITY COUNCIL        ,COMMUNITIES                   ,42034,PURCHASING LEARNING DISABILITI,9240,SUPPORTED LIVING CARE         ,03/04/2017,4181040,AE/13/365700             ,"4,271.36",H F TRUST LIMITED                       ,362078,,CHARITIES & VOLUNTARY ORGANISA
SHEFFIELD CITY COUNCIL        ,COMMUNITIES                   ,42034,PURCHASING LEARNING DISABILITI,9240,SUPPORTED LIVING CARE         ,03/04/2017,4181041,AE/13/365701             ,"1,682.00",H F TRUST LIMITED                       ,362078,,CHARITIES & VOLUNTARY ORGANISA
SHEFFIELD CITY COUNCIL        ,COMMUNITIES                   ,42034,PURCHASING LEARNING DISABILITI,9240,SUPPORTED LIVING CARE         ,03/04/2017,4181042,AE/13/365702             ,"1,118.52",H F TRUST LIMITED                       ,362078,,CHARITIES & VOLUNTARY ORGANISA
SHEFFIELD CITY COUNCIL        ,COMMUNITIES                   ,42034,PURCHASING LEARNING DISABILITI,9240,SUPPORTED LIVING CARE         ,03/04/2017,4181043,AE/13/365703             ,442.52,H F TRUST LIMITED                       ,362078,,CHARITIES & VOLUNTARY ORGANISA
SHEFFIELD CITY COUNCIL        ,COMMUNITIES                   ,42034,PURCHASING LEARNING DISABILITI,9240,SUPPORTED LIVING CARE         ,03/04/2017,4181045,AE/13/365705             ,"1,622.52",H F TRUST LIMITED                       ,362078,,CHARITIES & VOLUNTARY ORGANISA
SHEFFIELD CITY COUNCIL        ,COMMUNITIES                   ,42034,PURCHASING LEARNING DISABILITI,9240,FUNDED NURSING CARE (IN       ,03/04/2017,4181046,AE/13/365707             ,"2,219.88",H F TRUST LIMITED                       ,362078,,CHARITIES & VOLUNTARY ORGANISA
SHEFFIELD CITY COUNCIL        ,COMMUNITIES                   ,42034,PURCHASING LEARNING DISABILITI,9240,SUPPORTED LIVING CARE         ,03/04/2017,4181046,AE/13/365707             ,"2,470.36",H F TRUST LIMITED                       ,362078,,CHARITIES & VOLUNTARY ORGANISA
SHEFFIELD CITY COUNCIL        ,COMMUNITIES                   ,42034,PURCHASING LEARNING DISABILITI,9190,FUNDED HOME SUPPORT           ,03/04/2017,4181047,3146771,"1,120.56",MENCAP HOMECARE                         ,361858,,CHARITIES & VOLUNTARY ORGANISA
SHEFFIELD CITY COUNCIL        ,COMMUNITIES                   ,42034,PURCHASING LEARNING DISABILITI,9240,SUPPORTED LIVING CARE         ,03/04/2017,4181048,AE/13/365708             ,907.48,H F TRUST LIMITED                       ,362078,,CHARITIES & VOLUNTARY ORGANISA
SHEFFIELD CITY COUNCIL        ,COMMUNITIES                   ,42034,PURCHASING LEARNING DISABILITI,9240,SUPPORTED LIVING CARE         ,03/04/2017,4181049,AE/13/365709             ,"3,017.60",H F TRUST LIMITED                       ,362078,,CHARITIES & VOLUNTARY ORGANISA
SHEFFIELD CITY COUNCIL        ,COMMUNITIES                   ,42034,PURCHASING LEARNING DISABILITI,9240,SUPPORTED LIVING CARE         ,03/04/2017,4181050,AE/13/365710             ,"4,100.24",H F TRUST LIMITED                       ,362078,,CHARITIES & VOLUNTARY ORGANISA
SHEFFIELD CITY COUNCIL        ,COMMUNITIES                   ,42034,PURCHASING LEARNING DISABILITI,9240,SUPPORTED LIVING CARE         ,03/04/2017,4181051,AE/13/365711             ,"3,038.36",H F TRUST LIMITED                       ,362078,,CHARITIES & VOLUNTARY ORGANISA
SHEFFIELD CITY COUNCIL        ,COMMUNITIES                   ,42034,PURCHASING LEARNING DISABILITI,9240,SUPPORTED LIVING CARE         ,03/04/2017,4181052,AE/13/365712             ,"3,194.60",H F TRUST LIMITED                       ,362078,,CHARITIES & VOLUNTARY ORGANISA
SHEFFIELD CITY COUNCIL        ,COMMUNITIES                   ,42034,PURCHASING LEARNING DISABILITI,9240,SUPPORTED LIVING CARE         ,03/04/2017,4181053,AE/13/365713             ,"2,991.44",H F TRUST LIMITED                       ,362078,,CHARITIES & VOLUNTARY ORGANISA
SHEFFIELD CITY COUNCIL        ,COMMUNITIES                   ,42034,PURCHASING LEARNING DISABILITI,9240,SUPPORTED LIVING CARE         ,03/04/2017,4181054,AE/13/365714             ,"1,507.52",H F TRUST LIMITED                       ,362078,,CHARITIES & VOLUNTARY ORGANISA
SHEFFIELD CITY COUNCIL        ,COMMUNITIES                   ,42034,PURCHASING LEARNING DISABILITI,9240,SUPPORTED LIVING CARE         ,03/04/2017,4181055,AE/13/365715             ,"2,507.36",H F TRUST LIMITED                       ,362078,,CHARITIES & VOLUNTARY ORGANISA
SHEFFIELD CITY COUNCIL        ,COMMUNITIES                   ,42034,PURCHASING LEARNING DISABILITI,9240,SUPPORTED LIVING CARE         ,03/04/2017,4181056,AE/13/365716             ,290.00,H F TRUST LIMITED                       ,362078,,CHARITIES & VOLUNTARY ORGANISA
SHEFFIELD CITY COUNCIL        ,COMMUNITIES                   ,42034,PURCHASING LEARNING DISABILITI,9240,SUPPORTED LIVING CARE         ,03/04/2017,4181057,AE/13/365717             ,"1,290.52",H F TRUST LIMITED                       ,362078,,CHARITIES & VOLUNTARY ORGANISA
SHEFFIELD CITY COUNCIL        ,COMMUNITIES                   ,42034,PURCHASING LEARNING DISABILITI,9240,SUPPORTED LIVING CARE         ,03/04/2017,4181058,3146772,853.76,MENCAP HOMECARE                         ,361858,,CHARITIES & VOLUNTARY ORGANISA
SHEFFIELD CITY COUNCIL        ,COMMUNITIES                   ,42034,PURCHASING LEARNING DISABILITI,9240,SUPPORTED LIVING CARE         ,03/04/2017,4181059,AE/13/365718             ,"4,636.72",H F TRUST LIMITED                       ,362078,,CHARITIES & VOLUNTARY ORGANISA
SHEFFIELD CITY COUNCIL        ,COMMUNITIES                   ,42034,PURCHASING LEARNING DISABILITI,9240,FUNDED NURSING CARE (IN       ,03/04/2017,4181059,AE/13/365718             ,"1,019.80",H F TRUST LIMITED                       ,362078,,CHARITIES & VOLUNTARY ORGANISA
SHEFFIELD CITY COUNCIL        ,COMMUNITIES                   ,42034,PURCHASING LEARNING DISABILITI,9240,FUNDED NURSING CARE (IN       ,03/04/2017,4181060,AE/13/365719             ,"3,573.26",H F TRUST LIMITED                       ,362078,,CHARITIES & VOLUNTARY ORGANISA
SHEFFIELD CITY COUNCIL        ,COMMUNITIES                   ,42034,PURCHASING LEARNING DISABILITI,9240,SUPPORTED LIVING CARE         ,03/04/2017,4181060,AE/13/365719             ,"3,573.26",H F TRUST LIMITED                       ,362078,,CHARITIES & VOLUNTARY ORGANISA
SHEFFIELD CITY COUNCIL        ,COMMUNITIES                   ,42034,PURCHASING LEARNING DISABILITI,9240,SUPPORTED LIVING CARE         ,03/04/2017,4181061,AE/13/365720             ,"1,675.60",H F TRUST LIMITED                       ,362078,,CHARITIES & VOLUNTARY ORGANISA
SHEFFIELD CITY COUNCIL        ,COMMUNITIES                   ,42034,PURCHASING LEARNING DISABILITI,9240,SUPPORTED LIVING CARE         ,03/04/2017,4181062,AE/13/365721             ,"2,752.12",H F TRUST LIMITED                       ,362078,,CHARITIES & VOLUNTARY ORGANISA
SHEFFIELD CITY COUNCIL        ,COMMUNITIES                   ,42034,PURCHASING LEARNING DISABILITI,9240,SUPPORTED LIVING CARE         ,03/04/2017,4181063,AE/13/365722             ,"1,752.76",H F TRUST LIMITED                       ,362078,,CHARITIES & VOLUNTARY ORGANISA
SHEFFIELD CITY COUNCIL        ,COMMUNITIES                   ,42034,PURCHASING LEARNING DISABILITI,9240,SUPPORTED LIVING CARE         ,03/04/2017,4181064,AE/13/365723             ,"4,522.48",H F TRUST LIMITED                       ,362078,,CHARITIES & VOLUNTARY ORGANISA
SHEFFIELD CITY COUNCIL        ,COMMUNITIES                   ,42034,PURCHASING LEARNING DISABILITI,9240,FUNDED NURSING CARE (IN       ,03/04/2017,4181064,AE/13/365723             ,"1,445.52",H F TRUST LIMITED                       ,362078,,CHARITIES & VOLUNTARY ORGANISA
SHEFFIELD CITY COUNCIL        ,COMMUNITIES                   ,42034,PURCHASING LEARNING DISABILITI,9240,SUPPORTED LIVING CARE         ,03/04/2017,4181065,AE/13/365724             ,"2,035.36",H F TRUST LIMITED                       ,362078,,CHARITIES & VOLUNTARY ORGANISA
SHEFFIELD CITY COUNCIL        ,COMMUNITIES                   ,42034,PURCHASING LEARNING DISABILITI,9240,SUPPORTED LIVING CARE         ,03/04/2017,4181066,AE/13/365725             ,696.00,H F TRUST LIMITED                       ,362078,,CHARITIES & VOLUNTARY ORGANISA
SHEFFIELD CITY COUNCIL        ,COMMUNITIES                   ,42034,PURCHASING LEARNING DISABILITI,9190,CITYWIDE SPOT                 ,03/04/2017,4181067,AE/13/366115             ,928.00,H F TRUST LIMITED                       ,362078,,CHARITIES & VOLUNTARY ORGANISA
SHEFFIELD CITY COUNCIL        ,COMMUNITIES                   ,42034,PURCHASING LEARNING DISABILITI,9240,SUPPORTED LIVING CARE         ,03/04/2017,4181068,AE/13/366116             ,"2,065.00",H F TRUST LIMITED                       ,362078,,CHARITIES & VOLUNTARY ORGANISA
SHEFFIELD CITY COUNCIL        ,COMMUNITIES                   ,42034,PURCHASING LEARNING DISABILITI,9240,SUPPORTED LIVING CARE         ,03/04/2017,4181069,3146773,"1,400.60",MENCAP HOMECARE                         ,361858,,CHARITIES & VOLUNTARY ORGANISA
SHEFFIELD CITY COUNCIL        ,COMMUNITIES                   ,42034,PURCHASING LEARNING DISABILITI,9240,SUPPORTED LIVING CARE         ,03/04/2017,4181070,AE/13/366117             ,928.00,H F TRUST LIMITED                       ,362078,,CHARITIES & VOLUNTARY ORGANISA
SHEFFIELD CITY COUNCIL        ,COMMUNITIES                   ,42034,PURCHASING LEARNING DISABILITI,9240,SUPPORTED LIVING CARE         ,03/04/2017,4181071,AE/13/366118             ,"3,194.60",H F TRUST LIMITED                       ,362078,,CHARITIES & VOLUNTARY ORGANISA
SHEFFIELD CITY COUNCIL        ,COMMUNITIES                   ,42034,PURCHASING LEARNING DISABILITI,9240,FUNDED NURSING CARE (IN       ,03/04/2017,4181073,AE/13/366835             ,354.00,H F TRUST LIMITED                       ,362078,,CHARITIES & VOLUNTARY ORGANISA
SHEFFIELD CITY COUNCIL        ,COMMUNITIES                   ,42034,PURCHASING LEARNING DISABILITI,9240,SUPPORTED LIVING CARE         ,03/04/2017,4181074,3146774,426.88,MENCAP HOMECARE                         ,361858,,CHARITIES & VOLUNTARY ORGANISA
SHEFFIELD CITY COUNCIL        ,COMMUNITIES                   ,42034,PURCHASING LEARNING DISABILITI,9240,FUNDED NURSING CARE (IN       ,03/04/2017,4181075,3146775,"1,654.16",MENCAP HOMECARE                         ,361858,,CHARITIES & VOLUNTARY ORGANISA
SHEFFIELD CITY COUNCIL        ,COMMUNITIES                   ,42034,PURCHASING LEARNING DISABILITI,9240,SUPPORTED LIVING CARE         ,03/04/2017,4181075,3146775,747.04,MENCAP HOMECARE                         ,361858,,CHARITIES & VOLUNTARY ORGANISA
SHEFFIELD CITY COUNCIL        ,CYPF                          ,39147,PREVENTION & SUPPORT - CDT    ,9270,CARELEAVERS INDEPENDENT LIVING,03/04/2017,4180707,230717528,"1,196.68",R M S PAYROLL MANAGEMENT LTD            ,478856,,PAYROLL SERVICES              
SHEFFIELD CITY COUNCIL        ,CYPF                          ,39285,CONTACT CONTRACTS             ,9280,CONTACT                       ,03/04/2017,4180713,28099,388.80,CREWS SUPPORT SERVICES LTD              ,301604,,NURSING AGENCIES              
SHEFFIELD CITY COUNCIL        ,CYPF                          ,39285,CONTACT CONTRACTS             ,9280,CONTACT                       ,03/04/2017,4180717,28103,340.76,CREWS SUPPORT SERVICES LTD              ,301604,,NURSING AGENCIES              
SHEFFIELD CITY COUNCIL        ,CYPF                          ,39285,CONTACT CONTRACTS             ,9280,CONTACT                       ,03/04/2017,4180725,28116,257.78,CREWS SUPPORT SERVICES LTD              ,301604,,NURSING AGENCIES              
SHEFFIELD CITY COUNCIL        ,CYPF                          ,39285,CONTACT CONTRACTS             ,9280,CONTACT                       ,03/04/2017,4180726,28117,482.07,CREWS SUPPORT SERVICES LTD              ,301604,,NURSING AGENCIES              
SHEFFIELD CITY COUNCIL        ,CYPF                          ,39285,CONTACT CONTRACTS             ,9280,CONTACT                       ,03/04/2017,4180729,28120,299.25,CREWS SUPPORT SERVICES LTD              ,301604,,NURSING AGENCIES              
SHEFFIELD CITY COUNCIL        ,CYPF                          ,39285,CONTACT CONTRACTS             ,9280,CONTACT                       ,03/04/2017,4180766,28156,277.88,CREWS SUPPORT SERVICES LTD              ,301604,,NURSING AGENCIES              
SHEFFIELD CITY COUNCIL        ,CYPF                          ,39285,CONTACT CONTRACTS             ,9280,CONTACT                       ,03/04/2017,4180772,28162,289.50,CREWS SUPPORT SERVICES LTD              ,301604,,NURSING AGENCIES              
SHEFFIELD CITY COUNCIL        ,CYPF                          ,39285,CONTACT CONTRACTS             ,9280,CONTACT                       ,03/04/2017,4180774,28164,266.00,CREWS SUPPORT SERVICES LTD              ,301604,,NURSING AGENCIES              
SHEFFIELD CITY COUNCIL        ,CYPF                          ,39084,NORTH SA - CIN S17            ,9280,CONTACT                       ,03/04/2017,4180776,28166,412.88,CREWS SUPPORT SERVICES LTD              ,301604,,NURSING AGENCIES              
SHEFFIELD CITY COUNCIL        ,CYPF                          ,39285,CONTACT CONTRACTS             ,9280,CONTACT                       ,03/04/2017,4180789,28179,335.36,CREWS SUPPORT SERVICES LTD              ,301604,,NURSING AGENCIES              
SHEFFIELD CITY COUNCIL        ,CYPF                          ,39285,CONTACT CONTRACTS             ,9280,CONTACT                       ,03/04/2017,4180790,28180,355.30,CREWS SUPPORT SERVICES LTD              ,301604,,NURSING AGENCIES              
SHEFFIELD CITY COUNCIL        ,CYPF                          ,39285,CONTACT CONTRACTS             ,9280,CONTACT                       ,03/04/2017,4180793,28183,334.35,CREWS SUPPORT SERVICES LTD              ,301604,,NURSING AGENCIES              
SHEFFIELD CITY COUNCIL        ,CYPF                          ,39285,CONTACT CONTRACTS             ,9280,CONTACT                       ,03/04/2017,4180798,28188,281.03,CREWS SUPPORT SERVICES LTD              ,301604,,NURSING AGENCIES              
SHEFFIELD CITY COUNCIL        ,CYPF                          ,39077,NORTH SA - LAC                ,9440,LOOKED AFTER CHILDREN         ,03/04/2017,4180800,28449,"1,481.75",CREWS SUPPORT SERVICES LTD              ,301604,,NURSING AGENCIES              
SHEFFIELD CITY COUNCIL        ,CYPF                          ,39084,NORTH SA - CIN S17            ,9270,PAYMENTS TO RELATIVES/FRIENDS ,03/04/2017,4180804,NORTH/1883               ,466.29,REDACTED PERSONAL DATA,640264,Unclassified Non Trade,OUT OF SCOPE FOR SIC MONITORIN
SHEFFIELD CITY COUNCIL        ,CYPF                          ,39077,NORTH SA - LAC                ,9440,LOOKED AFTER CHILDREN         ,03/04/2017,4180806,2254,"2,262.85",PEBBLES CARE LIMITED                    ,622530,,RESIDENTIAL CARE HOMES        
SHEFFIELD CITY COUNCIL        ,CYPF                          ,39285,CONTACT CONTRACTS             ,9280,CONTACT                       ,03/04/2017,4180809,28029,426.74,CREWS SUPPORT SERVICES LTD              ,301604,,NURSING AGENCIES              
SHEFFIELD CITY COUNCIL        ,CYPF                          ,39285,CONTACT CONTRACTS             ,9280,CONTACT                       ,03/04/2017,4180811,28031,478.24,CREWS SUPPORT SERVICES LTD              ,301604,,NURSING AGENCIES              
SHEFFIELD CITY COUNCIL        ,CYPF                          ,39285,CONTACT CONTRACTS             ,9280,CONTACT                       ,03/04/2017,4180829,28049,294.08,CREWS SUPPORT SERVICES LTD              ,301604,,NURSING AGENCIES              
SHEFFIELD CITY COUNCIL        ,CYPF                          ,39285,CONTACT CONTRACTS             ,9280,CONTACT                       ,03/04/2017,4180859,28080,364.22,CREWS SUPPORT SERVICES LTD              ,301604,,NURSING AGENCIES              
SHEFFIELD CITY COUNCIL        ,COMMUNITIES                   ,46039,ADULT SOCIAL CARE PURCHASING  ,4260,NURSING COSTS RECOVERED       ,03/04/2017,4180702,J1819911 260317          ,"3,414.32",HADDON COURT NURSING HOME               ,361916,,NURSING HOMES                 
SHEFFIELD CITY COUNCIL        ,COMMUNITIES                   ,46039,ADULT SOCIAL CARE PURCHASING  ,4260,RESIDENTIAL COSTS RECOVERED   ,03/04/2017,4180702,J1819911 260317          ,"2,591.30",HADDON COURT NURSING HOME               ,361916,,NURSING HOMES                 
SHEFFIELD CITY COUNCIL        ,COMMUNITIES                   ,44001,PURCHASING                    ,9200,CONTINUING RESIDENTIAL CARE   ,03/04/2017,4180703,J1841476 230417          ,"4,725.00",TAPTON GROVE NURSING HOME               ,361826,,NURSING HOMES                 
SHEFFIELD CITY COUNCIL        ,COMMUNITIES                   ,46039,ADULT SOCIAL CARE PURCHASING  ,9200,CONTINUING RESIDENTIAL CARE   ,03/04/2017,4180704,J1841504 230417          ,"1,710.00",HADDON COURT NURSING HOME               ,361916,,NURSING HOMES                 
SHEFFIELD CITY COUNCIL        ,COMMUNITIES                   ,46039,ADULT SOCIAL CARE PURCHASING  ,9210,CONTINUING NURSING CARE       ,03/04/2017,4180704,J1841504 230417          ,"5,280.00",HADDON COURT NURSING HOME               ,361916,,NURSING HOMES                 
SHEFFIELD CITY COUNCIL        ,COMMUNITIES                   ,46039,ADULT SOCIAL CARE PURCHASING  ,9200,CONTINUING RESIDENTIAL CARE   ,03/04/2017,4180705,J1846361 230417          ,"6,002.00",NIGHTINGALES RES HOME                   ,361897,,RESIDENTIAL CARE HOMES        
SHEFFIELD CITY COUNCIL        ,COMMUNITIES                   ,49088,HOUSING RELATED SUPPORT       ,9060,SUPPORTING PEOPLE PAYMENTS    ,03/04/2017,4180921,J1847324 020417          ,"4,967.76",SOUTH YORKSHIRE HOUSING ASSC (SP)       ,351538,,HOME SUPPORT SERVICES         
SHEFFIELD CITY COUNCIL        ,COMMUNITIES                   ,49088,HOUSING RELATED SUPPORT       ,9060,SUPPORTING PEOPLE PAYMENTS    ,03/04/2017,4180922,J1847325 020417          ,"15,000.00",DEPAUL UK                               ,620322,,"HOUSING ASSOCIATIONS, SOCIETIE"
SHEFFIELD CITY COUNCIL        ,COMMUNITIES                   ,47046,LOC REFORM & COM VOICES: DOLS ,8440,FEE EXPENSES                  ,04/04/2017,4181544,ERS INVOICE153197        ,825.03,SHIVA HEALTH LTD                        ,345375,,HOSPITALS                     
SHEFFIELD CITY COUNCIL        ,COMMUNITIES                   ,47046,LOC REFORM & COM VOICES: DOLS ,8440,FEE EXPENSES                  ,04/04/2017,4181545,ERS INVOICE153202        ,740.00,DR WAN IZWIN WAN HASSAN                 ,553448,,DOCTORS                       
SHEFFIELD CITY COUNCIL        ,COMMUNITIES                   ,47046,LOC REFORM & COM VOICES: DOLS ,8440,FEE EXPENSES                  ,04/04/2017,4181546,ERS INVOICE153205        ,828.90,SHIVA HEALTH LTD                        ,345375,,HOSPITALS                     
SHEFFIELD CITY COUNCIL        ,CYPF                          ,38220,GENETIC WORKS                 ,9030,HEALTH                        ,04/04/2017,4181547,ERS INVOICE153208        ,"9,900.00",DR REBECCA MAWSON                       ,644356,,DOCTORS                       
SHEFFIELD CITY COUNCIL        ,COMMUNITIES                   ,47046,LOC REFORM & COM VOICES: DOLS ,8440,FEE EXPENSES                  ,04/04/2017,4181548,ERS INVOICE153209        ,862.05,DR T AWANI  C/O CAJUSTRAND CONSULTING   ,568221,,DOCTORS                       
SHEFFIELD CITY COUNCIL        ,PLACE                         ,97414,ARBOURTHORNE 5M'S REFURB      ,1143,COMPENSATION                  ,04/04/2017,4181549,ERS INVOICE153212        ,718.23,REDACTED PERSONAL DATA,622991,Unclassified Non Trade,OUT OF SCOPE FOR SIC MONITORIN
SHEFFIELD CITY COUNCIL        ,PLACE                         ,97551,COUNCIL HSG ACQUISITIONS PROG ,1141,PURCHASE OF BUILDINGS         ,04/04/2017,4181550,ERS INVOICE153213        ,"54,500.00",BEST SOLICITORS                         ,469392,,SOLICITORS                    
SHEFFIELD CITY COUNCIL        ,PLACE                         ,97394,HULL - HUMBER SUB REGION HAL  ,1194,OTHER FEES                    ,04/04/2017,4181566,ERS INVOICE153229        ,"6,000.00",HUMBERSIDE DAMP AND TIMBER SPECIALIST   ,641986,,DAMP & DRY ROT CONTROL        
SHEFFIELD CITY COUNCIL        ,PLACE                         ,24407,DISPOSALS & ACQUISITIONS      ,4080,FEES & CHARGES                ,04/04/2017,4181567,ERS INVOICE153230        ,"19,417.50",IRWIN MITCHELL SOLICITORS               ,318760,,SOLICITORS                    
SHEFFIELD CITY COUNCIL        ,PLACE                         ,97394,HULL - HUMBER SUB REGION HAL  ,1194,OTHER FEES                    ,04/04/2017,4181569,ERS INVOICE153232        ,450.00,HUMBERSIDE DAMP AND TIMBER SPECIALIST   ,641986,,DAMP & DRY ROT CONTROL        
SHEFFIELD CITY COUNCIL        ,PLACE                         ,97394,HULL - HUMBER SUB REGION HAL  ,1194,OTHER FEES                    ,04/04/2017,4181576,ERS INVOICE153239        ,"2,298.86",REDACTED PERSONAL DATA,574638,Unclassified Non Trade,OUT OF SCOPE FOR SIC MONITORIN
SHEFFIELD CITY COUNCIL        ,CYPF                          ,36034,PARENT REIMBURSEMENTS         ,7060,EXTERNAL VEHICLE HIRE         ,04/04/2017,4181583,ERS INVOICE153246        ,349.60,REDACTED PERSONAL DATA,639067,Unclassified Non Trade,OUT OF SCOPE FOR SIC MONITORIN
SHEFFIELD CITY COUNCIL        ,COMMUNITIES                   ,49091,CASEWORK TEAM 1               ,8440,FEE EXPENSES                  ,04/04/2017,4181584,ERS INVOICE153247        ,400.00,ILET4YOU LIMITED                        ,644460,,LETTING AGENTS                
SCR COMBINED AUTHORITY        ,CA LEP                        ,30322,APPRENTICE GRANT              ,8440,FEE EXPENSES                  ,04/04/2017,4181589,ERS INVOICE153252        ,450.00,QUAD COMPUTER SERVICES                  ,638161,,COMPUTER MAINTENANCE & REPAIRS
SHEFFIELD CITY COUNCIL        ,RESOURCES                     ,19347,CLAIMS                        ,8740,EMPLOYERS LIABILITY           ,04/04/2017,4181591,ERS INVOICE153254        ,"2,500.00",SINTONS SOLICITORS                      ,619857,,SOLICITORS                    
SHEFFIELD CITY COUNCIL        ,RESOURCES                     ,19347,CLAIMS                        ,8740,EMPLOYERS LIABILITY           ,04/04/2017,4181592,ERS INVOICE153255        ,500.00,LPS SOLICITORS LTD                      ,618071,,SOLICITORS                    
SHEFFIELD CITY COUNCIL        ,COMMUNITIES                   ,49030,PRIVATE RENTED SOLUTIONS      ,9120,OTHER AGENCIES                ,04/04/2017,4181593,ERS INVOICE153256        ,459.00,MR JOHN HODGSON                         ,545309,,LETTING AGENTS                
SHEFFIELD CITY COUNCIL        ,COMMUNITIES                   ,49030,PRIVATE RENTED SOLUTIONS      ,9120,OTHER AGENCIES                ,04/04/2017,4181594,ERS INVOICE153257        ,459.00,MR JOHN HODGSON                         ,545309,,LETTING AGENTS                
SHEFFIELD CITY COUNCIL        ,CYPF                          ,39282,CARE PROCEEDINGS (LEGAL FEES) ,8470,LEGAL FEES                    ,04/04/2017,4181705,ERS INVOICE153258        ,596.32,BURY AND WALKERS LLP                    ,627284,,SOLICITORS                    
SHEFFIELD CITY COUNCIL        ,CYPF                          ,39282,CARE PROCEEDINGS (LEGAL FEES) ,8470,LEGAL FEES                    ,04/04/2017,4181706,ERS INVOICE153259        ,"2,423.00",DR SUSAN O'ROURKE                       ,478237,,PSYCHOLOGISTS                 
SHEFFIELD CITY COUNCIL        ,CYPF                          ,39282,CARE PROCEEDINGS (LEGAL FEES) ,8470,LEGAL FEES                    ,04/04/2017,4181707,ERS INVOICE153260        ,845.28,DR SUSAN O'ROURKE                       ,478237,,PSYCHOLOGISTS                 
SCR COMBINED AUTHORITY        ,CA LEP                        ,30322,APPRENTICE GRANT              ,8440,FEE EXPENSES                  ,04/04/2017,4181708,ERS INVOICE153261        ,"1,120.00",PENNINE VIEW SCHOOL                     ,567020,,SCHOOLS - LOCAL AUTHORITY     
SCR COMBINED AUTHORITY        ,CA LEP                        ,30322,APPRENTICE GRANT              ,8440,FEE EXPENSES                  ,04/04/2017,4181709,ERS INVOICE153262        ,"1,420.00",JVS UK LTD                              ,642451,,CAR VALET SERVICES            
SCR COMBINED AUTHORITY        ,CA LEP                        ,30322,APPRENTICE GRANT              ,8440,FEE EXPENSES                  ,04/04/2017,4181710,ERS INVOICE153263        ,"1,120.00",AMCO OF DONCASTER LTD                   ,642573,,ELECTRICAL DISTRIBUTION COMPAN
SCR COMBINED AUTHORITY        ,CA LEP                        ,30322,APPRENTICE GRANT              ,8440,FEE EXPENSES                  ,04/04/2017,4181711,ERS INVOICE153264        ,"1,500.00",BRADDOCK THORNTON WEALTH MANAGEMENT     ,643500,,FINANCIAL ADVISERS            
SCR COMBINED AUTHORITY        ,CA LEP                        ,30322,APPRENTICE GRANT              ,8440,FEE EXPENSES                  ,04/04/2017,4181712,ERS INVOICE153265        ,"1,120.00",L. BEAUTIQUE                            ,644111,,BEAUTY SALONS                 
SCR COMBINED AUTHORITY        ,CA LEP                        ,30322,APPRENTICE GRANT              ,8440,FEE EXPENSES                  ,04/04/2017,4181713,ERS INVOICE153266        ,"2,000.00",DAVID DALE PLUMBING & HEATING           ,643271,,PLUMBERS                      
SCR COMBINED AUTHORITY        ,CA LEP                        ,30322,APPRENTICE GRANT              ,8440,FEE EXPENSES                  ,04/04/2017,4181714,ERS INVOICE153267        ,"1,420.00",DAVID DALE PLUMBING & HEATING           ,643271,,PLUMBERS                      
SCR COMBINED AUTHORITY        ,CA LEP                        ,30322,APPRENTICE GRANT              ,8440,FEE EXPENSES                  ,04/04/2017,4181715,ERS INVOICE153268        ,"1,120.00",DHD AUTOMOTIVE                          ,641967,,GARAGE MECHANICS              
SCR COMBINED AUTHORITY        ,CA LEP                        ,30322,APPRENTICE GRANT              ,8440,FEE EXPENSES                  ,04/04/2017,4181716,ERS INVOICE153269        ,"1,120.00",AFFORDABLE BABY CARE                    ,637820,,BABY & NURSERY EQUIPMENT      
SCR COMBINED AUTHORITY        ,CA LEP                        ,30322,APPRENTICE GRANT              ,8440,FEE EXPENSES                  ,04/04/2017,4181717,ERS INVOICE153270        ,"2,000.00",DAPATCHI LIMITED                        ,641860,,MARKETING CONSULTANTS & SERVIC
SCR COMBINED AUTHORITY        ,CA LEP                        ,30322,APPRENTICE GRANT              ,8440,FEE EXPENSES                  ,04/04/2017,4181718,ERS INVOICE153271        ,"2,000.00",DAPATCHI LIMITED                        ,641860,,MARKETING CONSULTANTS & SERVIC
SCR COMBINED AUTHORITY        ,CA LEP                        ,30322,APPRENTICE GRANT              ,8440,FEE EXPENSES                  ,04/04/2017,4181719,ERS INVOICE153272        ,"1,420.00",KA PLASTERING                           ,639265,,"PLASTERERS, SCREEDERS & DRY LI"
SCR COMBINED AUTHORITY        ,CA LEP                        ,30322,APPRENTICE GRANT              ,8440,FEE EXPENSES                  ,04/04/2017,4181720,ERS INVOICE153273        ,"1,500.00",GREEN SQUARE DENTAL & IMPLANT CENTRE    ,642304,,DENTISTS                      
SCR COMBINED AUTHORITY        ,CA LEP                        ,30322,APPRENTICE GRANT              ,8440,FEE EXPENSES                  ,04/04/2017,4181721,ERS INVOICE153274        ,"1,420.00",CARL MOLLART                            ,642567,,BUILDERS                      
SCR COMBINED AUTHORITY        ,CA LEP                        ,30322,APPRENTICE GRANT              ,8440,FEE EXPENSES                  ,04/04/2017,4181722,ERS INVOICE153275        ,"1,420.00",CARL MOLLART                            ,642567,,BUILDERS                      
SCR COMBINED AUTHORITY        ,CA LEP                        ,30322,APPRENTICE GRANT              ,8440,FEE EXPENSES                  ,04/04/2017,4181723,ERS INVOICE153276        ,"1,420.00",STEVE RUSSELL BUILDERS                  ,639717,,BUILDERS                      
SCR COMBINED AUTHORITY        ,CA LEP                        ,30322,APPRENTICE GRANT              ,8440,FEE EXPENSES                  ,04/04/2017,4181724,ERS INVOICE153277        ,"1,420.00",DAVID VERNON                            ,644115,,HOUSE BUILDERS                
SCR COMBINED AUTHORITY        ,CA LEP                        ,30322,APPRENTICE GRANT              ,8440,FEE EXPENSES                  ,04/04/2017,4181726,ERS INVOICE153279        ,"1,120.00",FIREGUARD LIMITED                       ,628553,,FIRE PROTECTION CONSULTANTS & 
SCR COMBINED AUTHORITY        ,CA LEP                        ,30322,APPRENTICE GRANT              ,8440,FEE EXPENSES                  ,04/04/2017,4181727,ERS INVOICE153280        ,"1,120.00",GRAPEVINE NURSERY LTD                   ,408653,,NURSERIES & CRECHES           
SCR COMBINED AUTHORITY        ,CA LEP                        ,30322,APPRENTICE GRANT              ,8440,FEE EXPENSES                  ,04/04/2017,4181728,ERS INVOICE153281        ,"1,120.00",FUNKY DIVAS SALON                       ,644314,,HAIRDRESSERS - UNISEX         
SCR COMBINED AUTHORITY        ,CA LEP                        ,30322,APPRENTICE GRANT              ,8440,FEE EXPENSES                  ,04/04/2017,4181729,ERS INVOICE153282        ,"1,420.00",D & G UTILITIES                         ,644323,,GAS SERVICE ENGINEERS         
SCR COMBINED AUTHORITY        ,CA LEP                        ,30322,APPRENTICE GRANT              ,8440,FEE EXPENSES                  ,04/04/2017,4181730,ERS INVOICE153283        ,"1,500.00",THE WEDDING PALACE                      ,640902,,BRIDAL SHOPS                  
SCR COMBINED AUTHORITY        ,CA LEP                        ,30322,APPRENTICE GRANT              ,8440,FEE EXPENSES                  ,04/04/2017,4181731,ERS INVOICE153284        ,"1,800.00",GIBSON BOOTH LTD                        ,641624,,ACCOUNTANTS                   
SCR COMBINED AUTHORITY        ,CA LEP                        ,30322,APPRENTICE GRANT              ,8440,FEE EXPENSES                  ,04/04/2017,4181732,ERS INVOICE153285        ,"1,420.00",STEVE'S STEELS ENGINEERING LTD          ,640849,,STEEL FABRICATORS & ERECTORS  
SCR COMBINED AUTHORITY        ,CA LEP                        ,30322,APPRENTICE GRANT              ,8440,FEE EXPENSES                  ,04/04/2017,4181733,ERS INVOICE153286        ,"1,500.00",PURE NAILS HAIR & BEAUTY                ,637482,,HAIRDRESSERS - UNISEX         
SCR COMBINED AUTHORITY        ,CA LEP                        ,30322,APPRENTICE GRANT              ,8440,FEE EXPENSES                  ,04/04/2017,4181734,ERS INVOICE153287        ,"1,120.00",MAYFLOWER BAR & EATERY LTD              ,638047,,RESTAURANTS                   
SCR COMBINED AUTHORITY        ,CA LEP                        ,30322,APPRENTICE GRANT              ,8440,FEE EXPENSES                  ,04/04/2017,4181735,ERS INVOICE153288        ,"1,500.00",THE WATERCOOLER WAREHOUSE LTD           ,642581,,WATER COOLERS                 
SCR COMBINED AUTHORITY        ,CA LEP                        ,30322,APPRENTICE GRANT              ,8440,FEE EXPENSES                  ,04/04/2017,4181736,ERS INVOICE153289        ,"1,500.00",GEMS BEAUTY STUDIOS LTD                 ,639670,,HAIRDRESSERS - UNISEX         
SCR COMBINED AUTHORITY        ,CA LEP                        ,30322,APPRENTICE GRANT              ,8440,FEE EXPENSES                  ,04/04/2017,4181737,ERS INVOICE153290        ,"1,420.00",G + S PROPERTY MAINTENANCE              ,643486,,PROPERTY MAINTENANCE & REPAIRS
SCR COMBINED AUTHORITY        ,CA LEP                        ,30322,APPRENTICE GRANT              ,8440,FEE EXPENSES                  ,04/04/2017,4181738,ERS INVOICE153291        ,"1,420.00",DALE STANIFORTH                         ,643481,,"PLASTERERS, SCREEDERS & DRY LI"
SCR COMBINED AUTHORITY        ,CA LEP                        ,30322,APPRENTICE GRANT              ,8440,FEE EXPENSES                  ,04/04/2017,4181739,ERS INVOICE153292        ,"2,450.00",NETCODA LIMITED                         ,643916,,COMPUTER SYSTEMS & SOFTWARE (S
SCR COMBINED AUTHORITY        ,CA LEP                        ,30322,APPRENTICE GRANT              ,8440,FEE EXPENSES                  ,04/04/2017,4181740,ERS INVOICE153293        ,"2,000.00",BOB'S BUSINESS LIMITED                  ,626198,,E-LEARNING                    
SCR COMBINED AUTHORITY        ,CA LEP                        ,30322,APPRENTICE GRANT              ,8440,FEE EXPENSES                  ,04/04/2017,4181741,ERS INVOICE153294        ,"1,120.00",THE KAKOTY PRACTICE                     ,641411,,DOCTORS                       
SCR COMBINED AUTHORITY        ,CA LEP                        ,30322,APPRENTICE GRANT              ,8440,FEE EXPENSES                  ,04/04/2017,4181742,ERS INVOICE153295        ,"1,420.00",CARTERS QUALITY PAINTERS AND DECORATORS ,644531,,PAINTERS & DECORATORS         
SCR COMBINED AUTHORITY        ,CA LEP                        ,30322,APPRENTICE GRANT              ,8440,FEE EXPENSES                  ,04/04/2017,4181743,ERS INVOICE153296        ,"1,420.00",PROSPEC LTD                             ,207703,,PARTITIONS & CUBICLES         
SCR COMBINED AUTHORITY        ,CA LEP                        ,30322,APPRENTICE GRANT              ,8440,FEE EXPENSES                  ,04/04/2017,4181744,ERS INVOICE153297        ,"1,420.00",PROSPEC LTD                             ,207703,,PARTITIONS & CUBICLES         
SCR COMBINED AUTHORITY        ,CA LEP                        ,30322,APPRENTICE GRANT              ,8440,FEE EXPENSES                  ,04/04/2017,4181745,ERS INVOICE153298        ,"1,120.00",TRAINING WORKS 4U                       ,635601,,TRAINING CENTRES              
SCR COMBINED AUTHORITY        ,CA LEP                        ,30322,APPRENTICE GRANT              ,8440,FEE EXPENSES                  ,04/04/2017,4181746,ERS INVOICE153299        ,"1,420.00",ACADEMY CONSTRUCTION                    ,641619,,CONSTRUCTION CONTRACTORS - GEN
SCR COMBINED AUTHORITY        ,CA LEP                        ,30322,APPRENTICE GRANT              ,8440,FEE EXPENSES                  ,04/04/2017,4181747,ERS INVOICE153300        ,"1,120.00",FLEET SUPPORT OPERATIONS LTD            ,643912,,"COMMERCIAL VEHICLE SERVICING, "
SHEFFIELD CITY COUNCIL        ,RESOURCES                     ,19347,CLAIMS                        ,8740,EMPLOYERS LIABILITY           ,04/04/2017,4181748,ERS INVOICE153301        ,"4,000.00",THOMPSONS CLIENT ACCOUNT                ,505870,,SOLICITORS                    
SHEFFIELD CITY COUNCIL        ,RESOURCES                     ,19347,CLAIMS                        ,8740,EMPLOYERS LIABILITY           ,04/04/2017,4181749,ERS INVOICE153302        ,"6,437.00",THOMPSONS OFFICE ACCOUNT                ,629876,,SOLICITORS                    
SHEFFIELD CITY COUNCIL        ,RESOURCES                     ,19347,CLAIMS                        ,8740,EMPLOYERS LIABILITY           ,04/04/2017,4181750,ERS INVOICE153303        ,627.00,DEPARTMENT FOR WORK & PENSIONS          ,326920,,CENTRAL GOVERNMENT            
SHEFFIELD CITY COUNCIL        ,CYPF                          ,33064,PROVIDER CONTRACT AUG15-JUL16 ,9120,OTHER AGENCIES                ,04/04/2017,4157066,5718,"9,460.70",HEELEY DEVELOPMENT TRUST                ,472941,,CHARITIES & VOLUNTARY ORGANISA
SHEFFIELD CITY COUNCIL        ,CYPF                          ,33064,PROVIDER CONTRACT AUG15-JUL16 ,9120,OTHER AGENCIES                ,04/04/2017,4157067,5719,"6,423.70",HEELEY DEVELOPMENT TRUST                ,472941,,CHARITIES & VOLUNTARY ORGANISA
SHEFFIELD CITY COUNCIL        ,PLACE                         ,23038,PEST CONTROL                  ,8010,EQUIPMENT PURCHASE AND REPAIR ,04/04/2017,4161326,SI02-0136387             ,"2,013.76",KILLGERM CHEMICALS LTD                  ,206229,,PEST & VERMIN CONTROL PRODUCTS
SHEFFIELD CITY COUNCIL        ,CYPF                          ,33112,LDD PLACEMENTS AUG16-JUL17    ,9120,OTHER AGENCIES                ,04/04/2017,4167911,1302,795.00,LANE END FARM TRUST                     ,588221,,FARMING - LIVESTOCK & OTHER AN
SHEFFIELD CITY COUNCIL        ,CYPF                          ,33112,LDD PLACEMENTS AUG16-JUL17    ,9120,OTHER AGENCIES                ,04/04/2017,4167913,1303,270.00,LANE END FARM TRUST                     ,588221,,FARMING - LIVESTOCK & OTHER AN
SHEFFIELD CITY COUNCIL        ,COMMUNITIES                   ,42074,LD REPROVISION                ,8460,CONSULTANTS FEES              ,04/04/2017,4167930,831,"15,317.00",INCLUSION NORTH CIC                     ,509430,,EDUCATIONAL SERVICES          
SHEFFIELD CITY COUNCIL        ,COMMUNITIES                   ,42074,LD REPROVISION                ,8460,CONSULTANTS FEES              ,04/04/2017,4167932,829,"15,317.00",INCLUSION NORTH CIC                     ,509430,,EDUCATIONAL SERVICES          
SHEFFIELD CITY COUNCIL        ,COMMUNITIES                   ,49390,ACCOMMODATION                 ,6210,RENTS                         ,04/04/2017,4168311,ARC1617-83               ,916.67,STOCKSBRIDGE TOWN COUNCIL               ,567651,,COUNCILS                      
SHEFFIELD CITY COUNCIL        ,COMMUNITIES                   ,49390,ACCOMMODATION                 ,6210,RENTS                         ,04/04/2017,4168503,SOARCO/2698              ,"8,400.00",SOAR                                    ,413073,,EDUCATIONAL TRAINING PROVIDERS
SHEFFIELD CITY COUNCIL        ,CYPF                          ,35047,IS DEVELOPMENT - DE DEL       ,8620,COMPUTER & HARDWARE PURCHASES ,04/04/2017,4168630,931196-036               ,"51,453.27",VIRGIN MEDIA PAYMENTS LIMITED           ,489482,,TELECOMMUNICATION SERVICES    
SHEFFIELD CITY COUNCIL        ,PLACE                         ,94050,SHEFFIELD RETAIL QUARTER 2    ,1193,CONSULTANTS FEES              ,04/04/2017,4169096,INVOICE-2017-02-000001424,"7,500.00",CUSHMAN & WAKEFIELD LLP                 ,325533,,PROPERTY & ESTATE MANAGEMENT  
SHEFFIELD CITY COUNCIL        ,PLACE                         ,94050,SHEFFIELD RETAIL QUARTER 2    ,1193,CONSULTANTS FEES              ,04/04/2017,4169098,INVOICE-2017-02-000000912,"3,000.00",CUSHMAN & WAKEFIELD LLP                 ,325533,,PROPERTY & ESTATE MANAGEMENT  
SHEFFIELD CITY COUNCIL        ,RESOURCES                     ,15188,SECURITY SERVICES             ,8540,SECURITY SERVICES             ,04/04/2017,4170441,INV080362                ,730.00,CONSTANT SECURITY SERVICES LIMITED      ,501937,,SECURITY SERVICES             
SHEFFIELD CITY COUNCIL        ,RESOURCES                     ,15188,SECURITY SERVICES             ,8540,SECURITY SERVICES             ,04/04/2017,4170442,INV080361                ,350.00,CONSTANT SECURITY SERVICES LIMITED      ,501937,,SECURITY SERVICES             
SHEFFIELD CITY COUNCIL        ,COMMUNITIES                   ,42011,DAY SERVICES                  ,6280,HIRE OF PREMISES              ,04/04/2017,4170906,667,"1,380.00",FIRTH PARK CENTRE FOR LIFE              ,350483,,FUNCTION & BANQUETING ROOMS   
SHEFFIELD CITY COUNCIL        ,PLACE                         ,22184,BUS LANE ENFORCEMENT          ,8440,FEE EXPENSES                  ,04/04/2017,4172144,1437,"6,045.20",PATROL                                  ,538337,,CCTV & VIDEO EQUIPMENT        
SHEFFIELD CITY COUNCIL        ,CYPF                          ,33112,LDD PLACEMENTS AUG16-JUL17    ,9120,OTHER AGENCIES                ,04/04/2017,4172691,76/F17                   ,480.00,THE FURNIVAL                            ,397971,,CHARITIES & VOLUNTARY ORGANISA
SHEFFIELD CITY COUNCIL        ,CYPF                          ,33112,LDD PLACEMENTS AUG16-JUL17    ,9120,OTHER AGENCIES                ,04/04/2017,4172696,4,543.00,FLYCHEESE PRODUCTIONS                   ,580606,,ARTS CENTRES                  
SHEFFIELD CITY COUNCIL        ,CYPF                          ,33112,LDD PLACEMENTS AUG16-JUL17    ,9120,OTHER AGENCIES                ,04/04/2017,4172698,4,300.00,FLYCHEESE PRODUCTIONS                   ,580606,,ARTS CENTRES                  
SHEFFIELD CITY COUNCIL        ,PLACE                         ,97147,ADAPTATIONS                   ,1157,DWELLINGS MAIN CONTRACT       ,04/04/2017,4172984,1038494,"1,754.00",CLARK & PARTNERS LTD                    ,203928,,DISABILITY EQUIPMENT - MNFRS &
SHEFFIELD CITY COUNCIL        ,PLACE                         ,97147,ADAPTATIONS                   ,1157,DWELLINGS MAIN CONTRACT       ,04/04/2017,4172986,1038495,"1,424.00",CLARK & PARTNERS LTD                    ,203928,,DISABILITY EQUIPMENT - MNFRS &
SHEFFIELD CITY COUNCIL        ,PLACE                         ,91662,PUBLIC RIGHTS OF WAY          ,1161,NC&A MAIN CONTRACT            ,04/04/2017,4175230,51005,"12,000.00",D FROST PLANT HIRE                      ,501645,,PLANT & MACHINERY HIRE & LEASI
SHEFFIELD CITY COUNCIL        ,PLACE                         ,23036,CORONIAL SERVICES             ,8440,TOXICOLOGY FEES               ,04/04/2017,4175381,4000487483,"7,083.00",SHEFFIELD TEACHING HOSPITALS NHS TRUST  ,299675,,HOSPITALS                     
SHEFFIELD CITY COUNCIL        ,CYPF                          ,33112,LDD PLACEMENTS AUG16-JUL17    ,8440,FEE EXPENSES                  ,04/04/2017,4176109,24363,261.00,ST MARY'S COMMUNITY CENTRE              ,545615,,COMMUNITY CENTRES             
SHEFFIELD CITY COUNCIL        ,PLACE                         ,97147,ADAPTATIONS                   ,1157,DWELLINGS MAIN CONTRACT       ,04/04/2017,4176134,1038833,"7,228.12",CLARK & PARTNERS LTD                    ,203928,,DISABILITY EQUIPMENT - MNFRS &
SHEFFIELD CITY COUNCIL        ,PLACE                         ,94053,CC HIGHWAY ENABLING WORKS     ,1162,NC&A MAIN CONT STREETF        ,04/04/2017,4176175,90590864,"16,500.00",AMEY LG LTD                             ,578587,,ROAD CONSTRUCTION CONTRACTORS 
SHEFFIELD CITY COUNCIL        ,CYPF                          ,38202,OUT OF CITY GUM               ,9030,HEALTH                        ,04/04/2017,4176649,A0005184                 ,268.00,LOCALA COMMUNITY PARTNERSHIPS C.I.C.    ,632967,,CLINICS - N.H.S.              
SHEFFIELD CITY COUNCIL        ,CYPF                          ,33112,LDD PLACEMENTS AUG16-JUL17    ,9120,OTHER AGENCIES                ,04/04/2017,4176662,INV1553                  ,"4,890.00",LINKS SCHOOL SPORT PARTNERSHIP          ,537133,,CHARITIES & VOLUNTARY ORGANISA
SHEFFIELD CITY COUNCIL        ,CYPF                          ,33112,LDD PLACEMENTS AUG16-JUL17    ,9120,OTHER AGENCIES                ,04/04/2017,4176674,351,414.00,WHIRLOW HALL FARM TRUST LTD             ,318019,,CHARITIES & VOLUNTARY ORGANISA
SHEFFIELD CITY COUNCIL        ,CYPF                          ,35049,CHILDREN'S SOCIAL CARE MIS    ,5750,TRAINING EXPENDITURE          ,04/04/2017,4176704,1438,385.00,CREATIVE CONSULTING & TRAINING LTD      ,642366,,TRAINING SERVICES             
SHEFFIELD CITY COUNCIL        ,CYPF                          ,33112,LDD PLACEMENTS AUG16-JUL17    ,9120,OTHER AGENCIES                ,04/04/2017,4176715,5761,787.50,HEELEY DEVELOPMENT TRUST                ,363241,,CHARITIES & VOLUNTARY ORGANISA
SHEFFIELD CITY COUNCIL        ,PLACE                         ,97147,ADAPTATIONS                   ,1157,DWELLINGS MAIN CONTRACT       ,04/04/2017,4176810,1038519,"8,985.00",CLARK & PARTNERS LTD                    ,203928,,DISABILITY EQUIPMENT - MNFRS &
SHEFFIELD CITY COUNCIL        ,COMMUNITIES                   ,49648,SAFER COMMUNITIES PARTNERSHIP ,9120,OTHER AGENCIES                ,04/04/2017,4176929,16/081                   ,"10,418.00",STOP HATE UK                            ,626319,,CHARITIES & VOLUNTARY ORGANISA
SHEFFIELD CITY COUNCIL        ,CYPF                          ,32183,GOVERNOR SUPPORT TEAM         ,5750,TRAINING EXPENDITURE          ,04/04/2017,4176932,A0082224                 ,880.00,EDGE HILL UNIVERSITY                    ,471405,,UNIVERSITIES & MEDICAL SCHOOLS
SHEFFIELD CITY COUNCIL        ,CYPF                          ,33040,RED TAPE CENTRAL              ,8490,EXAM FEES                     ,04/04/2017,4177408,804141893,269.10,CITY & GUILDS                           ,424267,,EXAMINATION BOARDS            
SHEFFIELD CITY COUNCIL        ,CYPF                          ,33040,RED TAPE CENTRAL              ,8490,EXAM FEES                     ,04/04/2017,4177412,804147738,396.50,CITY & GUILDS                           ,424267,,EXAMINATION BOARDS            
SHEFFIELD CITY COUNCIL        ,RESOURCES                     ,18032,MOORFOOT LEARNING CENTRE      ,8440,FEE EXPENSES                  ,04/04/2017,4177429,10010143,560.00,KIER SERVICES MAINTENANCE EAST (KSME)   ,591748,,CONSTRUCTION CONTRACTORS - GEN
SHEFFIELD CITY COUNCIL        ,PLACE                         ,22193,ACTIVE TRAVEL                 ,8410,GENERAL OFFICE EXPENSES       ,04/04/2017,4177680,2121800,525.00,UNBEATABLE ENERGY LTD                   ,384226,,MUSIC TEACHERS                
SHEFFIELD CITY COUNCIL        ,CYPF                          ,39512,SEN TRANSPORT                 ,7140,PUBLIC TRANSPORT COSTS        ,04/04/2017,4177718,114293690,"1,722.60",ROTHERHAM MBC                           ,329721,,LOCAL GOVERNMENT              
SHEFFIELD CITY COUNCIL        ,CYPF                          ,39512,SEN TRANSPORT                 ,7140,PUBLIC TRANSPORT COSTS        ,04/04/2017,4177721,114293710,"1,786.40",ROTHERHAM MBC                           ,329721,,LOCAL GOVERNMENT              
SHEFFIELD CITY COUNCIL        ,CYPF                          ,33018,100 APPRENTICES               ,9120,OTHER AGENCIES                ,04/04/2017,4178339,435,537.20,NORTHFIELD CONSTRUCTION LIMITED         ,642178,,CONSTRUCTION CONTRACTORS - GEN
SHEFFIELD CITY COUNCIL        ,CYPF                          ,33018,100 APPRENTICES               ,9120,OTHER AGENCIES                ,04/04/2017,4178342,3369,304.30,JJ DECORATORS LTD                       ,635712,,PAINTERS & DECORATORS         
SHEFFIELD CITY COUNCIL        ,CYPF                          ,33018,100 APPRENTICES               ,9120,OTHER AGENCIES                ,04/04/2017,4178345,201,340.00,NORTHSIDE CARPETS LTD                   ,627844,,CARPETS & RUGS - RETAIL       
SHEFFIELD CITY COUNCIL        ,CYPF                          ,33018,100 APPRENTICES               ,9120,OTHER AGENCIES                ,04/04/2017,4178347,207,612.00,NORTHSIDE CARPETS LTD                   ,627844,,CARPETS & RUGS - RETAIL       
SHEFFIELD CITY COUNCIL        ,CYPF                          ,33018,100 APPRENTICES               ,9120,OTHER AGENCIES                ,04/04/2017,4178348,2,340.00,J S SERVICES                            ,642868,,JOINERS & CARPENTERS          
SHEFFIELD CITY COUNCIL        ,CYPF                          ,33018,100 APPRENTICES               ,9120,OTHER AGENCIES                ,04/04/2017,4178446,163145,318.75,TRIBOSONICS LTD                         ,623399,,ENGINEERING SERVICES          
SHEFFIELD CITY COUNCIL        ,CYPF                          ,33045,SHEAF TRAINING                ,8490,EXAM FEES                     ,04/04/2017,4178447,760966-E1706             ,471.80,PEARSON EDUCATION LTD                   ,207443,,PUBLISHERS                    
SHEFFIELD CITY COUNCIL        ,CYPF                          ,33018,100 APPRENTICES               ,9120,OTHER AGENCIES                ,04/04/2017,4178448,163146,318.75,TRIBOSONICS LTD                         ,623399,,ENGINEERING SERVICES          
SHEFFIELD CITY COUNCIL        ,COMMUNITIES                   ,42011,DAY SERVICES                  ,5750,TRAINING EXPENDITURE          ,04/04/2017,4178453,3695,511.60,THE SOUNDBEAM PROJECT LTD               ,349321,,MUSICAL INSTRUMENT - MNFRS    
SHEFFIELD CITY COUNCIL        ,CYPF                          ,33018,100 APPRENTICES               ,9120,OTHER AGENCIES                ,04/04/2017,4178502,163147,318.75,TRIBOSONICS LTD                         ,623399,,ENGINEERING SERVICES          
SHEFFIELD CITY COUNCIL        ,RESOURCES                     ,15227,ASSET DATA RECORDS            ,8550,OTHER SERVICES                ,04/04/2017,4178524,CD13436                  ,636.00,CAD-CAPTURE DATA SERVICES LTD           ,343523,,COMPUTER AIDED DESIGN         
SHEFFIELD CITY COUNCIL        ,COMMUNITIES                   ,49364,SUPPORTED HOUSING             ,8050,ELECTRICAL GOODS              ,04/04/2017,4178533,CMD2724108               ,"11,358.00",DOMESTIC APPLIANCE DISTRIBUTORS         ,527171,,ELECTRICAL GOODS - SALES      
SHEFFIELD CITY COUNCIL        ,COMMUNITIES                   ,42048,WRAP AROUND ADVISORY TEAM     ,4080,FEES & CHARGES                ,04/04/2017,4178567,261,"4,500.00",KILSBY AND ALLAN LIMITED                ,644539,,BUSINESS & MANAGEMENT CONSULTA
SHEFFIELD CITY COUNCIL        ,COMMUNITIES                   ,49384,REPAIRS INSOURCING            ,9120,OTHER AGENCIES                ,04/04/2017,4178579,2836249,"5,194.00",CAPITA GAS REGISTRATION                 ,510432,,GAS SAFETY TESTING & INSPECTIO
SHEFFIELD CITY COUNCIL        ,COMMUNITIES                   ,42011,DAY SERVICES                  ,7060,EXTERNAL VEHICLE HIRE         ,04/04/2017,4178601,10882,320.00,PHILS TRAVEL                            ,594937,,TAXIS & PRIVATE HIRE          
SHEFFIELD CITY COUNCIL        ,PLACE                         ,97147,ADAPTATIONS                   ,1157,DWELLINGS MAIN CONTRACT       ,04/04/2017,4178936,SIP-177029               ,"3,723.82",THYSSENKRUPP ENCASA                     ,627802,,LIFT MNFRS                    
SHEFFIELD CITY COUNCIL        ,PLACE                         ,97147,ADAPTATIONS                   ,1157,DWELLINGS MAIN CONTRACT       ,04/04/2017,4178942,SIP-177307               ,653.62,THYSSENKRUPP ENCASA                     ,627802,,LIFT MNFRS                    
SHEFFIELD CITY COUNCIL        ,CYPF                          ,33018,100 APPRENTICES               ,9120,OTHER AGENCIES                ,04/04/2017,4178965,25885,272.00,SUNNY MEADOWS NURSERY                   ,374340,,NURSERIES & CRECHES           
SHEFFIELD CITY COUNCIL        ,CYPF                          ,33018,100 APPRENTICES               ,9120,OTHER AGENCIES                ,04/04/2017,4178972,40094,250.92,SHEFFIELD COMMUNITY TRANSPORT (WORKSHOP),297061,,CHARITIES & VOLUNTARY ORGANISA
SHEFFIELD CITY COUNCIL        ,CYPF                          ,33018,100 APPRENTICES               ,9120,OTHER AGENCIES                ,04/04/2017,4178981,13,340.00,GTR AND SON LTD                         ,629260,,CATERING EQUIPMENT            
SHEFFIELD CITY COUNCIL        ,CYPF                          ,33018,100 APPRENTICES               ,9120,OTHER AGENCIES                ,04/04/2017,4178983,14,340.00,GTR AND SON LTD                         ,629260,,CATERING EQUIPMENT            
SHEFFIELD CITY COUNCIL        ,CYPF                          ,39145,CHANCET WOOD                  ,8140,GROCERIES                     ,04/04/2017,4178986,08-Mar-17,449.16,APOLLO APPLIANCES LTD                   ,202990,,DOMESTIC APPLIANCES - SERVICIN
SHEFFIELD CITY COUNCIL        ,COMMUNITIES                   ,42011,DAY SERVICES                  ,7060,EXTERNAL VEHICLE HIRE         ,04/04/2017,4179024,10906,400.00,PHILS TRAVEL                            ,594937,,TAXIS & PRIVATE HIRE          
SHEFFIELD CITY COUNCIL        ,CYPF                          ,39357,SHORT BREAKS FUNDING FOR DISAB,9120,OTHER AGENCIES                ,04/04/2017,4179050,732,"1,417.89",WOODTHORPE DEVELOPMENT TRUST            ,419565,,CHARITIES & VOLUNTARY ORGANISA
SHEFFIELD CITY COUNCIL        ,CYPF                          ,39357,SHORT BREAKS FUNDING FOR DISAB,9120,OTHER AGENCIES                ,04/04/2017,4179052,733,"2,003.56",WOODTHORPE DEVELOPMENT TRUST            ,419565,,CHARITIES & VOLUNTARY ORGANISA
SHEFFIELD CITY COUNCIL        ,POLICY PERFORMANCE AND COMMS  ,18003,COMMUNICATIONS                ,8550,OTHER SERVICES                ,04/04/2017,4179072,INV185818                ,383.63,A PINDER LTD                            ,202627,,COPYING & DUPLICATING SERVICES
SHEFFIELD CITY COUNCIL        ,CYPF                          ,33018,100 APPRENTICES               ,9120,OTHER AGENCIES                ,04/04/2017,4179140,25883,272.00,SUNNY MEADOWS NURSERY                   ,374340,,NURSERIES & CRECHES           
SHEFFIELD CITY COUNCIL        ,CYPF                          ,33018,100 APPRENTICES               ,9120,OTHER AGENCIES                ,04/04/2017,4179141,25884,272.00,SUNNY MEADOWS NURSERY                   ,374340,,NURSERIES & CRECHES           
SHEFFIELD CITY COUNCIL        ,CYPF                          ,33018,100 APPRENTICES               ,9120,OTHER AGENCIES                ,04/04/2017,4179145,163148,318.75,TRIBOSONICS LTD                         ,623399,,ENGINEERING SERVICES          
SHEFFIELD CITY COUNCIL        ,COMMUNITIES                   ,47046,LOC REFORM & COM VOICES: DOLS ,8440,FEE EXPENSES                  ,04/04/2017,4179151,35302,280.00,ACTION FIRST RECRUITMENT LTD            ,639157,,ASSESSORS                     
SHEFFIELD CITY COUNCIL        ,CYPF                          ,39282,CARE PROCEEDINGS (LEGAL FEES) ,8470,LEGAL FEES                    ,04/04/2017,4179193,988300,450.00,REDACTED PERSONAL DATA,487888,,BARRISTERS                    
SHEFFIELD CITY COUNCIL        ,CYPF                          ,39566,SECURE REMAND                 ,9270,SECURE PLACEMENTS - REMAND    ,04/04/2017,4179202,SII704833                ,"4,956.00",YOUTH JUSTICE BOARD FOR ENGLAND AND WALE,346047,,CENTRAL GOVERNMENT            
SHEFFIELD CITY COUNCIL        ,CYPF                          ,39566,SECURE REMAND                 ,9270,SECURE PLACEMENTS - REMAND    ,04/04/2017,4179205,SII704831                ,"4,248.00",YOUTH JUSTICE BOARD FOR ENGLAND AND WALE,346047,,CENTRAL GOVERNMENT            
SHEFFIELD CITY COUNCIL        ,CYPF                          ,39566,SECURE REMAND                 ,9270,SECURE PLACEMENTS - REMAND    ,04/04/2017,4179215,SII704832                ,"12,744.00",YOUTH JUSTICE BOARD FOR ENGLAND AND WALE,346047,,CENTRAL GOVERNMENT            
SHEFFIELD CITY COUNCIL        ,CYPF                          ,39282,CARE PROCEEDINGS (LEGAL FEES) ,8470,LEGAL FEES                    ,04/04/2017,4179216,17250,372.55,FORENSIC TESTING SERVICE LTD            ,557750,,MEDICAL & DENTAL LABORATORIES 
SHEFFIELD CITY COUNCIL        ,CYPF                          ,39566,SECURE REMAND                 ,9270,SECURE PLACEMENTS - REMAND    ,04/04/2017,4179218,SII704830                ,"13,216.00",YOUTH JUSTICE BOARD FOR ENGLAND AND WALE,346047,,CENTRAL GOVERNMENT            
SHEFFIELD CITY COUNCIL        ,PLACE                         ,25044,PORTER VALLEY PARK            ,8550,OTHER SERVICES                ,04/04/2017,4180262,4021,622.00,STREETMASTER (SOUTH WALES) LTD          ,516590,,GARDEN & PATIO FURNITURE MNFRS
SHEFFIELD CITY COUNCIL        ,CYPF                          ,39425,TAMHS                         ,9120,OTHER AGENCIES                ,04/04/2017,4180346,01-Apr-17,"2,500.00",SHARE PSYCHOTHERAPY                     ,475777,,PSYCHOTHERAPISTS              
SHEFFIELD CITY COUNCIL        ,CYPF                          ,36022,SCHOOL DRINKING MILK          ,8140,GROCERIES                     ,04/04/2017,4180356,52,"17,937.05",MEDINA CAPITAL DAIRY CO LTD             ,524568,,DAIRIES                       
SHEFFIELD CITY COUNCIL        ,COMMUNITIES                   ,49025,SANCTUARY SCHEME              ,8010,EQUIPMENT PURCHASE AND REPAIR ,04/04/2017,4180369,SI17002704               ,330.00,SOLON SECURITY LTD                      ,348077,,SECURITY EQUIPMENT            
SHEFFIELD CITY COUNCIL        ,CYPF                          ,33107,POST 16 HIGH NEEDS SEND       ,9120,OTHER AGENCIES                ,04/04/2017,4180374,61984,"22,704.67",LINKAGE COMMUNITY TRUST                 ,362116,,CHARITIES & VOLUNTARY ORGANISA
SHEFFIELD CITY COUNCIL        ,PLACE                         ,23014,SHEFFIELD TRADING STANDARDS   ,5750,TRAINING EXPENDITURE          ,04/04/2017,4180389,9102130691,"1,300.00",CITY OF YORK COUNCIL                    ,319430,,LOCAL GOVERNMENT              
SHEFFIELD CITY COUNCIL        ,RESOURCES                     ,18032,MOORFOOT LEARNING CENTRE      ,8490,OTHER PROFESSIONAL FEES       ,04/04/2017,4180393,15075,475.00,SMARTSTYLE TECHNOLOGY TRAINING          ,481447,,TRAINING SERVICES             
SHEFFIELD CITY COUNCIL        ,CYPF                          ,38202,OUT OF CITY GUM               ,9030,HEALTH                        ,04/04/2017,4180404,11891040,"1,282.00",DERBYSHIRE COMMUNITY HEALTH SERVICES    ,633133,,HOSPITALS                     
SHEFFIELD CITY COUNCIL        ,CYPF                          ,38202,OUT OF CITY GUM               ,9030,HEALTH                        ,04/04/2017,4180405,11891071,268.00,DERBYSHIRE COMMUNITY HEALTH SERVICES    ,633133,,HOSPITALS                     
SHEFFIELD CITY COUNCIL        ,CYPF                          ,38202,OUT OF CITY GUM               ,9030,HEALTH                        ,04/04/2017,4180410,SINV-1588                ,"2,821.00",SPECTRUM COMMUNITY HEALTH CIC           ,634533,,INSURANCE - HEALTH            
SHEFFIELD CITY COUNCIL        ,CYPF                          ,38202,OUT OF CITY GUM               ,9030,HEALTH                        ,04/04/2017,4180412,SINV-1613                ,507.00,SPECTRUM COMMUNITY HEALTH CIC           ,634533,,INSURANCE - HEALTH            
SHEFFIELD CITY COUNCIL        ,RESOURCES                     ,15138,GENERAL ADMINISTRATION        ,8020,EQUIPMENT LEASE/ RENTAL/ HIRE ,04/04/2017,4180439,8521102329,360.83,VEOLIA ES (UK) LIMITED                  ,341639,,WASTE DISPOSAL SERVICES       
SHEFFIELD CITY COUNCIL        ,COMMUNITIES                   ,42075,VOIDS & VACANCY COSTS         ,9190,EX POOL CLIENTS               ,04/04/2017,4180490,619727L1FEB01            ,"8,882.14",COMMUNITY INTEGRATED CARE               ,620703,,SOCIAL SERVICES               
SHEFFIELD CITY COUNCIL        ,POLICY PERFORMANCE AND COMMS  ,13001,PUBLIC HEALTH - DPH           ,8350,MISCELLANEOUS EXPENSES        ,04/04/2017,4180612,90217423,"1,000.00",KIER BUSINESS SERVICES                  ,440521,,BUSINESS INFORMATION SERVICES 
SHEFFIELD CITY COUNCIL        ,POLICY PERFORMANCE AND COMMS  ,13001,PUBLIC HEALTH - DPH           ,8350,MISCELLANEOUS EXPENSES        ,04/04/2017,4180613,90221975,666.68,KIER BUSINESS SERVICES                  ,440521,,BUSINESS INFORMATION SERVICES 
SHEFFIELD CITY COUNCIL        ,PLACE                         ,94010,LDV FLOOD DEFENCE WORKS       ,1194,OTHER FEES                    ,04/04/2017,4180615,3426,"5,500.00",FISHTEK LTD                             ,618923,,FISHERIES' CONSULTANTS        
SHEFFIELD CITY COUNCIL        ,POLICY PERFORMANCE AND COMMS  ,18003,COMMUNICATIONS                ,8550,ADVERTISING SERVICES          ,04/04/2017,4180618,SINV00128523             ,"2,750.00",EXTERION MEDIA (UK) LTD                 ,377941,,ADVERTISING - OUTDOOR         
SHEFFIELD CITY COUNCIL        ,POLICY PERFORMANCE AND COMMS  ,18003,COMMUNICATIONS                ,8550,ADVERTISING SERVICES          ,04/04/2017,4180619,SINV00128864             ,400.00,EXTERION MEDIA (UK) LTD                 ,377941,,ADVERTISING - OUTDOOR         
SHEFFIELD CITY COUNCIL        ,POLICY PERFORMANCE AND COMMS  ,18003,COMMUNICATIONS                ,8550,ADVERTISING SERVICES          ,04/04/2017,4180620,SINV00129031             ,"2,000.00",EXTERION MEDIA (UK) LTD                 ,377941,,ADVERTISING - OUTDOOR         
SHEFFIELD CITY COUNCIL        ,POLICY PERFORMANCE AND COMMS  ,18003,COMMUNICATIONS                ,8550,ADVERTISING SERVICES          ,04/04/2017,4180621,SINV00129277             ,330.00,EXTERION MEDIA (UK) LTD                 ,377941,,ADVERTISING - OUTDOOR         
SHEFFIELD CITY COUNCIL        ,COMMUNITIES                   ,44001,PURCHASING                    ,8470,LEGAL FEES                    ,04/04/2017,4180623,890611,400.00,MR J P A P O'BRIEN                      ,516793,,BARRISTERS                    
SHEFFIELD CITY COUNCIL        ,COMMUNITIES                   ,46039,ADULT SOCIAL CARE PURCHASING  ,8470,LEGAL FEES                    ,04/04/2017,4180624,381546,687.50,KINGS CHAMBERS                          ,567569,,LEGAL SERVICES                
SHEFFIELD CITY COUNCIL        ,COMMUNITIES                   ,46039,ADULT SOCIAL CARE PURCHASING  ,8470,LEGAL FEES                    ,04/04/2017,4180625,376377,"1,250.00",KINGS CHAMBERS                          ,567569,,LEGAL SERVICES                
SHEFFIELD CITY COUNCIL        ,CYPF                          ,39282,CARE PROCEEDINGS (LEGAL FEES) ,8470,LEGAL FEES                    ,04/04/2017,4180635,17293,445.25,FORENSIC TESTING SERVICE LTD            ,557750,,MEDICAL & DENTAL LABORATORIES 
SHEFFIELD CITY COUNCIL        ,PLACE                         ,23036,CORONIAL SERVICES             ,8100,RECHARGEABLE PURCHASES        ,04/04/2017,4181201,6011817,"11,558.40",BARNSLEY HOSPITAL NHS FT                ,308864,,HOSPITALS                     
SHEFFIELD CITY COUNCIL        ,PLACE                         ,23036,CORONIAL SERVICES             ,8100,RECHARGEABLE PURCHASES        ,04/04/2017,4181202,6012011,"8,421.12",BARNSLEY HOSPITAL NHS FT                ,308864,,HOSPITALS                     
SHEFFIELD CITY COUNCIL        ,COMMUNITIES                   ,49384,REPAIRS INSOURCING            ,8350,MISCELLANEOUS EXPENSES        ,04/04/2017,4181203,982237,"6,056.28",PICKFORDS                               ,573763,,REMOVALS - OVERSEAS           
SHEFFIELD CITY COUNCIL        ,COMMUNITIES                   ,49648,SAFER COMMUNITIES PARTNERSHIP ,9120,OTHER AGENCIES                ,04/04/2017,4181204,64635,"5,000.00",SOUTH YORKSHIRE POLICE                  ,376024,,POLICE                        
SHEFFIELD CITY COUNCIL        ,PLACE                         ,23036,CORONIAL SERVICES             ,8090,BEREAVEMENT SUPPLIES          ,04/04/2017,4181206,03-Apr-17,720.00,JOHN HEATH & SONS                       ,512922,,FUNERAL DIRECTORS             
SHEFFIELD CITY COUNCIL        ,POLICY PERFORMANCE AND COMMS  ,13001,PUBLIC HEALTH - DPH           ,8350,MISCELLANEOUS EXPENSES        ,04/04/2017,4181209,90224049,333.32,KIER BUSINESS SERVICES                  ,440521,,BUSINESS INFORMATION SERVICES 
SHEFFIELD CITY COUNCIL        ,RESOURCES                     ,11043,CAPITA CONTROL A/C            ,9620,FINANCIAL PROCESSES           ,04/04/2017,4181268,6003536404,"903,786.89",CAPITA BUSINESS SERVICES LTD            ,505663,,BUSINESS INFORMATION SERVICES 
SHEFFIELD CITY COUNCIL        ,RESOURCES                     ,12004,FINANCE LEADERSHIP TEAM       ,5750,TRAINING EXPENDITURE          ,04/04/2017,4181371,5213261,"1,800.00",CIPFA                                   ,360709,,INSTITUTES - PROFESSIONAL     
SHEFFIELD CITY COUNCIL        ,RESOURCES                     ,12004,FINANCE LEADERSHIP TEAM       ,5750,TRAINING EXPENDITURE          ,04/04/2017,4181372,5213254,"1,800.00",CIPFA                                   ,360709,,INSTITUTES - PROFESSIONAL     
SHEFFIELD CITY COUNCIL        ,RESOURCES                     ,12004,FINANCE LEADERSHIP TEAM       ,5750,TRAINING EXPENDITURE          ,04/04/2017,4181374,5213331,"2,020.00",CIPFA                                   ,360709,,INSTITUTES - PROFESSIONAL     
SHEFFIELD CITY COUNCIL        ,CYPF                          ,39357,SHORT BREAKS FUNDING FOR DISAB,9120,OTHER AGENCIES                ,04/04/2017,4181376,SI-17013                 ,"2,723.50",AMY'S HOUSE LTD                         ,513258,,CHARITIES & VOLUNTARY ORGANISA
SHEFFIELD CITY COUNCIL        ,RESOURCES                     ,12004,FINANCE LEADERSHIP TEAM       ,5750,TRAINING EXPENDITURE          ,04/04/2017,4181378,5213434,"1,862.50",CIPFA                                   ,360709,,INSTITUTES - PROFESSIONAL     
SHEFFIELD CITY COUNCIL        ,RESOURCES                     ,12004,FINANCE LEADERSHIP TEAM       ,5750,TRAINING EXPENDITURE          ,04/04/2017,4181380,5213280,"2,045.00",CIPFA                                   ,360709,,INSTITUTES - PROFESSIONAL     
SHEFFIELD CITY COUNCIL        ,RESOURCES                     ,12004,FINANCE LEADERSHIP TEAM       ,5750,TRAINING EXPENDITURE          ,04/04/2017,4181383,5213225,"2,045.00",CIPFA                                   ,360709,,INSTITUTES - PROFESSIONAL     
SHEFFIELD CITY COUNCIL        ,RESOURCES                     ,12004,FINANCE LEADERSHIP TEAM       ,5750,TRAINING EXPENDITURE          ,04/04/2017,4181386,5213270,"1,785.00",CIPFA                                   ,360709,,INSTITUTES - PROFESSIONAL     
SHEFFIELD CITY COUNCIL        ,RESOURCES                     ,12004,FINANCE LEADERSHIP TEAM       ,5750,TRAINING EXPENDITURE          ,04/04/2017,4181396,5213281,"1,785.00",CIPFA                                   ,360709,,INSTITUTES - PROFESSIONAL     
SHEFFIELD CITY COUNCIL        ,RESOURCES                     ,12004,FINANCE LEADERSHIP TEAM       ,5750,TRAINING EXPENDITURE          ,04/04/2017,4181400,5213425,"2,020.00",CIPFA                                   ,360709,,INSTITUTES - PROFESSIONAL     
SHEFFIELD CITY COUNCIL        ,RESOURCES                     ,12004,FINANCE LEADERSHIP TEAM       ,5750,TRAINING EXPENDITURE          ,04/04/2017,4181431,5213399,"2,020.00",CIPFA                                   ,360709,,INSTITUTES - PROFESSIONAL     
SHEFFIELD CITY COUNCIL        ,RESOURCES                     ,12004,FINANCE LEADERSHIP TEAM       ,5750,TRAINING EXPENDITURE          ,04/04/2017,4181432,5213258,"2,045.00",CIPFA                                   ,360709,,INSTITUTES - PROFESSIONAL     
SHEFFIELD CITY COUNCIL        ,RESOURCES                     ,12004,FINANCE LEADERSHIP TEAM       ,5750,TRAINING EXPENDITURE          ,04/04/2017,4181433,5213400,"2,020.00",CIPFA                                   ,360709,,INSTITUTES - PROFESSIONAL     
SHEFFIELD CITY COUNCIL        ,RESOURCES                     ,12004,FINANCE LEADERSHIP TEAM       ,5750,TRAINING EXPENDITURE          ,04/04/2017,4181434,5213424,930.00,CIPFA                                   ,360709,,INSTITUTES - PROFESSIONAL     
SHEFFIELD CITY COUNCIL        ,COMMUNITIES                   ,49858,MATERIALS FUND                ,8080,LIBRARY MATERIALS             ,04/04/2017,4181502,962376,"2,224.92",ASKEWS LIBRARY SERVICES LTD             ,203090,,BOOKSELLERS                   
SHEFFIELD CITY COUNCIL        ,RESOURCES                     ,11079,CORPORATE CLEANING CONTRACT   ,9620,FINANCIAL PROCESSES           ,04/04/2017,4181619,CO057891                 ,"143,925.70",CORDANT CLEANING LIMITED                ,634397,,CLEANING SERVICES - COMMERCIAL
SHEFFIELD CITY COUNCIL        ,RESOURCES                     ,15133,STANIFORTH ROAD WORKSHOPS     ,7010,ROUTINE VEHICLE REPAIR & MTCE ,04/04/2017,4181249,14463856,"1,448.79",LOOKERS FORD                            ,474939,,CAR DEALERS                   
SHEFFIELD CITY COUNCIL        ,RESOURCES                     ,16002,BIS TELECOMMS                 ,8600,MOBILE TELEPHONES - INVOICE   ,04/04/2017,4181256,JZ09451                  ,300.00,VODAFONE LTD (CORPORATE)                ,209321,,MOBILE PHONES                 
SHEFFIELD CITY COUNCIL        ,RESOURCES                     ,16002,BIS TELECOMMS                 ,8600,MOBILE TELEPHONES - INVOICE   ,04/04/2017,4181259,JZ09450                  ,300.00,VODAFONE LTD (CORPORATE)                ,209321,,MOBILE PHONES                 
SHEFFIELD CITY COUNCIL        ,RESOURCES                     ,16002,BIS TELECOMMS                 ,8600,MOBILE TELEPHONES - INVOICE   ,04/04/2017,4181262,JZ09449                  ,600.00,VODAFONE LTD (CORPORATE)                ,209321,,MOBILE PHONES                 
SHEFFIELD CITY COUNCIL        ,RESOURCES                     ,15133,STANIFORTH ROAD WORKSHOPS     ,7040,OTHER VEHICLE RUNNING COSTS   ,04/04/2017,4181263,279374,664.43,B & B TRACTORS                          ,203170,,AGRICULTURAL MACHINERY - SALES
SHEFFIELD CITY COUNCIL        ,RESOURCES                     ,15133,STANIFORTH ROAD WORKSHOPS     ,7010,ROUTINE VEHICLE REPAIR & MTCE ,04/04/2017,4181267,34396,"1,138.35",D B AUTO ELECTRICAL SUPPLIES            ,588397,,"COMMERCIAL VEHICLE SERVICING, "
SHEFFIELD CITY COUNCIL        ,RESOURCES                     ,15133,STANIFORTH ROAD WORKSHOPS     ,7010,ROUTINE VEHICLE REPAIR & MTCE ,04/04/2017,4181269,34308,"1,821.31",D B AUTO ELECTRICAL SUPPLIES            ,588397,,"COMMERCIAL VEHICLE SERVICING, "
SHEFFIELD CITY COUNCIL        ,RESOURCES                     ,15217,STADIA TECHNOLOGY PARK        ,6150,ELECTRICITY                   ,04/04/2017,4181436,600986192,367.07,BRITISH GAS BUSINESS                    ,466029,,GAS COMPANIES                 
SHEFFIELD CITY COUNCIL        ,RESOURCES                     ,15217,STADIA TECHNOLOGY PARK        ,6150,ELECTRICITY                   ,04/04/2017,4181437,600986192,379.91,BRITISH GAS BUSINESS                    ,466029,,GAS COMPANIES                 
SHEFFIELD CITY COUNCIL        ,CYPF                          ,39148,DIRECT PAYMENTS               ,9190,DIRECT PAYMENTS               ,04/04/2017,4181176,J1849322                 ,600.00,REDACTED PERSONAL DATA,556454,Social Community Care,CAREFIRST DIRECT PAYMENTS     
SHEFFIELD CITY COUNCIL        ,COMMUNITIES                   ,42034,PURCHASING LEARNING DISABILITI,9190,DIRECT PAYMENTS               ,04/04/2017,4181176,J1849322                 ,481.25,REDACTED PERSONAL DATA,556454,Social Community Care,CAREFIRST DIRECT PAYMENTS     
SHEFFIELD CITY COUNCIL        ,CYPF                          ,39148,DIRECT PAYMENTS               ,9190,DIRECT PAYMENTS               ,04/04/2017,4181177,J1849322                 ,887.68,REDACTED PERSONAL DATA,561085,Social Community Care,CAREFIRST DIRECT PAYMENTS     
SHEFFIELD CITY COUNCIL        ,COMMUNITIES                   ,42034,PURCHASING LEARNING DISABILITI,9190,DIRECT PAYMENTS               ,04/04/2017,4181179,J1849322                 ,"1,892.86",REDACTED PERSONAL DATA,591212,Social Community Care,CAREFIRST DIRECT PAYMENTS     
SHEFFIELD CITY COUNCIL        ,CYPF                          ,39148,DIRECT PAYMENTS               ,9190,DIRECT PAYMENTS               ,04/04/2017,4181180,J1849322                 ,511.92,REDACTED PERSONAL DATA,644628,Social Community Care,CAREFIRST DIRECT PAYMENTS     
SHEFFIELD CITY COUNCIL        ,COMMUNITIES                   ,44001,PURCHASING                    ,9190,CITYWIDE SPOT                 ,04/04/2017,4181181,J1743403 111216          ,393.80,RETHINK (SP)                            ,351530,,HOME SUPPORT SERVICES         
SHEFFIELD CITY COUNCIL        ,COMMUNITIES                   ,46039,ADULT SOCIAL CARE PURCHASING  ,9190,CITYWIDE SPOT                 ,04/04/2017,4181182,J1800883 050217          ,644.40,RETHINK (SP)                            ,351530,,HOME SUPPORT SERVICES         
SHEFFIELD CITY COUNCIL        ,COMMUNITIES                   ,42034,PURCHASING LEARNING DISABILITI,9190,CITYWIDE SPOT                 ,04/04/2017,4181184,29521A                   ,300.00,SPECTRUM SOCIAL CARE LTD                ,328608,,EMPLOYMENT & RECRUITMENT AGENC
SHEFFIELD CITY COUNCIL        ,COMMUNITIES                   ,42034,PURCHASING LEARNING DISABILITI,9190,CITYWIDE SPOT                 ,04/04/2017,4181185,29601,300.00,SPECTRUM SOCIAL CARE LTD                ,328608,,EMPLOYMENT & RECRUITMENT AGENC
SHEFFIELD CITY COUNCIL        ,COMMUNITIES                   ,42034,PURCHASING LEARNING DISABILITI,9190,CITYWIDE SPOT                 ,04/04/2017,4181186,29620,300.00,SPECTRUM SOCIAL CARE LTD                ,328608,,EMPLOYMENT & RECRUITMENT AGENC
SHEFFIELD CITY COUNCIL        ,COMMUNITIES                   ,42034,PURCHASING LEARNING DISABILITI,9190,CITYWIDE SPOT                 ,04/04/2017,4181187,29694,600.00,SPECTRUM SOCIAL CARE LTD                ,328608,,EMPLOYMENT & RECRUITMENT AGENC
SHEFFIELD CITY COUNCIL        ,COMMUNITIES                   ,42034,PURCHASING LEARNING DISABILITI,9240,SUPPORTED LIVING CARE         ,04/04/2017,4181188,492LJAN03                ,"48,266.31",COMMUNITY INTEGRATED CARE               ,620703,,SOCIAL SERVICES               
SHEFFIELD CITY COUNCIL        ,COMMUNITIES                   ,46039,ADULT SOCIAL CARE PURCHASING  ,9240,SUPPORTED LIVING CARE         ,04/04/2017,4181188,492LJAN03                ,"1,388.10",COMMUNITY INTEGRATED CARE               ,620703,,SOCIAL SERVICES               
SHEFFIELD CITY COUNCIL        ,COMMUNITIES                   ,44001,PURCHASING                    ,9190,CITYWIDE SPOT                 ,04/04/2017,4181190,INV02906                 ,"6,555.50",REDACTED PERSONAL DATA,569157,,HOME CARE SERVICES            
SHEFFIELD CITY COUNCIL        ,COMMUNITIES                   ,46039,ADULT SOCIAL CARE PURCHASING  ,9190,CITYWIDE SPOT                 ,04/04/2017,4181191,3059270,"1,841.80",MENCAP HOMECARE                         ,361858,,CHARITIES & VOLUNTARY ORGANISA
SHEFFIELD CITY COUNCIL        ,COMMUNITIES                   ,42034,PURCHASING LEARNING DISABILITI,9240,SUPPORTED LIVING CARE         ,04/04/2017,4181192,3146751,828.24,MENCAP HOMECARE                         ,361858,,CHARITIES & VOLUNTARY ORGANISA
SHEFFIELD CITY COUNCIL        ,COMMUNITIES                   ,42034,PURCHASING LEARNING DISABILITI,9240,SUPPORTED LIVING CARE         ,04/04/2017,4181193,3146759,"1,865.12",MENCAP HOMECARE                         ,361858,,CHARITIES & VOLUNTARY ORGANISA
SHEFFIELD CITY COUNCIL        ,COMMUNITIES                   ,42034,PURCHASING LEARNING DISABILITI,9240,SUPPORTED LIVING CARE         ,04/04/2017,4181194,3146782,"1,280.64",MENCAP HOMECARE                         ,361858,,CHARITIES & VOLUNTARY ORGANISA
SHEFFIELD CITY COUNCIL        ,COMMUNITIES                   ,42034,PURCHASING LEARNING DISABILITI,9240,SUPPORTED LIVING CARE         ,04/04/2017,4181195,3146783,828.20,MENCAP HOMECARE                         ,361858,,CHARITIES & VOLUNTARY ORGANISA
SHEFFIELD CITY COUNCIL        ,COMMUNITIES                   ,42034,PURCHASING LEARNING DISABILITI,9240,FUNDED NURSING CARE (IN       ,04/04/2017,4181196,3147852,"1,777.44",MENCAP HOMECARE                         ,361858,,CHARITIES & VOLUNTARY ORGANISA
SHEFFIELD CITY COUNCIL        ,COMMUNITIES                   ,42034,PURCHASING LEARNING DISABILITI,9190,CITYWIDE SPOT                 ,04/04/2017,4181198,29305,600.00,SPECTRUM SOCIAL CARE LTD                ,328608,,EMPLOYMENT & RECRUITMENT AGENC
SHEFFIELD CITY COUNCIL        ,COMMUNITIES                   ,42034,PURCHASING LEARNING DISABILITI,9200,CONTINUING RESIDENTIAL CARE   ,04/04/2017,4181171,J1806557 260317          ,"7,376.84",SENSE NORTH                             ,437084,,CHARITIES & VOLUNTARY ORGANISA
SHEFFIELD CITY COUNCIL        ,COMMUNITIES                   ,46039,ADULT SOCIAL CARE PURCHASING  ,4260,RESIDENTIAL COSTS RECOVERED   ,04/04/2017,4181172,J1838263 260317          ,"1,991.33",HORIZON CARE HOMES LTD WOOD HILL GRANGE ,552397,,RESIDENTIAL CARE HOMES        
SHEFFIELD CITY COUNCIL        ,COMMUNITIES                   ,46039,ADULT SOCIAL CARE PURCHASING  ,9200,CONTINUING RESIDENTIAL CARE   ,04/04/2017,4181173,J1841445 230417          ,"1,572.00",KNIGHTINGALE CARE LTD                   ,633697,,RESIDENTIAL CARE HOMES        
SHEFFIELD CITY COUNCIL        ,COMMUNITIES                   ,46039,ADULT SOCIAL CARE PURCHASING  ,9200,CONTINUING RESIDENTIAL CARE   ,04/04/2017,4181174,J1841599 230417          ,"1,712.00",MEADOW SANDS                            ,417909,,RESIDENTIAL CARE HOMES        
SHEFFIELD CITY COUNCIL        ,COMMUNITIES                   ,46039,ADULT SOCIAL CARE PURCHASING  ,9200,CONTINUING RESIDENTIAL CARE   ,04/04/2017,4181175,J1841637 230417          ,"11,639.00",HORIZON CARE HOMES LTD WOOD HILL GRANGE ,552397,,RESIDENTIAL CARE HOMES        
SHEFFIELD CITY COUNCIL        ,COMMUNITIES                   ,46039,ADULT SOCIAL CARE PURCHASING  ,9210,CONTINUING NURSING CARE       ,04/04/2017,4181175,J1841637 230417          ,"20,072.79",HORIZON CARE HOMES LTD WOOD HILL GRANGE ,552397,,RESIDENTIAL CARE HOMES        
SHEFFIELD CITY COUNCIL        ,RESOURCES                     ,19347,CLAIMS                        ,8740,EMPLOYERS LIABILITY           ,05/04/2017,4182119,ERS INVOICE153351        ,"238,029.00",IRWIN MITCHELL SOLICITORS               ,318760,,SOLICITORS                    
SHEFFIELD CITY COUNCIL        ,RESOURCES                     ,19347,CLAIMS                        ,8740,MOTOR VEHICLE                 ,05/04/2017,4182155,ERS INVOICE153390        ,425.40,ROBERTS MOTOR BODIES LTD                ,442639,,CAR BODY REPAIRS              
SHEFFIELD CITY COUNCIL        ,RESOURCES                     ,19347,CLAIMS                        ,8740,MOTOR VEHICLE                 ,05/04/2017,4182159,ERS INVOICE153400        ,811.00,AUXILLIS LIMITED                        ,489456,,CAR RENTAL                    
SHEFFIELD CITY COUNCIL        ,RESOURCES                     ,19347,CLAIMS                        ,8740,PUBLIC LIABILITY              ,05/04/2017,4182160,ERS INVOICE153401        ,"3,324.00",DEPARTMENT FOR WORK & PENSIONS          ,326920,,CENTRAL GOVERNMENT            
SHEFFIELD CITY COUNCIL        ,RESOURCES                     ,19347,CLAIMS                        ,8740,MOTOR VEHICLE                 ,05/04/2017,4182161,ERS INVOICE153402        ,934.50, AVIVA                                  ,549280,Unclassified Non Trade,OUT OF SCOPE FOR SIC MONITORIN
SHEFFIELD CITY COUNCIL        ,CYPF                          ,36026,SCHOOL MEALS                  ,8140,GROCERIES                     ,05/04/2017,4182242,ERS INVOICE153410        ,441.00,REDACTED PERSONAL DATA,543585,Unclassified Non Trade,OUT OF SCOPE FOR SIC MONITORIN
SHEFFIELD CITY COUNCIL        ,COMMUNITIES                   ,46010,REVIEW & REASSESSMENT 3       ,5750,TRAINING EXPENDITURE          ,05/04/2017,4161380,INV0150676               ,"1,033.60",ACTION ON HEARING LOSS                  ,315711,,CHARITIES & VOLUNTARY ORGANISA
SHEFFIELD CITY COUNCIL        ,COMMUNITIES                   ,42015,SHORT BREAKS                  ,8060,MATERIALS AND SUPPLIES GENERAL,05/04/2017,4166703,38588,587.04,BLU                                     ,203403,,TOWEL SUPPLY & WASHROOM SERVIC
SHEFFIELD CITY COUNCIL        ,CYPF                          ,39357,SHORT BREAKS FUNDING FOR DISAB,9120,OTHER AGENCIES                ,05/04/2017,4172925,SNIP05                   ,329.25,PLAY IN DORE - N HAQ TA                 ,622976,,PLAYGROUPS & PRE-SCHOOL EDUCAT
SHEFFIELD CITY COUNCIL        ,PLACE                         ,22049,ENERGY -SCHEME                ,6150,ELECTRICITY - INVOICE         ,05/04/2017,4175321,2714-019                 ,"108,747.13",NPOWER NORTHERN LTD                     ,207191,,ELECTRICITY COMPANIES         
SHEFFIELD CITY COUNCIL        ,PLACE                         ,21310,SHEAF SQUARE/HOWARD ST        ,6370,GROUNDS MTCE AND ARBORICULTURE,05/04/2017,4176234,SI-166914                ,638.02,TOTAL POOL CHEMICALS LTD                ,552673,,CHEMICALS - DISTRIBUTORS & WHO
SHEFFIELD CITY COUNCIL        ,PLACE                         ,94085,WASTE MGMT DEVELOPMENT        ,1193,CONSULTANTS FEES              ,05/04/2017,4176820,1497184,"53,132.50",BEVAN BRITTAN LLP                       ,531236,,SOLICITORS                    
SHEFFIELD CITY COUNCIL        ,RESOURCES                     ,18051,BUSINESS SUPPORT              ,8390,STATIONERY                    ,05/04/2017,4177143,6901051000,372.23,LYRECO UK LTD                           ,593417,,OFFICE FURNITURE & EQUIPMENT  
SHEFFIELD CITY COUNCIL        ,COMMUNITIES                   ,49315,SOUTH SHEFFIELD               ,8010,ESTATES EQUIP PURCHASE & REPAI,05/04/2017,4177187,929519552/929676956      ,569.03,ARCO LTD                                ,203022,,SAFETY EQUIPMENT & CLOTHING   
SHEFFIELD CITY COUNCIL        ,CYPF                          ,33072,NLDC AUG 16 - JUL 17          ,9120,OTHER AGENCIES                ,05/04/2017,4177188,SOARCO/2720              ,"10,500.00",SOAR                                    ,413073,,EDUCATIONAL TRAINING PROVIDERS
SHEFFIELD CITY COUNCIL        ,COMMUNITIES                   ,49869,SUPPLIES & SERVICES           ,6080,CONTRACT CLEANING             ,05/04/2017,4177465,SN2608228                ,307.68,BERENDSEN UK LTD                        ,330548,,LINEN HIRE SERVICES           
SHEFFIELD CITY COUNCIL        ,RESOURCES                     ,15139,TRANSPORT FLEET MANAGEMENT    ,7030,VEHICLE EXCISE DUTY/OP LICENCE,05/04/2017,4178434,21117635,285.00,T C HARRISON FORD                       ,377837,,CAR DEALERS                   
SHEFFIELD CITY COUNCIL        ,RESOURCES                     ,15139,TRANSPORT FLEET MANAGEMENT    ,7060,EXTERNAL VEHICLE HIRE         ,05/04/2017,4178434,21117635,"22,866.20",T C HARRISON FORD                       ,377837,,CAR DEALERS                   
SHEFFIELD CITY COUNCIL        ,RESOURCES                     ,15139,TRANSPORT FLEET MANAGEMENT    ,7030,VEHICLE EXCISE DUTY/OP LICENCE,05/04/2017,4178440,21117636,285.00,T C HARRISON FORD                       ,377837,,CAR DEALERS                   
SHEFFIELD CITY COUNCIL        ,RESOURCES                     ,15139,TRANSPORT FLEET MANAGEMENT    ,7060,EXTERNAL VEHICLE HIRE         ,05/04/2017,4178440,21117636,"22,866.20",T C HARRISON FORD                       ,377837,,CAR DEALERS                   
SHEFFIELD CITY COUNCIL        ,CYPF                          ,33141,CITY DEAL                     ,8440,FEE EXPENSES                  ,05/04/2017,4178450,SL0072005                ,477.65,SYPTE                                   ,599106,,BUS & COACH OPERATORS & STATIO
SHEFFIELD CITY COUNCIL        ,CYPF                          ,33128,ESA PATHWAY PILOT             ,9120,OTHER AGENCIES                ,05/04/2017,4178766,3507,"2,850.00",MANOR & CASTLE DEVELOPMENT TRUST        ,314473,,CHARITIES & VOLUNTARY ORGANISA
SHEFFIELD CITY COUNCIL        ,PLACE                         ,97147,ADAPTATIONS                   ,1157,DWELLINGS MAIN CONTRACT       ,05/04/2017,4178946,SIP-177269               ,"2,606.86",THYSSENKRUPP ENCASA                     ,627802,,LIFT MNFRS                    
SHEFFIELD CITY COUNCIL        ,PLACE                         ,97147,ADAPTATIONS                   ,1157,DWELLINGS MAIN CONTRACT       ,05/04/2017,4178948,SIP-177309               ,"1,192.55",THYSSENKRUPP ENCASA                     ,627802,,LIFT MNFRS                    
SHEFFIELD CITY COUNCIL        ,CYPF                          ,33128,ESA PATHWAY PILOT             ,9120,OTHER AGENCIES                ,05/04/2017,4179045,3663,"2,850.00",ZEST                                    ,492467,,CHARITIES & VOLUNTARY ORGANISA
SHEFFIELD CITY COUNCIL        ,CYPF                          ,33112,LDD PLACEMENTS AUG16-JUL17    ,9120,OTHER AGENCIES                ,05/04/2017,4179061,27385,490.20,NORTHERN TAXIS LIMITED                  ,301182,,TAXIS & PRIVATE HIRE          
SHEFFIELD CITY COUNCIL        ,CYPF                          ,36068,SEN DEVELOPMENT GRANT         ,8440,FEE EXPENSES                  ,05/04/2017,4179068,350009576,"19,385.91",DEPARTMENT FOR EDUCATION & EMPLOYMENT   ,370598,,CHARITIES & VOLUNTARY ORGANISA
SHEFFIELD CITY COUNCIL        ,CYPF                          ,33112,LDD PLACEMENTS AUG16-JUL17    ,9120,OTHER AGENCIES                ,05/04/2017,4179075,NR007                    ,540.00,ONBOARD SHEFFIELD SKATEPARK             ,598407,Unclassified Non Trade,OUT OF SCOPE FOR SIC MONITORIN
SHEFFIELD CITY COUNCIL        ,CYPF                          ,33112,LDD PLACEMENTS AUG16-JUL17    ,9120,OTHER AGENCIES                ,05/04/2017,4179077,NR008                    ,540.00,ONBOARD SHEFFIELD SKATEPARK             ,598407,Unclassified Non Trade,OUT OF SCOPE FOR SIC MONITORIN
SHEFFIELD CITY COUNCIL        ,RESOURCES                     ,15139,TRANSPORT FLEET MANAGEMENT    ,7060,EXTERNAL VEHICLE HIRE         ,05/04/2017,4179138,21117351,"19,653.20",T C HARRISON FORD                       ,377837,,CAR DEALERS                   
SHEFFIELD CITY COUNCIL        ,PLACE                         ,24410,THE MOOR INDOOR MARKET        ,6030,REPAIRS AND MTCE - RESPONSIVE ,05/04/2017,4179188,I457114                  ,"3,076.60",RADFORD HMY GROUP LTD                   ,574860,,STORAGE & SHELVING SYSTEMS MNF
SHEFFIELD CITY COUNCIL        ,CYPF                          ,39282,CARE PROCEEDINGS (LEGAL FEES) ,8470,LEGAL FEES                    ,05/04/2017,4179192,1008439,600.00,REDACTED PERSONAL DATA,487888,,BARRISTERS                    
SHEFFIELD CITY COUNCIL        ,CYPF                          ,39282,CARE PROCEEDINGS (LEGAL FEES) ,8470,LEGAL FEES                    ,05/04/2017,4179194,1037614,600.00,REDACTED PERSONAL DATA,544033,,BARRISTERS                    
SHEFFIELD CITY COUNCIL        ,CYPF                          ,39282,CARE PROCEEDINGS (LEGAL FEES) ,8470,LEGAL FEES                    ,05/04/2017,4179195,1022359,600.00,REDACTED PERSONAL DATA,486218,,BARRISTERS                    
SHEFFIELD CITY COUNCIL        ,CYPF                          ,39282,CARE PROCEEDINGS (LEGAL FEES) ,8470,LEGAL FEES                    ,05/04/2017,4179196,1029460,600.00,REDACTED PERSONAL DATA,486218,,BARRISTERS                    
SHEFFIELD CITY COUNCIL        ,CYPF                          ,39282,CARE PROCEEDINGS (LEGAL FEES) ,8470,LEGAL FEES                    ,05/04/2017,4179199,1035658,600.00,KATE MORLEY                             ,599526,,BARRISTERS                    
SHEFFIELD CITY COUNCIL        ,CYPF                          ,39282,CARE PROCEEDINGS (LEGAL FEES) ,8470,LEGAL FEES                    ,05/04/2017,4179200,999184,600.00,JUSTINE COLE                            ,594124,,BARRISTERS                    
SHEFFIELD CITY COUNCIL        ,PLACE                         ,25051,PLAYGROUND MAINTENANCE & INSPE,8010,EQUIPMENT PURCHASE AND REPAIR ,05/04/2017,4179221,KBI1283                  ,"1,093.80",KB INDUSTRIES UK LTD                    ,642288,,PAVING & DRIVEWAY CONTRACTORS 
SHEFFIELD CITY COUNCIL        ,COMMUNITIES                   ,46006,REVIEW & REASSESSMENT 1       ,8350,MISCELLANEOUS EXPENSES        ,05/04/2017,4179224,CBK0071                  ,275.00,SKILLS FOR CARE LTD (PROFILE 1)         ,547957,,EDUCATIONAL TRAINING PROVIDERS
SHEFFIELD CITY COUNCIL        ,POLICY PERFORMANCE AND COMMS  ,18003,COMMUNICATIONS                ,8550,ADVERTISING SERVICES          ,05/04/2017,4180252,855-38923                ,"5,224.77",GALT SIGNS LTD T/A FASTSIGNS            ,204826,,SIGNS & NAMEPLATES            
SHEFFIELD CITY COUNCIL        ,POLICY PERFORMANCE AND COMMS  ,18003,COMMUNICATIONS                ,8550,ADVERTISING SERVICES          ,05/04/2017,4180254,855-38845                ,"5,762.90",GALT SIGNS LTD T/A FASTSIGNS            ,204826,,SIGNS & NAMEPLATES            
SHEFFIELD CITY COUNCIL        ,CYPF                          ,33112,LDD PLACEMENTS AUG16-JUL17    ,9120,OTHER AGENCIES                ,05/04/2017,4180340,535,829.09,THE RIVA CLUB                           ,518620,,"CLUBS & ASSOCIATIONS - SOCIAL,"
SHEFFIELD CITY COUNCIL        ,COMMUNITIES                   ,49852,SCHOOLS LIBRARY SERVICE       ,8080,LIBRARY MATERIALS             ,05/04/2017,4180368,1634293,"1,404.90",PETERS LTD                              ,312836,,BOOKSELLERS                   
SHEFFIELD CITY COUNCIL        ,RESOURCES                     ,15139,TRANSPORT FLEET MANAGEMENT    ,8070,STOCKS AND STORES             ,05/04/2017,4180416,I09165587                ,"13,276.20",WFL (UK) LTD HALL FUELS                 ,633989,,FUEL DEALERS                  
SHEFFIELD CITY COUNCIL        ,RESOURCES                     ,15139,TRANSPORT FLEET MANAGEMENT    ,8070,STOCKS AND STORES             ,05/04/2017,4180418,I09165586                ,"7,109.41",WFL (UK) LTD HALL FUELS                 ,633989,,FUEL DEALERS                  
SHEFFIELD CITY COUNCIL        ,RESOURCES                     ,15139,TRANSPORT FLEET MANAGEMENT    ,8070,STOCKS AND STORES             ,05/04/2017,4180419,I09172722                ,"4,683.00",WFL (UK) LTD HALL FUELS                 ,633989,,FUEL DEALERS                  
SHEFFIELD CITY COUNCIL        ,COMMUNITIES                   ,49852,SCHOOLS LIBRARY SERVICE       ,8080,LIBRARY MATERIALS             ,05/04/2017,4180420,1634267,"1,435.80",PETERS LTD                              ,312836,,BOOKSELLERS                   
SHEFFIELD CITY COUNCIL        ,COMMUNITIES                   ,49852,SCHOOLS LIBRARY SERVICE       ,8080,LIBRARY MATERIALS             ,05/04/2017,4180422,1634151,510.50,PETERS LTD                              ,312836,,BOOKSELLERS                   
SHEFFIELD CITY COUNCIL        ,RESOURCES                     ,15139,TRANSPORT FLEET MANAGEMENT    ,7020,VEHICLE FUEL COSTS            ,05/04/2017,4180436,3091744,371.75,FLOGAS UK LIMITED                       ,442962,,GAS SUPPLIERS                 
SHEFFIELD CITY COUNCIL        ,RESOURCES                     ,15237,MANOR LANE                    ,8540,SECURITY SERVICES             ,05/04/2017,4180446,1601,779.00,PROFORCE SECURITY SERVICES LIMITED      ,582922,,SECURITY SERVICES             
SHEFFIELD CITY COUNCIL        ,RESOURCES                     ,15237,MANOR LANE                    ,8540,SECURITY SERVICES             ,05/04/2017,4180447,1619,722.00,PROFORCE SECURITY SERVICES LIMITED      ,582922,,SECURITY SERVICES             
SHEFFIELD CITY COUNCIL        ,RESOURCES                     ,15237,MANOR LANE                    ,8540,SECURITY SERVICES             ,05/04/2017,4180448,1577,845.50,PROFORCE SECURITY SERVICES LIMITED      ,582922,,SECURITY SERVICES             
SHEFFIELD CITY COUNCIL        ,RESOURCES                     ,15237,MANOR LANE                    ,8540,SECURITY SERVICES             ,05/04/2017,4180449,1548,779.00,PROFORCE SECURITY SERVICES LIMITED      ,582922,,SECURITY SERVICES             
SHEFFIELD CITY COUNCIL        ,RESOURCES                     ,15237,MANOR LANE                    ,8540,SECURITY SERVICES             ,05/04/2017,4180450,1646,807.50,PROFORCE SECURITY SERVICES LIMITED      ,582922,,SECURITY SERVICES             
SHEFFIELD CITY COUNCIL        ,POLICY PERFORMANCE AND COMMS  ,18003,COMMUNICATIONS                ,8550,ADVERTISING SERVICES          ,05/04/2017,4180481,58720,"1,280.00",LIMELIGHT PUBLICITY                     ,641479,,PROMOTIONAL ITEMS             
SHEFFIELD CITY COUNCIL        ,CYPF                          ,39282,CARE PROCEEDINGS (LEGAL FEES) ,8470,LEGAL FEES                    ,05/04/2017,4180626,1037908,600.00,REDACTED PERSONAL DATA,487888,,BARRISTERS                    
SHEFFIELD CITY COUNCIL        ,CYPF                          ,39282,CARE PROCEEDINGS (LEGAL FEES) ,8470,LEGAL FEES                    ,05/04/2017,4180641,1038589,600.00,REDACTED PERSONAL DATA,487888,,BARRISTERS                    
SHEFFIELD CITY COUNCIL        ,RESOURCES                     ,15139,TRANSPORT FLEET MANAGEMENT    ,8070,STOCKS AND STORES             ,05/04/2017,4181078,I09182565                ,"13,974.00",WFL (UK) LTD HALL FUELS                 ,633989,,FUEL DEALERS                  
SHEFFIELD CITY COUNCIL        ,COMMUNITIES                   ,47009,MINOR WORKS & ADAPTATIONS     ,6030,REPAIRS AND MTCE - RESPONSIVE ,05/04/2017,4181215,14386,346.00,SIMPSON PATTERNS T/A T & T CONSTRUCTION ,208772,,CONSTRUCTION CONTRACTORS - GEN
SHEFFIELD CITY COUNCIL        ,POLICY PERFORMANCE AND COMMS  ,19005,SHEFFIELD FIRST PARTNERSHIP   ,8370,PRINTING                      ,05/04/2017,4181221,ACI06030                 ,"2,500.00",SHEFFIELD HALLAM UNIVERSITY             ,301311,,UNIVERSITIES & MEDICAL SCHOOLS
SHEFFIELD CITY COUNCIL        ,RESOURCES                     ,18032,MOORFOOT LEARNING CENTRE      ,8040,LEARNING RESOURCES            ,05/04/2017,4181228,SFASI-00518799           ,815.00,SAFETY FIRST AID GROUP LTD              ,299942,,FIRST AID & MEDICAL SUPPLIES  
SHEFFIELD CITY COUNCIL        ,CYPF                          ,33107,POST 16 HIGH NEEDS SEND       ,9120,OTHER AGENCIES                ,05/04/2017,4181242,INV-7199                 ,"3,150.00",LANDMARKS                               ,638059,,EDUCATIONAL TRAINING PROVIDERS
SHEFFIELD CITY COUNCIL        ,CYPF                          ,39282,CARE PROCEEDINGS (LEGAL FEES) ,8470,LEGAL FEES                    ,05/04/2017,4181350,1030646,600.00,KATE MORLEY                             ,599526,,BARRISTERS                    
SHEFFIELD CITY COUNCIL        ,COMMUNITIES                   ,49852,SCHOOLS LIBRARY SERVICE       ,8080,LIBRARY MATERIALS             ,05/04/2017,4181355,1634702,270.05,PETERS LTD                              ,312836,,BOOKSELLERS                   
SHEFFIELD CITY COUNCIL        ,RESOURCES                     ,18034,HR LEADERSHIP                 ,5750,TRAINING EXPENDITURE          ,05/04/2017,4181359,SCC0101317               ,"3,000.00",ROBERTSON HRC LIMITED                   ,641161,,BUSINESS & MANAGEMENT CONSULTA
SHEFFIELD CITY COUNCIL        ,POLICY PERFORMANCE AND COMMS  ,18003,COMMUNICATIONS                ,8550,ADVERTISING SERVICES          ,05/04/2017,4181384,58734,517.80,LIMELIGHT PUBLICITY                     ,641479,,PROMOTIONAL ITEMS             
SHEFFIELD CITY COUNCIL        ,CYPF                          ,33128,ESA PATHWAY PILOT             ,9120,OTHER AGENCIES                ,05/04/2017,4181395,3664,566.00,ZEST                                    ,492467,,CHARITIES & VOLUNTARY ORGANISA
SHEFFIELD CITY COUNCIL        ,CYPF                          ,39513,CITY WIDE SEN                 ,9050,OTHER LOCAL AUTHORITIES       ,05/04/2017,4181413,1.00E+17,"2,428.00",DERBYSHIRE COUNTY COUNCIL               ,299578,,LOCAL GOVERNMENT              
SHEFFIELD CITY COUNCIL        ,PLACE                         ,28109,CORPORATE CS MGT              ,8460,CONSULTANTS FEES              ,05/04/2017,4181416,S1592                    ,"4,382.12",EKOSGEN                                 ,620715,,BUSINESS & MANAGEMENT CONSULTA
SHEFFIELD CITY COUNCIL        ,COMMUNITIES                   ,46006,REVIEW & REASSESSMENT 1       ,8350,MISCELLANEOUS EXPENSES        ,05/04/2017,4181419,CBK528                   ,368.14,SKILLS FOR CARE LTD (PROFILE 1)         ,547957,,EDUCATIONAL TRAINING PROVIDERS
SHEFFIELD CITY COUNCIL        ,COMMUNITIES                   ,47009,MINOR WORKS & ADAPTATIONS     ,6030,REPAIRS AND MTCE - RESPONSIVE ,05/04/2017,4181427,OP/I122660               ,255.00,TOTAL HYGIENE LTD                       ,209091,,DISABILITY EQUIPMENT - MNFRS &
SHEFFIELD CITY COUNCIL        ,PLACE                         ,28200,BUSINESS CONFERENCING         ,8250,MARKETING EXPENSES            ,05/04/2017,4181428,FDI12499                 ,765.69,SHEFFIELD HALLAM UNIVERSITY             ,449854,,UNIVERSITIES & MEDICAL SCHOOLS
SHEFFIELD CITY COUNCIL        ,COMMUNITIES                   ,44001,PURCHASING                    ,8490,OTHER PROFESSIONAL FEES       ,05/04/2017,4181448,2100103640,"6,995.00",SHEFFIELD HEALTH & SOCIAL CARE NHS      ,353994,,HOSPITALS                     
SHEFFIELD CITY COUNCIL        ,PLACE                         ,28100,BUSINESS GROWTH TEAM          ,8240,CONFERENCE EXPENSES           ,05/04/2017,4181501,373963A                  ,933.33,PARK VICTORIA QUAYS LESSEE TA HILTON    ,301401,,HOTELS                        
SHEFFIELD CITY COUNCIL        ,RESOURCES                     ,15138,GENERAL ADMINISTRATION        ,5750,TRAINING EXPENDITURE          ,05/04/2017,4181513,15991,550.00,DONCASTER ROTH & DIST (MOTOR TRADES)GTA ,204434,,TRAINING CENTRES              
SHEFFIELD CITY COUNCIL        ,PLACE                         ,28107,STRATEGY AND SKILLS           ,8440,FEE EXPENSES                  ,05/04/2017,4181514,C082                     ,"4,941.07",EKOSGEN                                 ,620715,,BUSINESS & MANAGEMENT CONSULTA
SHEFFIELD CITY COUNCIL        ,PLACE                         ,22232,BUILDING STANDARDS            ,8620,COMPUTER SOFTWARE LICENCES    ,05/04/2017,4181528,7014932,"2,500.00",IDOX SOFTWARE LTD                       ,596300,,COMPUTER SYSTEMS & SOFTWARE (D
SHEFFIELD CITY COUNCIL        ,PLACE                         ,28100,BUSINESS GROWTH TEAM          ,8240,CONFERENCE EXPENSES           ,05/04/2017,4181533,Jul-17,"1,020.00",CUBANA                                  ,444797,,RESTAURANTS                   
SHEFFIELD CITY COUNCIL        ,POLICY PERFORMANCE AND COMMS  ,17003,ELECTORAL REGISTRATION        ,8400,PUBLICATIONS AND PERIODICALS  ,05/04/2017,4181603,802071140,408.00,THOMSON REUTERS                         ,340190,,INFORMATION SERVICES          
SHEFFIELD CITY COUNCIL        ,COMMUNITIES                   ,49384,REPAIRS INSOURCING            ,5610,AGENCY STAFF                  ,05/04/2017,4181614,CJ1064/00                ,"1,337.50",BADENOCH AND CLARK LTD                  ,634019,,EMPLOYMENT & RECRUITMENT AGENC
SHEFFIELD CITY COUNCIL        ,CYPF                          ,33107,POST 16 HIGH NEEDS SEND       ,9120,OTHER AGENCIES                ,05/04/2017,4181679,16730,588.82,DONCASTER DEAF TRUST                    ,564762,,CHARITIES & VOLUNTARY ORGANISA
SHEFFIELD CITY COUNCIL        ,RESOURCES                     ,17107,MANAGEMENT & SUPPORT SERVICES ,5750,TRAINING EXPENDITURE          ,05/04/2017,4181920,3824,349.00,LLG LEGAL TRAINING                      ,206402,,TRAINING SERVICES             
SHEFFIELD CITY COUNCIL        ,CYPF                          ,39357,SHORT BREAKS FUNDING FOR DISAB,9120,OTHER AGENCIES                ,05/04/2017,4182056,HLT-SI101016             ,313.58,7 HILLS LEISURE TRUST                   ,566500,,SPORTS GROUND & STADIUM CONTRA
SHEFFIELD CITY COUNCIL        ,RESOURCES                     ,15133,STANIFORTH ROAD WORKSHOPS     ,7010,ROUTINE VEHICLE REPAIR & MTCE ,05/04/2017,4181914,32543,350.00,SHEPCOTE ENGINEERING LTD                ,208412,,ENGINEERS - GENERAL           
SHEFFIELD CITY COUNCIL        ,COMMUNITIES                   ,49173, COMMERCIAL PROPERTIES        ,6210,GROUND RENTS                  ,05/04/2017,4182238,HANDSWORTH NURSERIES     ,501.25,COPPEN (ESTATES) LTD                    ,204088,,ESTATE AGENTS                 
SHEFFIELD CITY COUNCIL        ,COMMUNITIES                   ,46039,ADULT SOCIAL CARE PURCHASING  ,9190,BLOCK CONTRACT                ,05/04/2017,4181834,J1730998 131116          ,"14,534.92",REDACTED PERSONAL DATA,563889,,EMPLOYMENT & RECRUITMENT AGENC
SHEFFIELD CITY COUNCIL        ,COMMUNITIES                   ,42034,PURCHASING LEARNING DISABILITI,9250,INDEPENDENT DAY CARE          ,05/04/2017,4181840,2398,"2,269.72",CAMPHILL VILLAGE TRUST                  ,361868,,CHARITIES & VOLUNTARY ORGANISA
SHEFFIELD CITY COUNCIL        ,COMMUNITIES                   ,42034,PURCHASING LEARNING DISABILITI,9240,SUPPORTED LIVING CARE         ,05/04/2017,4181843,387678,499.10,UNITED RESPONSE                         ,329604,,CHARITIES & VOLUNTARY ORGANISA
SHEFFIELD CITY COUNCIL        ,COMMUNITIES                   ,42034,PURCHASING LEARNING DISABILITI,9240,SUPPORTED LIVING CARE         ,05/04/2017,4181845,387680,405.00,UNITED RESPONSE                         ,329604,,CHARITIES & VOLUNTARY ORGANISA
SHEFFIELD CITY COUNCIL        ,COMMUNITIES                   ,42034,PURCHASING LEARNING DISABILITI,9240,SUPPORTED LIVING CARE         ,05/04/2017,4181846,387687,313.38,UNITED RESPONSE                         ,329604,,CHARITIES & VOLUNTARY ORGANISA
SHEFFIELD CITY COUNCIL        ,COMMUNITIES                   ,42034,PURCHASING LEARNING DISABILITI,9190,CITYWIDE SPOT                 ,05/04/2017,4181849,387694,312.43,UNITED RESPONSE                         ,329604,,CHARITIES & VOLUNTARY ORGANISA
SHEFFIELD CITY COUNCIL        ,COMMUNITIES                   ,42034,PURCHASING LEARNING DISABILITI,9240,SUPPORTED LIVING CARE         ,05/04/2017,4181851,387697,397.00,UNITED RESPONSE                         ,329604,,CHARITIES & VOLUNTARY ORGANISA
SHEFFIELD CITY COUNCIL        ,COMMUNITIES                   ,42034,PURCHASING LEARNING DISABILITI,9240,SUPPORTED LIVING CARE         ,05/04/2017,4181859,387716,318.21,UNITED RESPONSE                         ,329604,,CHARITIES & VOLUNTARY ORGANISA
SHEFFIELD CITY COUNCIL        ,COMMUNITIES                   ,44001,PURCHASING                    ,9190,CITYWIDE SPOT                 ,05/04/2017,4181866,INV29179                 ,339.60,ST ANNE'S COMMUNITY SERVICES            ,351501,,HOME SUPPORT SERVICES         
SHEFFIELD CITY COUNCIL        ,CYPF                          ,39284,INDEPENDENT FOSTER PLACE U16  ,9270,INDEPENDENT FOSTERING         ,05/04/2017,4181793,021715797XM              ,"3,300.08",ORANGE GROVE FOSTERCARE LTD             ,481506,,RESIDENTIAL CARE HOMES        
SHEFFIELD CITY COUNCIL        ,RESOURCES                     ,1,SCC BALANCE SHEET             ,1780,ERROR SUSPENSE CARE FIRST     ,05/04/2017,4181794,02171638CO               ,"1,592.73",ORANGE GROVE FOSTERCARE LTD             ,481506,,RESIDENTIAL CARE HOMES        
SHEFFIELD CITY COUNCIL        ,CYPF                          ,39284,INDEPENDENT FOSTER PLACE U16  ,9270,INDEPENDENT FOSTERING         ,05/04/2017,4181795,021748249JW              ,"3,010.00",ORANGE GROVE FOSTERCARE LTD             ,481506,,RESIDENTIAL CARE HOMES        
SHEFFIELD CITY COUNCIL        ,RESOURCES                     ,1,SCC BALANCE SHEET             ,1780,ERROR SUSPENSE CARE FIRST     ,05/04/2017,4181796,198349,829.99,REDACTED PERSONAL DATA,349291,,ADOPTION & FOSTERING          
SHEFFIELD CITY COUNCIL        ,CYPF                          ,39284,INDEPENDENT FOSTER PLACE U16  ,9270,INDEPENDENT FOSTERING         ,05/04/2017,4181797,198350,794.99,REDACTED PERSONAL DATA,349291,,ADOPTION & FOSTERING          
SHEFFIELD CITY COUNCIL        ,CYPF                          ,39284,INDEPENDENT FOSTER PLACE U16  ,9270,INDEPENDENT FOSTERING         ,05/04/2017,4181798,217A309335CR             ,"3,174.00",REDACTED PERSONAL DATA,366456,,ADOPTION & FOSTERING          
SHEFFIELD CITY COUNCIL        ,RESOURCES                     ,1,SCC BALANCE SHEET             ,1780,ERROR SUSPENSE CARE FIRST     ,05/04/2017,4181799,59,"3,240.00",SAFE BASE FOSTERING LTD                 ,637889,,ADOPTION & FOSTERING          
SHEFFIELD CITY COUNCIL        ,CYPF                          ,39284,INDEPENDENT FOSTER PLACE U16  ,9270,INDEPENDENT FOSTERING         ,05/04/2017,4181800,60,"4,800.00",SAFE BASE FOSTERING LTD                 ,637889,,ADOPTION & FOSTERING          
SHEFFIELD CITY COUNCIL        ,CYPF                          ,39428,INDEPENDENT RES PLACEMENTS U16,9270,INDEPENDENT RESIDENTIAL PMENT ,05/04/2017,4181801,2110,"4,600.00",QUALITY PROTECTS CHILDREN LTD           ,420011,,CHILDREN'S HOMES              
SHEFFIELD CITY COUNCIL        ,CYPF                          ,39405,SEMI INDEPENDENT LIVING       ,9270,CARELEAVERS ACCOMMODATION     ,05/04/2017,4181802,328733C                  ,"1,271.33",REDACTED PERSONAL DATA,587884,Unclassified Non Trade,OUT OF SCOPE FOR SIC MONITORIN
SHEFFIELD CITY COUNCIL        ,CYPF                          ,39266,CIN NRTPF                     ,9270,CARELEAVERS ACCOMMODATION     ,05/04/2017,4181804,4488,320.95,EARL MARSHALL GUEST HOUSE LTD           ,391589,,GUEST HOUSES                  
SHEFFIELD CITY COUNCIL        ,CYPF                          ,39266,CIN NRTPF                     ,9270,CARELEAVERS ACCOMMODATION     ,05/04/2017,4181805,4489,460.00,EARL MARSHALL GUEST HOUSE LTD           ,391589,,GUEST HOUSES                  
SHEFFIELD CITY COUNCIL        ,CYPF                          ,39266,CIN NRTPF                     ,9270,CARELEAVERS ACCOMMODATION     ,05/04/2017,4181806,4490,396.90,EARL MARSHALL GUEST HOUSE LTD           ,391589,,GUEST HOUSES                  
SHEFFIELD CITY COUNCIL        ,CYPF                          ,39266,CIN NRTPF                     ,9270,CARELEAVERS ACCOMMODATION     ,05/04/2017,4181807,4491,330.95,EARL MARSHALL GUEST HOUSE LTD           ,391589,,GUEST HOUSES                  
SHEFFIELD CITY COUNCIL        ,CYPF                          ,39266,CIN NRTPF                     ,9270,CARELEAVERS ACCOMMODATION     ,05/04/2017,4181808,586026M                  ,364.64,GUINNESS NORTHERN COUNTIES HOUSING      ,504343,,"HOUSING ASSOCIATIONS, SOCIETIE"
SHEFFIELD CITY COUNCIL        ,CYPF                          ,39405,SEMI INDEPENDENT LIVING       ,9270,CARELEAVERS ACCOMMODATION     ,05/04/2017,4181809,853,374.28,FUTURE 19                               ,587046,Unclassified Non Trade,OUT OF SCOPE FOR SIC MONITORIN
SHEFFIELD CITY COUNCIL        ,CYPF                          ,39514,INDEPENDENT PLACEMENTS        ,9310,PARENTAL OR TRIBUNAL PLACEMENT,05/04/2017,4181810,8699,"8,048.67",ROYAL SCHOOL FOR THE DEAF DERBY         ,337538,,SCHOOLS - SPECIAL             
SHEFFIELD CITY COUNCIL        ,CYPF                          ,39514,INDEPENDENT PLACEMENTS        ,9310,PARENTAL OR TRIBUNAL PLACEMENT,05/04/2017,4181814,INV22541                 ,"9,094.00",MARY HARE TRAINING SERVICES             ,518768,,SCHOOLS - SPECIAL             
SHEFFIELD CITY COUNCIL        ,CYPF                          ,39514,INDEPENDENT PLACEMENTS        ,9310,PARENTAL OR TRIBUNAL PLACEMENT,05/04/2017,4181815,INV22885                 ,"9,094.00",MARY HARE TRAINING SERVICES             ,518768,,SCHOOLS - SPECIAL             
SHEFFIELD CITY COUNCIL        ,CYPF                          ,39514,INDEPENDENT PLACEMENTS        ,9310,PARENTAL OR TRIBUNAL PLACEMENT,05/04/2017,4181816,INV23200                 ,"9,094.00",MARY HARE TRAINING SERVICES             ,518768,,SCHOOLS - SPECIAL             
SHEFFIELD CITY COUNCIL        ,CYPF                          ,39147,PREVENTION & SUPPORT - CDT    ,9440,LOOKED AFTER CHILDREN         ,05/04/2017,4181825,851,"2,400.00",BJSR T/A WAVES                          ,636317,,DAY CENTRES                   
SHEFFIELD CITY COUNCIL        ,CYPF                          ,39211,EAST SA - LAC                 ,9440,LOOKED AFTER CHILDREN         ,05/04/2017,4181826,EAST/227                 ,335.51,REDACTED PERSONAL DATA,642068,Unclassified Non Trade,OUT OF SCOPE FOR SIC MONITORIN
SHEFFIELD CITY COUNCIL        ,CYPF                          ,39211,EAST SA - LAC                 ,9270,PAYMENTS TO RELATIVES/FRIENDS ,05/04/2017,4181827,EAST/265                 ,741.38,REDACTED PERSONAL DATA,642170,Unclassified Non Trade,OUT OF SCOPE FOR SIC MONITORIN
SHEFFIELD CITY COUNCIL        ,CYPF                          ,39211,EAST SA - LAC                 ,9440,LOOKED AFTER CHILDREN         ,05/04/2017,4181828,EAST/297                 ,818.81,REDACTED PERSONAL DATA,644528,Unclassified Non Trade,OUT OF SCOPE FOR SIC MONITORIN
SHEFFIELD CITY COUNCIL        ,CYPF                          ,39084,NORTH SA - CIN S17            ,9270,CARELEAVERS INDEPENDENT LIVING,05/04/2017,4181830,MSB FEES                 ,"2,615.07",EARLY STEPS NSRY & CHILDRENS CENTRE     ,311860,,NURSERY SCHOOLS               
SHEFFIELD CITY COUNCIL        ,COMMUNITIES                   ,46039,ADULT SOCIAL CARE PURCHASING  ,9200,CONTINUING RESIDENTIAL CARE   ,05/04/2017,4181787,J1841586 230417          ,"3,385.60",WATER ROYD HOUSE                        ,383521,,NURSING HOMES                 
SHEFFIELD CITY COUNCIL        ,COMMUNITIES                   ,42034,PURCHASING LEARNING DISABILITI,9210,CONTINUING NURSING CARE       ,05/04/2017,4181788,J1846380 230417          ,"1,526.75",GUINNESS NORTHERN COUNTIES              ,409173,,NURSING HOMES                 
SHEFFIELD CITY COUNCIL        ,COMMUNITIES                   ,42034,PURCHASING LEARNING DISABILITI,9200,CONTINUING RESIDENTIAL CARE   ,05/04/2017,4181789,J1848145 230417          ,"30,096.75",HOLLYBANK TRUST                         ,337541,,SCHOOLS - SPECIAL             
SHEFFIELD CITY COUNCIL        ,COMMUNITIES                   ,44028,DRUG & ALCOHOL MH -PURCHASING ,9200,SHORT TERM RESIDENTIAL CARE   ,05/04/2017,4181791,J1850846 260317          ,"2,391.43",PHOENIX HOUSE (SHEFFIELD)               ,361773,,DRUG MISUSE - ADVICE & COUNSEL
SHEFFIELD CITY COUNCIL        ,RESOURCES                     ,1,SCC BALANCE SHEET             ,1780,ERROR SUSPENSE CARE FIRST     ,05/04/2017,4181792,J1850847 260317          ,"2,930.97",GSK HOLDINGS LTD                        ,638661,,RESIDENTIAL CARE HOMES        
SHEFFIELD CITY COUNCIL        ,COMMUNITIES                   ,42034,PURCHASING LEARNING DISABILITI,9200,SHORT TERM RESIDENTIAL CARE   ,05/04/2017,4181792,J1850847 260317          ,"19,040.00",GSK HOLDINGS LTD                        ,638661,,RESIDENTIAL CARE HOMES        
SHEFFIELD CITY COUNCIL        ,CYPF                          ,39032,ADOPTION SERVICE              ,9120,OTHER AGENCIES                ,06/04/2017,4182692,ERS INVOICE153415        ,"1,075.50",REDACTED PERSONAL DATA,455955,Unclassified Non Trade,OUT OF SCOPE FOR SIC MONITORIN
SHEFFIELD CITY COUNCIL        ,CYPF                          ,39032,ADOPTION SERVICE              ,9120,OTHER AGENCIES                ,06/04/2017,4182693,ERS INVOICE153416        ,434.98,REDACTED PERSONAL DATA,644722,,ADOPTION & FOSTERING          
SHEFFIELD CITY COUNCIL        ,CYPF                          ,33007,VSP DELIVER                   ,9120,OTHER AGENCIES                ,06/04/2017,4182791,ERS INVOICE153461        ,"2,647.50",SHEFFIELD INDUSTRIAL MUSEUMS TRUST LTD  ,307272,,MUSEUMS                       
SHEFFIELD CITY COUNCIL        ,CYPF                          ,33007,VSP DELIVER                   ,9120,OTHER AGENCIES                ,06/04/2017,4182792,ERS INVOICE153462        ,"2,044.50",HEELEY CITY FARM                        ,301277,,CHARITIES & VOLUNTARY ORGANISA
SHEFFIELD CITY COUNCIL        ,CYPF                          ,33007,VSP DELIVER                   ,9120,OTHER AGENCIES                ,06/04/2017,4182793,ERS INVOICE153463        ,"6,482.00",HEELEY DEVELOPMENT TRUST                ,363241,,CHARITIES & VOLUNTARY ORGANISA
SHEFFIELD CITY COUNCIL        ,CYPF                          ,33007,VSP DELIVER                   ,9120,OTHER AGENCIES                ,06/04/2017,4182794,ERS INVOICE153464        ,"2,530.00",WHIRLOW HALL FARM TRUST LTD             ,318019,,CHARITIES & VOLUNTARY ORGANISA
SHEFFIELD CITY COUNCIL        ,CYPF                          ,33007,VSP DELIVER                   ,9120,OTHER AGENCIES                ,06/04/2017,4182795,ERS INVOICE153465        ,"4,085.00",SHARKS BASKETBALL LTD                   ,540033,,SPORTS CLUBS & ASSOCIATIONS   
SHEFFIELD CITY COUNCIL        ,RESOURCES                     ,18032,MOORFOOT LEARNING CENTRE      ,8440,FEE EXPENSES                  ,06/04/2017,4182796,ERS INVOICE153466        ,"2,000.00",GEOFF WALLBRIDGE                        ,638731,,EDUCATIONAL SERVICES          
SHEFFIELD CITY COUNCIL        ,CYPF                          ,33007,VSP DELIVER                   ,9120,OTHER AGENCIES                ,06/04/2017,4182797,ERS INVOICE153467        ,"4,966.50",A MIND APART THEATRE COMPANY LTD        ,508180,,DRAMA SCHOOLS                 
SHEFFIELD CITY COUNCIL        ,CYPF                          ,33007,VSP DELIVER                   ,9120,OTHER AGENCIES                ,06/04/2017,4182798,ERS INVOICE153468        ,"8,557.00",BOYS AND GIRLS CLUBS OF SOUTH YORKSHIRE ,431967,,YOUTH ORGANISATIONS & CENTRES 
SHEFFIELD CITY COUNCIL        ,CYPF                          ,33007,VSP DELIVER                   ,9120,OTHER AGENCIES                ,06/04/2017,4182799,ERS INVOICE153469        ,"5,134.25",DONCASTER ROTH & DIST (MOTOR TRADES)GTA ,204434,,TRAINING CENTRES              
SHEFFIELD CITY COUNCIL        ,CYPF                          ,33007,VSP DELIVER                   ,9120,OTHER AGENCIES                ,06/04/2017,4182800,ERS INVOICE153470        ,"6,880.00",IN2CHANGE SOUTH YORKS LTD               ,558793,,CHARITIES & VOLUNTARY ORGANISA
SHEFFIELD CITY COUNCIL        ,CYPF                          ,33007,VSP DELIVER                   ,9120,OTHER AGENCIES                ,06/04/2017,4182801,ERS INVOICE153471        ,688.00,THE MUSICAL WORKS                       ,368576,,COMMUNITY PROJECTS            
SHEFFIELD CITY COUNCIL        ,CYPF                          ,33007,VSP DELIVER                   ,9120,OTHER AGENCIES                ,06/04/2017,4182802,ERS INVOICE153472        ,"1,914.00",NACRO                                   ,297575,,CHARITIES & VOLUNTARY ORGANISA
SHEFFIELD CITY COUNCIL        ,CYPF                          ,33007,VSP DELIVER                   ,9120,OTHER AGENCIES                ,06/04/2017,4182803,ERS INVOICE153473        ,"4,837.50",ONBOARD SHEFFIELD SKATEPARK             ,598407,Unclassified Non Trade,OUT OF SCOPE FOR SIC MONITORIN
SHEFFIELD CITY COUNCIL        ,CYPF                          ,33007,VSP DELIVER                   ,9120,OTHER AGENCIES                ,06/04/2017,4182804,ERS INVOICE153474        ,"6,751.00",SHEFFIELD WEDNESDAY ACADEMY             ,461589,,SPORTS CLUBS & ASSOCIATIONS   
SHEFFIELD CITY COUNCIL        ,CYPF                          ,33007,VSP DELIVER                   ,9120,OTHER AGENCIES                ,06/04/2017,4182805,ERS INVOICE153475        ,"1,261.50",SYREETA MAKE UP ACADEMY                 ,613037,,BEAUTY SCHOOLS                
SHEFFIELD CITY COUNCIL        ,CYPF                          ,33007,VSP DELIVER                   ,9120,OTHER AGENCIES                ,06/04/2017,4182806,ERS INVOICE153476        ,"2,150.00",SYTG LTD                                ,306547,,TRAINING CENTRES              
SHEFFIELD CITY COUNCIL        ,CYPF                          ,33007,VSP DELIVER                   ,9120,OTHER AGENCIES                ,06/04/2017,4182807,ERS INVOICE153477        ,"8,170.00",Y A S Y                                 ,306981,,YOUTH ORGANISATIONS & CENTRES 
SHEFFIELD CITY COUNCIL        ,CYPF                          ,33007,VSP DELIVER                   ,9120,OTHER AGENCIES                ,06/04/2017,4182808,ERS INVOICE153478        ,"1,800.00",A MIND APART THEATRE COMPANY LTD        ,508180,,DRAMA SCHOOLS                 
SHEFFIELD CITY COUNCIL        ,COMMUNITIES                   ,49191,COMMUNITY HEATING             ,4160,PAY AS YOU GO METER           ,06/04/2017,4182809,ERS INVOICE153479        ,270.59,REDACTED PERSONAL DATA,644709,Unclassified Non Trade,OUT OF SCOPE FOR SIC MONITORIN
SHEFFIELD CITY COUNCIL        ,RESOURCES                     ,12009,STRATEGIC FINANCE             ,5810,COMPENSATION PAYMENTS         ,06/04/2017,4182825,ERS INVOICE153495        ,258.00,REDACTED PERSONAL DATA,644498,Unclassified Non Trade,OUT OF SCOPE FOR SIC MONITORIN
SHEFFIELD CITY COUNCIL        ,CYPF                          ,33112,LDD PLACEMENTS AUG16-JUL17    ,9120,OTHER AGENCIES                ,06/04/2017,4182833,ERS INVOICE153503        ,825.00,REDACTED PERSONAL DATA,644727,Unclassified Non Trade,OUT OF SCOPE FOR SIC MONITORIN
SHEFFIELD CITY COUNCIL        ,PLACE                         ,97147,ADAPTATIONS                   ,1157,DWELLINGS MAIN CONTRACT       ,06/04/2017,4165546,SH04384/10381/32         ,"38,450.21",KIER SERVICES MAINTENANCE EAST (KSME)   ,591748,,CONSTRUCTION CONTRACTORS - GEN
SHEFFIELD CITY COUNCIL        ,PLACE                         ,97222,PSH EMPTY PROPERTIES          ,1165,NC&A OTHER                    ,06/04/2017,4166308,75173,"1,185.00",MARK JENKINSON & SON                    ,206710,,AUCTIONEERS & VALUERS         
SHEFFIELD CITY COUNCIL        ,COMMUNITIES                   ,42075,VOIDS & VACANCY COSTS         ,9190,EX POOL CLIENTS               ,06/04/2017,4167755,3057653,"21,434.80",ROYAL MENCAP SOCIETY                    ,361774,,CHARITIES & VOLUNTARY ORGANISA
SHEFFIELD CITY COUNCIL        ,COMMUNITIES                   ,42075,VOIDS & VACANCY COSTS         ,9190,EX POOL CLIENTS               ,06/04/2017,4167908,3063419,"3,572.80",ROYAL MENCAP SOCIETY                    ,361774,,CHARITIES & VOLUNTARY ORGANISA
SHEFFIELD CITY COUNCIL        ,CYPF                          ,39444,POLICY & SERVICE IMPROVEMENT  ,8440,FEE EXPENSES                  ,06/04/2017,4175244,8602866301,"2,000.00",KIRKLEES COUNCIL                        ,430925,,LOCAL GOVERNMENT              
SHEFFIELD CITY COUNCIL        ,CYPF                          ,39444,POLICY & SERVICE IMPROVEMENT  ,8440,FEE EXPENSES                  ,06/04/2017,4175271,DSINV00129822            ,"9,333.33",REED BUSINESS INFORMATION LIMITED       ,350053,,PUBLISHERS                    
SHEFFIELD CITY COUNCIL        ,CYPF                          ,39444,POLICY & SERVICE IMPROVEMENT  ,8440,FEE EXPENSES                  ,06/04/2017,4175274,DSINV00129780            ,"10,666.67",REED BUSINESS INFORMATION LIMITED       ,350053,,PUBLISHERS                    
SHEFFIELD CITY COUNCIL        ,CYPF                          ,39446,TEACHING PARTNERSHIPS         ,8440,FEE EXPENSES                  ,06/04/2017,4176245,1800152428,"13,726.05",THE UNIVERSITY OF SHEFFIELD             ,316392,,UNIVERSITIES & MEDICAL SCHOOLS
SHEFFIELD CITY COUNCIL        ,CYPF                          ,39446,TEACHING PARTNERSHIPS         ,8440,FEE EXPENSES                  ,06/04/2017,4176247,1800152408,"6,767.00",THE UNIVERSITY OF SHEFFIELD             ,316392,,UNIVERSITIES & MEDICAL SCHOOLS
SHEFFIELD CITY COUNCIL        ,CYPF                          ,39446,TEACHING PARTNERSHIPS         ,8440,FEE EXPENSES                  ,06/04/2017,4176252,1800152416,"1,700.00",THE UNIVERSITY OF SHEFFIELD             ,316392,,UNIVERSITIES & MEDICAL SCHOOLS
SHEFFIELD CITY COUNCIL        ,CYPF                          ,39446,TEACHING PARTNERSHIPS         ,8440,FEE EXPENSES                  ,06/04/2017,4176254,1800152432,"4,000.00",THE UNIVERSITY OF SHEFFIELD             ,316392,,UNIVERSITIES & MEDICAL SCHOOLS
SHEFFIELD CITY COUNCIL        ,COMMUNITIES                   ,47048,SASP SPEND PLAN               ,8440,FEE EXPENSES                  ,06/04/2017,4176815,10620,"5,625.00",HEELEY CITY FARM                        ,529715,,ENERGY CONSERVATION CONSULTANT
SHEFFIELD CITY COUNCIL        ,CYPF                          ,32048,SCHOOL SPORTS                 ,6280,HIRE OF PREMISES              ,06/04/2017,4177278,17008,600.48,KING EDWARD SWIMMING POOL TRUST         ,314583,,SWIMMING POOLS - PUBLIC       
SHEFFIELD CITY COUNCIL        ,CYPF                          ,39446,TEACHING PARTNERSHIPS         ,8440,FEE EXPENSES                  ,06/04/2017,4177388,9000221243,"2,324.62",BARNSLEY MBC                            ,597740,,LOCAL GOVERNMENT              
SHEFFIELD CITY COUNCIL        ,CYPF                          ,39446,TEACHING PARTNERSHIPS         ,8440,FEE EXPENSES                  ,06/04/2017,4177524,1800152823,"28,050.19",THE UNIVERSITY OF SHEFFIELD             ,316392,,UNIVERSITIES & MEDICAL SCHOOLS
SHEFFIELD CITY COUNCIL        ,CYPF                          ,32048,SCHOOL SPORTS                 ,6280,HIRE OF PREMISES              ,06/04/2017,4177769,SI-C058-100186641        ,"1,445.60",PLACES FOR PEOPLE                       ,620946,,LEISURE & RECREATION CENTRES  
SHEFFIELD CITY COUNCIL        ,PLACE                         ,22063,ENERGY                        ,8620,COMPUTER SOFTWARE LICENCES    ,06/04/2017,4177775,20171259,"4,565.62",TEAM (ENERGY AUDITING AGENCY LTD)       ,204665,,UTILITY BROKERS               
SHEFFIELD CITY COUNCIL        ,CYPF                          ,32048,SCHOOL SPORTS                 ,8110,"CLOTHING, UNIFORM AND LAUNDRY ",06/04/2017,4178481,OFF-5DC30835-I1          ,"1,075.17",KITLOCKER.COM LIMITED                   ,438398,,SPORTS GOODS SHOPS            
SHEFFIELD CITY COUNCIL        ,COMMUNITIES                   ,49802,BUSINESS SUPPORT              ,8390,STATIONERY                    ,06/04/2017,4178483,19510,275.66,DALE PRODUCTS (PLASTICS) LTD            ,342138,,PLASTICS - STOCKISTS & SUPPLIE
SHEFFIELD CITY COUNCIL        ,CYPF                          ,32048,SCHOOL SPORTS                 ,6280,HIRE OF PREMISES              ,06/04/2017,4178568,HLT-SI100738             ,"2,761.20",7 HILLS LEISURE TRUST                   ,566500,,SPORTS GROUND & STADIUM CONTRA
SHEFFIELD CITY COUNCIL        ,CYPF                          ,32048,SCHOOL SPORTS                 ,6280,HIRE OF PREMISES              ,06/04/2017,4179043,HLT-SI100710             ,"1,801.44",7 HILLS LEISURE TRUST                   ,566500,,SPORTS GROUND & STADIUM CONTRA
SHEFFIELD CITY COUNCIL        ,CYPF                          ,32048,SCHOOL SPORTS                 ,6280,HIRE OF PREMISES              ,06/04/2017,4179044,HLT-SI100721             ,700.56,7 HILLS LEISURE TRUST                   ,566500,,SPORTS GROUND & STADIUM CONTRA
SHEFFIELD CITY COUNCIL        ,COMMUNITIES                   ,49845,LEADERSHIP TEAM               ,7140,PUBLIC TRANSPORT COSTS        ,06/04/2017,4179169,01/7474704               ,494.40,CLARITY TRAVEL MANAGEMENT               ,202987,,TRAVEL AGENTS & HOLIDAY COMPAN
SHEFFIELD CITY COUNCIL        ,PLACE                         ,23038,PEST CONTROL                  ,8010,EQUIPMENT PURCHASE AND REPAIR ,06/04/2017,4180370,SI02-0140447             ,388.60,KILLGERM CHEMICALS LTD                  ,206229,,PEST & VERMIN CONTROL PRODUCTS
SHEFFIELD CITY COUNCIL        ,CYPF                          ,38079,INNOVATION PROGRAMME          ,9100,PARTNERSHIP CONTRACTS         ,06/04/2017,4180396,55338,"25,000.00",CATCH22 NCAS                            ,487933,,CHARITIES & VOLUNTARY ORGANISA
SHEFFIELD CITY COUNCIL        ,RESOURCES                     ,90087,HR+M TRANSPORT                ,1182,PURCHASE OF VEHICLES          ,06/04/2017,4180495,11137272,"15,883.45",SPRINGFIELD CITROEN                     ,208605,,CAR DEALERS                   
SHEFFIELD CITY COUNCIL        ,RESOURCES                     ,90087,HR+M TRANSPORT                ,1182,PURCHASE OF VEHICLES          ,06/04/2017,4180595,11137276,"15,406.37",SPRINGFIELD CITROEN                     ,208605,,CAR DEALERS                   
SHEFFIELD CITY COUNCIL        ,RESOURCES                     ,90087,HR+M TRANSPORT                ,1182,PURCHASE OF VEHICLES          ,06/04/2017,4180596,11137274,"15,683.15",SPRINGFIELD CITROEN                     ,208605,,CAR DEALERS                   
SHEFFIELD CITY COUNCIL        ,RESOURCES                     ,90087,HR+M TRANSPORT                ,1182,PURCHASE OF VEHICLES          ,06/04/2017,4180601,11137279,"15,406.37",SPRINGFIELD CITROEN                     ,208605,,CAR DEALERS                   
SHEFFIELD CITY COUNCIL        ,RESOURCES                     ,90087,HR+M TRANSPORT                ,1182,PURCHASE OF VEHICLES          ,06/04/2017,4180604,11137289,"15,883.45",SPRINGFIELD CITROEN                     ,208605,,CAR DEALERS                   
SHEFFIELD CITY COUNCIL        ,RESOURCES                     ,15215,CORPORATE ROOM BOOKINGS       ,8440,FEE EXPENSES                  ,06/04/2017,4180627,24638,473.20,ST MARY'S (CONFERENCE & CATERING) LTD   ,376186,,CATERERS                      
SHEFFIELD CITY COUNCIL        ,CYPF                          ,39188,MALON WAY CHILDREN'S HOME     ,8440,FEE EXPENSES                  ,06/04/2017,4180638,SINCC3F38360             ,"2,325.00",OFSTED                                  ,466395,,EDUCATION AGENCIES & AUTHORITI
SHEFFIELD CITY COUNCIL        ,RESOURCES                     ,90087,HR+M TRANSPORT                ,1182,PURCHASE OF VEHICLES          ,06/04/2017,4180643,11137288,"15,205.38",SPRINGFIELD CITROEN                     ,208605,,CAR DEALERS                   
SHEFFIELD CITY COUNCIL        ,RESOURCES                     ,90087,HR+M TRANSPORT                ,1182,PURCHASE OF VEHICLES          ,06/04/2017,4180645,11137378,"15,683.15",SPRINGFIELD CITROEN                     ,208605,,CAR DEALERS                   
SHEFFIELD CITY COUNCIL        ,RESOURCES                     ,90087,HR+M TRANSPORT                ,1182,PURCHASE OF VEHICLES          ,06/04/2017,4180646,11137381,"15,883.44",SPRINGFIELD CITROEN                     ,208605,,CAR DEALERS                   
SHEFFIELD CITY COUNCIL        ,RESOURCES                     ,90087,HR+M TRANSPORT                ,1182,PURCHASE OF VEHICLES          ,06/04/2017,4180647,11137273,"15,883.45",SPRINGFIELD CITROEN                     ,208605,,CAR DEALERS                   
SHEFFIELD CITY COUNCIL        ,RESOURCES                     ,90087,HR+M TRANSPORT                ,1182,PURCHASE OF VEHICLES          ,06/04/2017,4180648,11137380,"15,883.45",SPRINGFIELD CITROEN                     ,208605,,CAR DEALERS                   
SHEFFIELD CITY COUNCIL        ,RESOURCES                     ,90087,HR+M TRANSPORT                ,1182,PURCHASE OF VEHICLES          ,06/04/2017,4180649,11137286,"15,205.38",SPRINGFIELD CITROEN                     ,208605,,CAR DEALERS                   
SHEFFIELD CITY COUNCIL        ,RESOURCES                     ,90087,HR+M TRANSPORT                ,1182,PURCHASE OF VEHICLES          ,06/04/2017,4180650,11137270,"15,847.33",SPRINGFIELD CITROEN                     ,208605,,CAR DEALERS                   
SHEFFIELD CITY COUNCIL        ,RESOURCES                     ,90087,HR+M TRANSPORT                ,1182,PURCHASE OF VEHICLES          ,06/04/2017,4180651,11137379,"15,883.45",SPRINGFIELD CITROEN                     ,208605,,CAR DEALERS                   
SHEFFIELD CITY COUNCIL        ,CYPF                          ,32048,SCHOOL SPORTS                 ,8060,MATERIALS AND SUPPLIES GENERAL,06/04/2017,4181225,SI388376-1               ,426.00,LIFESAVERS DIRECT                       ,318928,,MAIL ORDER & CATALOGUE SHOPPIN
SHEFFIELD CITY COUNCIL        ,PLACE                         ,25051,PLAYGROUND MAINTENANCE & INSPE,8010,EQUIPMENT PURCHASE AND REPAIR ,06/04/2017,4181358,2846,"1,403.00",BERNHARDS LANDSCAPES (WAKEFIELD) LTD    ,203339,,LANDSCAPE ARCHITECTS & DESIGNE
SHEFFIELD CITY COUNCIL        ,COMMUNITIES                   ,49318,ACCOMMODATION & SUPPORT SERVIC,6020,REPAIRS AND MTCE - PROGRAMMED ,06/04/2017,4181379,TCA/SCC192               ,540.00,TIN CAN ALLEY - ALISTAIR HIGGINS TA     ,622952,,PAINTERS & DECORATORS         
SHEFFIELD CITY COUNCIL        ,RESOURCES                     ,15215,CORPORATE ROOM BOOKINGS       ,8440,FEE EXPENSES                  ,06/04/2017,4181403,24690,434.20,ST MARY'S (CONFERENCE & CATERING) LTD   ,376186,,CATERERS                      
SHEFFIELD CITY COUNCIL        ,PLACE                         ,97419,FLAT ROOFING                  ,1161,NC&A MAIN CONTRACT            ,06/04/2017,4181435,SH04235/24               ,"200,100.00",KEEPMOAT REGENERATION LTD               ,619488,,BUILDING SERVICES             
SHEFFIELD CITY COUNCIL        ,PLACE                         ,94115,FA PITCH (WESTFIELD)          ,1193,CONSULTANTS FEES              ,06/04/2017,4181439,SIN044776                ,"2,331.25",ROBINSON LOW FRANCIS LLP                ,627484,,TENNIS COURTS & SPORTS SURFACE
SHEFFIELD CITY COUNCIL        ,CYPF                          ,39444,POLICY & SERVICE IMPROVEMENT  ,8350,MISCELLANEOUS EXPENSES        ,06/04/2017,4181440,52676295,506.00,LOVE2SHOP                               ,568717,,GIFT SERVICES                 
SHEFFIELD CITY COUNCIL        ,PLACE                         ,94020,BROOKHILL AREA IMPROVEMENTS   ,1161,NC&A MAIN CONTRACT            ,06/04/2017,4181445,5137114/14               ,"69,973.69",NORTH MIDLAND CONSTRUCTION PLC          ,315929,,BUILDERS                      
SHEFFIELD CITY COUNCIL        ,COMMUNITIES                   ,24138,PARK HILL LEGAL FEES          ,8440,FEE EXPENSES                  ,06/04/2017,4181516,1528796,"50,304.00",GELDARDS LLP                            ,634975,,SOLICITORS                    
SHEFFIELD CITY COUNCIL        ,COMMUNITIES                   ,24138,PARK HILL LEGAL FEES          ,8440,FEE EXPENSES                  ,06/04/2017,4181517,1527597,"32,580.00",GELDARDS LLP                            ,634975,,SOLICITORS                    
SHEFFIELD CITY COUNCIL        ,PLACE                         ,94050,SHEFFIELD RETAIL QUARTER 2    ,1193,CONSULTANTS FEES              ,06/04/2017,4181529,50DE300002250            ,"20,000.00",CBRE                                    ,428951,,INVESTMENT COMPANIES          
SHEFFIELD CITY COUNCIL        ,COMMUNITIES                   ,97056,WARM & HEALTHY HOMES          ,1161,NC&A MAIN CONTRACT            ,06/04/2017,4181540,605008-7                 ,"18,342.69",HERBERT T FORREST LTD                   ,636657,,CONSTRUCTION CONTRACTORS - GEN
SHEFFIELD CITY COUNCIL        ,COMMUNITIES                   ,49372,HME                           ,6030,REPAIRS TO TENANTED PROPERTIES,06/04/2017,4181891,VSL1379                  ,"3,690.00",VIGIL SECURITY SYSTEMS LTD              ,440317,,BURGLAR & INTRUDER ALARM SYSTE
SHEFFIELD CITY COUNCIL        ,COMMUNITIES                   ,49372,HME                           ,6030,REPAIRS TO TENANTED PROPERTIES,06/04/2017,4181892,VSL1378                  ,"3,601.00",VIGIL SECURITY SYSTEMS LTD              ,440317,,BURGLAR & INTRUDER ALARM SYSTE
SHEFFIELD CITY COUNCIL        ,COMMUNITIES                   ,49153,OTHER REPAIRS & FEES          ,6030,BURGLAR ALARM REPAIRS         ,06/04/2017,4181895,VSL1377                  ,"3,601.52",VIGIL SECURITY SYSTEMS LTD              ,440317,,BURGLAR & INTRUDER ALARM SYSTE
SHEFFIELD CITY COUNCIL        ,COMMUNITIES                   ,49312,BURNGREAVE & SHIREGREEN       ,8010,ESTATES EQUIP PURCHASE & REPAI,06/04/2017,4181924,SI-2144775               ,335.42,SPALDINGS LIMITED                       ,208564,,AGRICULTURAL MACHINERY - SALES
SHEFFIELD CITY COUNCIL        ,CYPF                          ,39047,ALDINE HOUSE                  ,8050,FURNITURE PURCHASES           ,06/04/2017,4181941,SI/49458                 ,"5,549.37",PINEAPPLE CONTRACTS UNLTD               ,435009,,FURNISHERS                    
SHEFFIELD CITY COUNCIL        ,COMMUNITIES                   ,42076,TUPE COSTS                    ,9190,EX POOL CLIENTS               ,06/04/2017,4181948,D100013432               ,"3,024.80",LIFEWAYS COMMUNITY CARE LTD             ,622326,,SOCIAL SERVICES               
SHEFFIELD CITY COUNCIL        ,CYPF                          ,38053,EARLY YEARS & CHILDREN CENTRE ,8010,EQUIPMENT PURCHASE AND REPAIR ,06/04/2017,4181950,DE4673653/FI4869032      ,547.76,TTS GROUP LTD                           ,328602,,EDUCATIONAL EQUIPMENT & SUPPLI
SHEFFIELD CITY COUNCIL        ,PLACE                         ,25001,GRAVES PARK - ANIMAL FARM INC ,8060,MATERIALS AND SUPPLIES GENERAL,06/04/2017,4181983,442472,626.95,ARGO FEEDS LTD                          ,203028,,PET FOODS & ANIMAL FEEDS      
SHEFFIELD CITY COUNCIL        ,PLACE                         ,25001,GRAVES PARK - ANIMAL FARM INC ,8060,MATERIALS AND SUPPLIES GENERAL,06/04/2017,4181994,85208,264.00,D M GOULD WHOLESALE LIMITED             ,631174,,TOYS & GAMES - WHOLESALE      
SHEFFIELD CITY COUNCIL        ,COMMUNITIES                   ,46039,ADULT SOCIAL CARE PURCHASING  ,9190,ADVOCACY SERVICES             ,06/04/2017,4182176,5633,690.00,VOICEABILITY ADVOCACY                   ,416217,,CHARITIES & VOLUNTARY ORGANISA
SHEFFIELD CITY COUNCIL        ,COMMUNITIES                   ,46039,ADULT SOCIAL CARE PURCHASING  ,9190,ADVOCACY SERVICES             ,06/04/2017,4182177,5632,367.50,VOICEABILITY ADVOCACY                   ,416217,,CHARITIES & VOLUNTARY ORGANISA
SHEFFIELD CITY COUNCIL        ,COMMUNITIES                   ,46039,ADULT SOCIAL CARE PURCHASING  ,9190,ADVOCACY SERVICES             ,06/04/2017,4182178,5631,592.50,VOICEABILITY ADVOCACY                   ,416217,,CHARITIES & VOLUNTARY ORGANISA
SHEFFIELD CITY COUNCIL        ,COMMUNITIES                   ,46039,ADULT SOCIAL CARE PURCHASING  ,9190,ADVOCACY SERVICES             ,06/04/2017,4182181,5630,525.00,VOICEABILITY ADVOCACY                   ,416217,,CHARITIES & VOLUNTARY ORGANISA
SHEFFIELD CITY COUNCIL        ,COMMUNITIES                   ,46039,ADULT SOCIAL CARE PURCHASING  ,9190,ADVOCACY SERVICES             ,06/04/2017,4182183,5629,360.00,VOICEABILITY ADVOCACY                   ,416217,,CHARITIES & VOLUNTARY ORGANISA
SHEFFIELD CITY COUNCIL        ,CYPF                          ,33128,ESA PATHWAY PILOT             ,9120,OTHER AGENCIES                ,06/04/2017,4182189,3442,"1,575.00",MANOR & CASTLE DEVELOPMENT TRUST        ,314473,,CHARITIES & VOLUNTARY ORGANISA
SHEFFIELD CITY COUNCIL        ,COMMUNITIES                   ,42075,VOIDS & VACANCY COSTS         ,9190,EX POOL CLIENTS               ,06/04/2017,4182219,D100013434               ,"5,137.90",LIFEWAYS COMMUNITY CARE LTD             ,622326,,SOCIAL SERVICES               
SHEFFIELD CITY COUNCIL        ,PLACE                         ,25028,NEW PROJECT TEAM              ,8060,MATERIALS AND SUPPLIES GENERAL,06/04/2017,4182431,06.47.16-3               ,"8,500.00",DOE SPORT (NORTH) LTD                   ,624628,,TENNIS COURTS & SPORTS SURFACE
SHEFFIELD CITY COUNCIL        ,PLACE                         ,94115,FA PITCH (WESTFIELD)          ,1161,NC&A MAIN CONTRACT            ,06/04/2017,4182581,PC04883/4                ,"388,300.00",ROBERTSON CE LIMITED                    ,641285,,CONSTRUCTION CONTRACTORS - GEN
SHEFFIELD CITY COUNCIL        ,COMMUNITIES                   ,49858,MATERIALS FUND                ,8080,LIBRARY MATERIALS             ,06/04/2017,4182641,962553,"4,549.06",ASKEWS LIBRARY SERVICES LTD             ,203090,,BOOKSELLERS                   
SHEFFIELD CITY COUNCIL        ,CYPF                          ,90737,GLEADLESS PRIMARY - REBUILD   ,1161,NC&A MAIN CONTRACT            ,06/04/2017,4182644,ED04064B/12              ,"85,900.00",WILDGOOSE CONSTRUCTION LTD              ,209524,,CONSTRUCTION CONTRACTORS - GEN
SHEFFIELD CITY COUNCIL        ,RESOURCES                     ,97941,CBT WINCOBANK COMMUNITY BLDG  ,1161,NC&A MAIN CONTRACT            ,06/04/2017,4182646,NH03889/7                ,"7,000.00",RF JOINERY AND SHOPFITTING LTD          ,588787,,JOINERS & CARPENTERS          
SHEFFIELD CITY COUNCIL        ,PLACE                         ,97441,COMMUNAL AREAS-LOW RISE FLATS ,1157,DWELLINGS MAIN CONTRACT       ,06/04/2017,4182656,SH04615A/11              ,"242,900.00",KIER SERVICES MAINTENANCE EAST (KSME)   ,591748,,CONSTRUCTION CONTRACTORS - GEN
SHEFFIELD CITY COUNCIL        ,CYPF                          ,33108,AMBITIONS - SHEFFIELD         ,8440,FEE EXPENSES                  ,06/04/2017,4182664,1760,"6,741.59",ACTIVE INFORMATICS LTD                  ,594596,,COMPUTER SYSTEMS & SOFTWARE (S
SHEFFIELD CITY COUNCIL        ,COMMUNITIES                   ,49869,SUPPLIES & SERVICES           ,6030,REPAIRS AND MTCE - RESPONSIVE ,06/04/2017,4182685,SI0031425                ,271.00,3M UNITED KINGDOM PLC                   ,202536,,MANUFACTURERS                 
SHEFFIELD CITY COUNCIL        ,COMMUNITIES                   ,49858,MATERIALS FUND                ,8080,LIBRARY MATERIALS             ,06/04/2017,4182687,CON/115448               ,"9,205.88",PETERS LTD                              ,312836,,BOOKSELLERS                   
SHEFFIELD CITY COUNCIL        ,RESOURCES                     ,15133,STANIFORTH ROAD WORKSHOPS     ,7040,OTHER VEHICLE RUNNING COSTS   ,06/04/2017,4182405,11170,368.21,ROBERTS MOTOR BODIES LTD                ,442639,,CAR BODY REPAIRS              
SHEFFIELD CITY COUNCIL        ,RESOURCES                     ,15133,STANIFORTH ROAD WORKSHOPS     ,7040,OTHER VEHICLE RUNNING COSTS   ,06/04/2017,4182406,11168,"1,093.65",ROBERTS MOTOR BODIES LTD                ,442639,,CAR BODY REPAIRS              
SHEFFIELD CITY COUNCIL        ,RESOURCES                     ,15133,STANIFORTH ROAD WORKSHOPS     ,7040,OTHER VEHICLE RUNNING COSTS   ,06/04/2017,4182407,11165,"1,066.73",ROBERTS MOTOR BODIES LTD                ,442639,,CAR BODY REPAIRS              
SHEFFIELD CITY COUNCIL        ,RESOURCES                     ,15133,STANIFORTH ROAD WORKSHOPS     ,8070,STOCKS AND STORES             ,06/04/2017,4182409,14463770,"1,103.69",LOOKERS FORD                            ,474939,,CAR DEALERS                   
SHEFFIELD CITY COUNCIL        ,RESOURCES                     ,15133,STANIFORTH ROAD WORKSHOPS     ,8070,STOCKS AND STORES             ,06/04/2017,4182410,14464298,991.72,LOOKERS FORD                            ,474939,,CAR DEALERS                   
SHEFFIELD CITY COUNCIL        ,RESOURCES                     ,15133,STANIFORTH ROAD WORKSHOPS     ,7040,OTHER VEHICLE RUNNING COSTS   ,06/04/2017,4182423,9461,308.00,GPG 2000 LTD                            ,416225,,CAR BODY REPAIRS              
SHEFFIELD CITY COUNCIL        ,RESOURCES                     ,15133,STANIFORTH ROAD WORKSHOPS     ,7010,ROUTINE VEHICLE REPAIR & MTCE ,06/04/2017,4182424,136564,517.82,F R SHARROCK LTD                        ,440994,,AGRICULTURAL SERVICES         
SHEFFIELD CITY COUNCIL        ,RESOURCES                     ,15133,STANIFORTH ROAD WORKSHOPS     ,8070,STOCKS AND STORES             ,06/04/2017,4182425,136569,"3,519.31",F R SHARROCK LTD                        ,440994,,AGRICULTURAL SERVICES         
SHEFFIELD CITY COUNCIL        ,RESOURCES                     ,15133,STANIFORTH ROAD WORKSHOPS     ,7040,OTHER VEHICLE RUNNING COSTS   ,06/04/2017,4182429,11167,"1,066.73",ROBERTS MOTOR BODIES LTD                ,442639,,CAR BODY REPAIRS              
SHEFFIELD CITY COUNCIL        ,RESOURCES                     ,15133,STANIFORTH ROAD WORKSHOPS     ,7040,OTHER VEHICLE RUNNING COSTS   ,06/04/2017,4182430,11164,690.00,ROBERTS MOTOR BODIES LTD                ,442639,,CAR BODY REPAIRS              
SHEFFIELD CITY COUNCIL        ,RESOURCES                     ,15133,STANIFORTH ROAD WORKSHOPS     ,7040,OTHER VEHICLE RUNNING COSTS   ,06/04/2017,4182470,11173,408.84,ROBERTS MOTOR BODIES LTD                ,442639,,CAR BODY REPAIRS              
SHEFFIELD CITY COUNCIL        ,RESOURCES                     ,15133,STANIFORTH ROAD WORKSHOPS     ,8070,STOCKS AND STORES             ,06/04/2017,4182496,34307,423.93,D B AUTO ELECTRICAL SUPPLIES            ,588397,,"COMMERCIAL VEHICLE SERVICING, "
SHEFFIELD CITY COUNCIL        ,RESOURCES                     ,15133,STANIFORTH ROAD WORKSHOPS     ,8070,STOCKS AND STORES             ,06/04/2017,4182499,01I07917                 ,"1,230.00",DEXEL TYRE CO LTD                       ,204367,,CAR ACCESSORIES & PARTS       
SHEFFIELD CITY COUNCIL        ,COMMUNITIES                   ,42034,PURCHASING LEARNING DISABILITI,9250,INDEPENDENT DAY CARE          ,06/04/2017,4182309,4143,400.00,BURTON STREET PROJECT                   ,342774,,CHARITIES & VOLUNTARY ORGANISA
SHEFFIELD CITY COUNCIL        ,COMMUNITIES                   ,42034,PURCHASING LEARNING DISABILITI,9210,FUNDED NURSING CARE (INCOME)  ,06/04/2017,4182312,4147,720.00,BURTON STREET PROJECT                   ,342774,,CHARITIES & VOLUNTARY ORGANISA
SHEFFIELD CITY COUNCIL        ,COMMUNITIES                   ,42034,PURCHASING LEARNING DISABILITI,9250,INDEPENDENT DAY CARE          ,06/04/2017,4182312,4147,720.00,BURTON STREET PROJECT                   ,342774,,CHARITIES & VOLUNTARY ORGANISA
SHEFFIELD CITY COUNCIL        ,COMMUNITIES                   ,42034,PURCHASING LEARNING DISABILITI,9250,INDEPENDENT DAY CARE          ,06/04/2017,4182315,4150,400.00,BURTON STREET PROJECT                   ,342774,,CHARITIES & VOLUNTARY ORGANISA
SHEFFIELD CITY COUNCIL        ,COMMUNITIES                   ,42034,PURCHASING LEARNING DISABILITI,9250,INDEPENDENT DAY CARE          ,06/04/2017,4182316,4151,900.00,BURTON STREET PROJECT                   ,342774,,CHARITIES & VOLUNTARY ORGANISA
SHEFFIELD CITY COUNCIL        ,COMMUNITIES                   ,42034,PURCHASING LEARNING DISABILITI,9250,INDEPENDENT DAY CARE          ,06/04/2017,4182318,4154,600.00,BURTON STREET PROJECT                   ,342774,,CHARITIES & VOLUNTARY ORGANISA
SHEFFIELD CITY COUNCIL        ,COMMUNITIES                   ,42034,PURCHASING LEARNING DISABILITI,9250,INDEPENDENT DAY CARE          ,06/04/2017,4182319,4155,600.00,BURTON STREET PROJECT                   ,342774,,CHARITIES & VOLUNTARY ORGANISA
SHEFFIELD CITY COUNCIL        ,COMMUNITIES                   ,42034,PURCHASING LEARNING DISABILITI,9250,INDEPENDENT DAY CARE          ,06/04/2017,4182321,4157,"1,290.00",BURTON STREET PROJECT                   ,342774,,CHARITIES & VOLUNTARY ORGANISA
SHEFFIELD CITY COUNCIL        ,COMMUNITIES                   ,42034,PURCHASING LEARNING DISABILITI,9250,INDEPENDENT DAY CARE          ,06/04/2017,4182322,4159,900.00,BURTON STREET PROJECT                   ,342774,,CHARITIES & VOLUNTARY ORGANISA
SHEFFIELD CITY COUNCIL        ,COMMUNITIES                   ,42034,PURCHASING LEARNING DISABILITI,9250,INDEPENDENT DAY CARE          ,06/04/2017,4182323,4160,330.00,BURTON STREET PROJECT                   ,342774,,CHARITIES & VOLUNTARY ORGANISA
SHEFFIELD CITY COUNCIL        ,COMMUNITIES                   ,42034,PURCHASING LEARNING DISABILITI,9250,INDEPENDENT DAY CARE          ,06/04/2017,4182327,4164,"1,548.00",BURTON STREET PROJECT                   ,342774,,CHARITIES & VOLUNTARY ORGANISA
SHEFFIELD CITY COUNCIL        ,COMMUNITIES                   ,42034,PURCHASING LEARNING DISABILITI,9250,INDEPENDENT DAY CARE          ,06/04/2017,4182328,4165,"2,644.00",BURTON STREET PROJECT                   ,342774,,CHARITIES & VOLUNTARY ORGANISA
SHEFFIELD CITY COUNCIL        ,COMMUNITIES                   ,42034,PURCHASING LEARNING DISABILITI,9250,INDEPENDENT DAY CARE          ,06/04/2017,4182329,4166,630.00,BURTON STREET PROJECT                   ,342774,,CHARITIES & VOLUNTARY ORGANISA
SHEFFIELD CITY COUNCIL        ,COMMUNITIES                   ,42034,PURCHASING LEARNING DISABILITI,9250,INDEPENDENT DAY CARE          ,06/04/2017,4182330,4167,900.00,BURTON STREET PROJECT                   ,342774,,CHARITIES & VOLUNTARY ORGANISA
SHEFFIELD CITY COUNCIL        ,COMMUNITIES                   ,42034,PURCHASING LEARNING DISABILITI,9250,INDEPENDENT DAY CARE          ,06/04/2017,4182332,4169,"1,685.00",BURTON STREET PROJECT                   ,342774,,CHARITIES & VOLUNTARY ORGANISA
SHEFFIELD CITY COUNCIL        ,COMMUNITIES                   ,42034,PURCHASING LEARNING DISABILITI,9250,INDEPENDENT DAY CARE          ,06/04/2017,4182333,4170,258.00,BURTON STREET PROJECT                   ,342774,,CHARITIES & VOLUNTARY ORGANISA
SHEFFIELD CITY COUNCIL        ,COMMUNITIES                   ,42034,PURCHASING LEARNING DISABILITI,9250,INDEPENDENT DAY CARE          ,06/04/2017,4182334,4171,480.00,BURTON STREET PROJECT                   ,342774,,CHARITIES & VOLUNTARY ORGANISA
SHEFFIELD CITY COUNCIL        ,COMMUNITIES                   ,42034,PURCHASING LEARNING DISABILITI,9250,INDEPENDENT DAY CARE          ,06/04/2017,4182337,4175,800.00,BURTON STREET PROJECT                   ,342774,,CHARITIES & VOLUNTARY ORGANISA
SHEFFIELD CITY COUNCIL        ,COMMUNITIES                   ,42034,PURCHASING LEARNING DISABILITI,9250,INDEPENDENT DAY CARE          ,06/04/2017,4182338,4177,400.00,BURTON STREET PROJECT                   ,342774,,CHARITIES & VOLUNTARY ORGANISA
SHEFFIELD CITY COUNCIL        ,COMMUNITIES                   ,42034,PURCHASING LEARNING DISABILITI,9250,INDEPENDENT DAY CARE          ,06/04/2017,4182339,4178,300.00,BURTON STREET PROJECT                   ,342774,,CHARITIES & VOLUNTARY ORGANISA
SHEFFIELD CITY COUNCIL        ,COMMUNITIES                   ,42034,PURCHASING LEARNING DISABILITI,9250,INDEPENDENT DAY CARE          ,06/04/2017,4182341,4180,430.00,BURTON STREET PROJECT                   ,342774,,CHARITIES & VOLUNTARY ORGANISA
SHEFFIELD CITY COUNCIL        ,COMMUNITIES                   ,42034,PURCHASING LEARNING DISABILITI,9250,INDEPENDENT DAY CARE          ,06/04/2017,4182342,4181,600.00,BURTON STREET PROJECT                   ,342774,,CHARITIES & VOLUNTARY ORGANISA
SHEFFIELD CITY COUNCIL        ,COMMUNITIES                   ,42034,PURCHASING LEARNING DISABILITI,9250,INDEPENDENT DAY CARE          ,06/04/2017,4182343,4182,600.00,BURTON STREET PROJECT                   ,342774,,CHARITIES & VOLUNTARY ORGANISA
SHEFFIELD CITY COUNCIL        ,COMMUNITIES                   ,42034,PURCHASING LEARNING DISABILITI,9250,INDEPENDENT DAY CARE          ,06/04/2017,4182346,03971A                   ,250.00,BURTON STREET PROJECT                   ,342774,,CHARITIES & VOLUNTARY ORGANISA
SHEFFIELD CITY COUNCIL        ,COMMUNITIES                   ,42034,PURCHASING LEARNING DISABILITI,9250,INDEPENDENT DAY CARE          ,06/04/2017,4182347,4186,430.00,BURTON STREET PROJECT                   ,342774,,CHARITIES & VOLUNTARY ORGANISA
SHEFFIELD CITY COUNCIL        ,COMMUNITIES                   ,42034,PURCHASING LEARNING DISABILITI,9250,INDEPENDENT DAY CARE          ,06/04/2017,4182350,4189,"1,500.00",BURTON STREET PROJECT                   ,342774,,CHARITIES & VOLUNTARY ORGANISA
SHEFFIELD CITY COUNCIL        ,COMMUNITIES                   ,42034,PURCHASING LEARNING DISABILITI,9250,INDEPENDENT DAY CARE          ,06/04/2017,4182351,4190,800.00,BURTON STREET PROJECT                   ,342774,,CHARITIES & VOLUNTARY ORGANISA
SHEFFIELD CITY COUNCIL        ,COMMUNITIES                   ,42034,PURCHASING LEARNING DISABILITI,9250,INDEPENDENT DAY CARE          ,06/04/2017,4182352,4191,540.00,BURTON STREET PROJECT                   ,342774,,CHARITIES & VOLUNTARY ORGANISA
SHEFFIELD CITY COUNCIL        ,COMMUNITIES                   ,42034,PURCHASING LEARNING DISABILITI,9250,INDEPENDENT DAY CARE          ,06/04/2017,4182353,4138,960.00,BURTON STREET PROJECT                   ,342774,,CHARITIES & VOLUNTARY ORGANISA
SHEFFIELD CITY COUNCIL        ,COMMUNITIES                   ,42034,PURCHASING LEARNING DISABILITI,9210,FUNDED NURSING CARE (INCOME)  ,06/04/2017,4182354,4140,258.00,BURTON STREET PROJECT                   ,342774,,CHARITIES & VOLUNTARY ORGANISA
SHEFFIELD CITY COUNCIL        ,COMMUNITIES                   ,42034,PURCHASING LEARNING DISABILITI,9250,INDEPENDENT DAY CARE          ,06/04/2017,4182354,4140,"1,494.00",BURTON STREET PROJECT                   ,342774,,CHARITIES & VOLUNTARY ORGANISA
SHEFFIELD CITY COUNCIL        ,COMMUNITIES                   ,42034,PURCHASING LEARNING DISABILITI,9250,INDEPENDENT DAY CARE          ,06/04/2017,4182355,4141,268.00,BURTON STREET PROJECT                   ,342774,,CHARITIES & VOLUNTARY ORGANISA
SHEFFIELD CITY COUNCIL        ,COMMUNITIES                   ,46039,ADULT SOCIAL CARE PURCHASING  ,9190,CITYWIDE SPOT                 ,06/04/2017,4182356,4145,600.00,BURTON STREET PROJECT                   ,342774,,CHARITIES & VOLUNTARY ORGANISA
SHEFFIELD CITY COUNCIL        ,COMMUNITIES                   ,42034,PURCHASING LEARNING DISABILITI,9190,CITYWIDE SPOT                 ,06/04/2017,4182358,4173,400.00,BURTON STREET PROJECT                   ,342774,,CHARITIES & VOLUNTARY ORGANISA
SHEFFIELD CITY COUNCIL        ,COMMUNITIES                   ,42034,PURCHASING LEARNING DISABILITI,9190,CITYWIDE SPOT                 ,06/04/2017,4182359,4183,400.00,BURTON STREET PROJECT                   ,342774,,CHARITIES & VOLUNTARY ORGANISA
SHEFFIELD CITY COUNCIL        ,COMMUNITIES                   ,42034,PURCHASING LEARNING DISABILITI,9190,CITYWIDE SPOT                 ,06/04/2017,4182363,4177,320.00,UNDER THE STARS                         ,568761,,DISABILITY & SPECIAL NEEDS - S
SHEFFIELD CITY COUNCIL        ,COMMUNITIES                   ,42034,PURCHASING LEARNING DISABILITI,9190,CITYWIDE SPOT                 ,06/04/2017,4182364,4178,320.00,UNDER THE STARS                         ,568761,,DISABILITY & SPECIAL NEEDS - S
SHEFFIELD CITY COUNCIL        ,COMMUNITIES                   ,42034,PURCHASING LEARNING DISABILITI,9190,CITYWIDE SPOT                 ,06/04/2017,4182367,4142,300.00,BURTON STREET PROJECT                   ,342774,,CHARITIES & VOLUNTARY ORGANISA
SHEFFIELD CITY COUNCIL        ,CYPF                          ,39284,INDEPENDENT FOSTER PLACE U16  ,9270,INDEPENDENT FOSTERING         ,06/04/2017,4182285,16309335CR2A             ,264.28,REDACTED PERSONAL DATA,366456,,ADOPTION & FOSTERING          
SHEFFIELD CITY COUNCIL        ,CYPF                          ,39284,INDEPENDENT FOSTER PLACE U16  ,9270,INDEPENDENT FOSTERING         ,06/04/2017,4182286,216309335CR2             ,264.28,REDACTED PERSONAL DATA,366456,,ADOPTION & FOSTERING          
SHEFFIELD CITY COUNCIL        ,CYPF                          ,39284,INDEPENDENT FOSTER PLACE U16  ,9270,INDEPENDENT FOSTERING         ,06/04/2017,4182287,217309335CR2             ,264.28,REDACTED PERSONAL DATA,366456,,ADOPTION & FOSTERING          
SHEFFIELD CITY COUNCIL        ,RESOURCES                     ,1,SCC BALANCE SHEET             ,1780,ERROR SUSPENSE CARE FIRST     ,06/04/2017,4182288,217B309335CR             ,529.00,REDACTED PERSONAL DATA,366456,,ADOPTION & FOSTERING          
SHEFFIELD CITY COUNCIL        ,CYPF                          ,39284,INDEPENDENT FOSTER PLACE U16  ,9270,INDEPENDENT FOSTERING         ,06/04/2017,4182289,22000021613,262.60,REDACTED PERSONAL DATA,328618,,ADOPTION & FOSTERING          
SHEFFIELD CITY COUNCIL        ,CYPF                          ,39284,INDEPENDENT FOSTER PLACE U16  ,9270,INDEPENDENT FOSTERING         ,06/04/2017,4182291,2200021611,262.60,REDACTED PERSONAL DATA,328618,,ADOPTION & FOSTERING          
SHEFFIELD CITY COUNCIL        ,CYPF                          ,39284,INDEPENDENT FOSTER PLACE U16  ,9270,INDEPENDENT FOSTERING         ,06/04/2017,4182292,2200021612,262.60,REDACTED PERSONAL DATA,328618,,ADOPTION & FOSTERING          
SHEFFIELD CITY COUNCIL        ,CYPF                          ,39405,SEMI INDEPENDENT LIVING       ,9270,INDEPENDENT RESIDENTIAL PMENT ,06/04/2017,4182294,15721,"3,200.00",PROGRESSIVE CARE LTD                    ,343548,,CHILDREN'S HOMES              
SHEFFIELD CITY COUNCIL        ,CYPF                          ,39428,INDEPENDENT RES PLACEMENTS U16,9270,INDEPENDENT RESIDENTIAL PMENT ,06/04/2017,4182295,15861,"6,320.00",PROGRESSIVE CARE LTD                    ,343548,,CHILDREN'S HOMES              
SHEFFIELD CITY COUNCIL        ,CYPF                          ,39405,SEMI INDEPENDENT LIVING       ,9270,INDEPENDENT RESIDENTIAL PMENT ,06/04/2017,4182296,15869,"2,200.00",PROGRESSIVE CARE LTD                    ,343548,,CHILDREN'S HOMES              
SHEFFIELD CITY COUNCIL        ,CYPF                          ,39405,SEMI INDEPENDENT LIVING       ,9270,INDEPENDENT RESIDENTIAL PMENT ,06/04/2017,4182297,15870,"2,200.00",PROGRESSIVE CARE LTD                    ,343548,,CHILDREN'S HOMES              
SHEFFIELD CITY COUNCIL        ,RESOURCES                     ,1,SCC BALANCE SHEET             ,1780,ERROR SUSPENSE CARE FIRST     ,06/04/2017,4182298,2112,"4,600.00",QUALITY PROTECTS CHILDREN LTD           ,420011,,CHILDREN'S HOMES              
SHEFFIELD CITY COUNCIL        ,CYPF                          ,39405,SEMI INDEPENDENT LIVING       ,9270,INDEPENDENT RESIDENTIAL PMENT ,06/04/2017,4182299,22994,"1,450.00",NEXT STEP CARE MANAGEMENT LTD           ,586585,,CHILDREN'S HOMES              
SHEFFIELD CITY COUNCIL        ,CYPF                          ,39428,INDEPENDENT RES PLACEMENTS U16,9270,SECURE PLACEMENTS - WELFARE   ,06/04/2017,4182300,3610865042,"21,573.00",HAMPSHIRE COUNTY COUNCIL                ,319199,,LOCAL GOVERNMENT              
SHEFFIELD CITY COUNCIL        ,CYPF                          ,39266,CIN NRTPF                     ,9270,CARELEAVERS ACCOMMODATION     ,06/04/2017,4182301,4469,460.00,EARL MARSHALL GUEST HOUSE LTD           ,391589,,GUEST HOUSES                  
SHEFFIELD CITY COUNCIL        ,CYPF                          ,39405,SEMI INDEPENDENT LIVING       ,9270,INDEPENDENT RESIDENTIAL PMENT ,06/04/2017,4182302,801756887RD              ,269.58,DONCASTER MBC                           ,369105,,LOCAL GOVERNMENT              
SHEFFIELD CITY COUNCIL        ,CYPF                          ,39238,WEST SA - CIN S17             ,8490,TRANSLATN/SIGN/INTERPRET FEES ,06/04/2017,4182306,17-03 056                ,364.03,TH LANGUAGES LIMITED                    ,510015,,TRANSLATORS & INTERPRETERS    
SHEFFIELD CITY COUNCIL        ,CYPF                          ,39006,UASC/ASYLUM 16-17             ,8490,TRANSLATN/SIGN/INTERPRET FEES ,06/04/2017,4182306,17-03 056                ,336.40,TH LANGUAGES LIMITED                    ,510015,,TRANSLATORS & INTERPRETERS    
SHEFFIELD CITY COUNCIL        ,CYPF                          ,39213,EAST SA - CIN S17             ,8490,TRANSLATN/SIGN/INTERPRET FEES ,06/04/2017,4182306,17-03 056                ,366.72,TH LANGUAGES LIMITED                    ,510015,,TRANSLATORS & INTERPRETERS    
SHEFFIELD CITY COUNCIL        ,CYPF                          ,39084,NORTH SA - CIN S17            ,8490,TRANSLATN/SIGN/INTERPRET FEES ,06/04/2017,4182306,17-03 056                ,"1,720.33",TH LANGUAGES LIMITED                    ,510015,,TRANSLATORS & INTERPRETERS    
SHEFFIELD CITY COUNCIL        ,CYPF                          ,39147,PREVENTION & SUPPORT - CDT    ,8490,TRANSLATN/SIGN/INTERPRET FEES ,06/04/2017,4182306,17-03 056                ,393.80,TH LANGUAGES LIMITED                    ,510015,,TRANSLATORS & INTERPRETERS    
SHEFFIELD CITY COUNCIL        ,CYPF                          ,39147,PREVENTION & SUPPORT - CDT    ,9270,CARELEAVERS INDEPENDENT LIVING,06/04/2017,4182307,8029,"3,739.67",REDACTED PERSONAL DATA,518159,,HOME CARE SERVICES            
SHEFFIELD CITY COUNCIL        ,COMMUNITIES                   ,49661, LUNCH CLUB GRANT             ,8180,GRANTS                        ,06/04/2017,4182592,MPA20170604263 1         ,663.00,BANNER CROSS LUNCHEON & FRIENDSHIP CLUB ,326250,,PLACES OF WORSHIP             
SHEFFIELD CITY COUNCIL        ,COMMUNITIES                   ,49661, LUNCH CLUB GRANT             ,8180,GRANTS                        ,06/04/2017,4182593,MPA20170604263 10        ,752.69,ST WILLIAMS LUNCH CLUB                  ,295226,,CHARITIES & VOLUNTARY ORGANISA
SHEFFIELD CITY COUNCIL        ,COMMUNITIES                   ,49661, LUNCH CLUB GRANT             ,8180,GRANTS                        ,06/04/2017,4182595,MPA20170604263 12        ,572.69,ADLINGTON LUNCHEON CLUB                 ,295201,,CHARITIES & VOLUNTARY ORGANISA
SHEFFIELD CITY COUNCIL        ,COMMUNITIES                   ,49661, LUNCH CLUB GRANT             ,8180,GRANTS                        ,06/04/2017,4182596,MPA20170604263 13        ,990.69,DARNALL LUNCH CLUB                      ,295216,,CHARITIES & VOLUNTARY ORGANISA
SHEFFIELD CITY COUNCIL        ,COMMUNITIES                   ,49661, LUNCH CLUB GRANT             ,8180,GRANTS                        ,06/04/2017,4182597,MPA20170604263 14        ,272.69,DORE OPEN DOOR LUNCH CLUB               ,295220,,CHARITIES & VOLUNTARY ORGANISA
SHEFFIELD CITY COUNCIL        ,COMMUNITIES                   ,49661, LUNCH CLUB GRANT             ,8180,GRANTS                        ,06/04/2017,4182598,MPA20170604263 15        ,831.00,THE LIMES LUNCHEON CLUB                 ,295165,,CHARITIES & VOLUNTARY ORGANISA
SHEFFIELD CITY COUNCIL        ,COMMUNITIES                   ,49661, LUNCH CLUB GRANT             ,8180,GRANTS                        ,06/04/2017,4182601,MPA20170604263 18        ,410.69,MICHAEL CHURCH LOWEDGES THURS LUNCH CLUB,295189,,CHARITIES & VOLUNTARY ORGANISA
SHEFFIELD CITY COUNCIL        ,COMMUNITIES                   ,49661, LUNCH CLUB GRANT             ,8180,GRANTS                        ,06/04/2017,4182602,MPA20170604263 19        ,757.69,ST JOHN'S ABBEYDALE LUNCH CLUB          ,385324,,CHARITIES & VOLUNTARY ORGANISA
SHEFFIELD CITY COUNCIL        ,COMMUNITIES                   ,49661, LUNCH CLUB GRANT             ,8180,GRANTS                        ,06/04/2017,4182603,MPA20170604263 2         ,511.69,CHRIST CHURCH PITSMOOR LUNCH CLUB       ,321910,,CHARITIES & VOLUNTARY ORGANISA
SHEFFIELD CITY COUNCIL        ,COMMUNITIES                   ,49661, LUNCH CLUB GRANT             ,8180,GRANTS                        ,06/04/2017,4182604,MPA20170604263 20        ,730.69,SHEFFIELD CHURCH OF THE NAZARENE        ,295190,,CHARITIES & VOLUNTARY ORGANISA
SHEFFIELD CITY COUNCIL        ,COMMUNITIES                   ,49661, LUNCH CLUB GRANT             ,8180,GRANTS                        ,06/04/2017,4182605,MPA20170604263 21        ,650.00,PITSMOOR LUNCH CLUB                     ,295194,,CHARITIES & VOLUNTARY ORGANISA
SHEFFIELD CITY COUNCIL        ,COMMUNITIES                   ,49661, LUNCH CLUB GRANT             ,8180,GRANTS                        ,06/04/2017,4182606,MPA20170604263 22        ,"1,087.00",THE SALVATION ARMY SHEFFIELD CASTLE     ,327783,,"HOUSING ASSOCIATIONS, SOCIETIE"
SHEFFIELD CITY COUNCIL        ,COMMUNITIES                   ,49661, LUNCH CLUB GRANT             ,8180,GRANTS                        ,06/04/2017,4182607,MPA20170604263 23        ,258.00,DORE METHODIST LUNCH CLUB               ,295219,,CHARITIES & VOLUNTARY ORGANISA
SHEFFIELD CITY COUNCIL        ,COMMUNITIES                   ,49661, LUNCH CLUB GRANT             ,8180,GRANTS                        ,06/04/2017,4182608,MPA20170604263 24        ,501.00,WADSLEY CHURCH LUNCH CLUB               ,295167,,CHARITIES & VOLUNTARY ORGANISA
SHEFFIELD CITY COUNCIL        ,COMMUNITIES                   ,49661, LUNCH CLUB GRANT             ,8180,GRANTS                        ,06/04/2017,4182609,MPA20170604263 25        ,"1,214.00",SHIREGREEN UNITED REFORMED CHURCH       ,295203,,PLACES OF WORSHIP             
SHEFFIELD CITY COUNCIL        ,COMMUNITIES                   ,49661, LUNCH CLUB GRANT             ,8180,GRANTS                        ,06/04/2017,4182610,MPA20170604263 26        ,"1,060.00",ST TIMOTHY'S LUNCH CLUB                 ,295163,,CHARITIES & VOLUNTARY ORGANISA
SHEFFIELD CITY COUNCIL        ,COMMUNITIES                   ,49661, LUNCH CLUB GRANT             ,8180,GRANTS                        ,06/04/2017,4182611,MPA20170604263 27        ,"1,285.69",FRIDAY FOLK LUNCH CLUB                  ,384447,,CHARITIES & VOLUNTARY ORGANISA
SHEFFIELD CITY COUNCIL        ,COMMUNITIES                   ,49661, LUNCH CLUB GRANT             ,8180,GRANTS                        ,06/04/2017,4182612,MPA20170604263 28        ,885.00,ST LEONARD'S LUNCH CLUB                 ,296991,,CHARITIES & VOLUNTARY ORGANISA
SHEFFIELD CITY COUNCIL        ,COMMUNITIES                   ,49661, LUNCH CLUB GRANT             ,8180,GRANTS                        ,06/04/2017,4182613,MPA20170604263 29        ,905.69,ST MARYS HANDSWORTH LUNCH CLUB          ,300780,,CHARITIES & VOLUNTARY ORGANISA
SHEFFIELD CITY COUNCIL        ,COMMUNITIES                   ,49661, LUNCH CLUB GRANT             ,8180,GRANTS                        ,06/04/2017,4182614,MPA20170604263 3         ,860.69,CROSSPOOL LUNCH CLUB                    ,321911,,CHARITIES & VOLUNTARY ORGANISA
SHEFFIELD CITY COUNCIL        ,COMMUNITIES                   ,49661, LUNCH CLUB GRANT             ,8180,GRANTS                        ,06/04/2017,4182615,MPA20170604263 30        ,818.69,WILLIAM TEMPLE LUNCH CLUB               ,299806,,CHARITIES & VOLUNTARY ORGANISA
SHEFFIELD CITY COUNCIL        ,COMMUNITIES                   ,49661, LUNCH CLUB GRANT             ,8180,GRANTS                        ,06/04/2017,4182616,MPA20170604263 31        ,"1,148.00",SHEFFIELD NORTH LIVE AT HOME            ,327125,,CHARITIES & VOLUNTARY ORGANISA
SHEFFIELD CITY COUNCIL        ,COMMUNITIES                   ,49661, LUNCH CLUB GRANT             ,8180,GRANTS                        ,06/04/2017,4182617,MPA20170604263 32        ,403.69,ST MARKS LUNCH & FRIENDSHIP CLUB        ,301346,,PLACES OF WORSHIP             
SHEFFIELD CITY COUNCIL        ,COMMUNITIES                   ,49661, LUNCH CLUB GRANT             ,8180,GRANTS                        ,06/04/2017,4182618,MPA20170604263 33        ,269.69,LOWEDGES LUNCH CLUB                     ,353522,,CHARITIES & VOLUNTARY ORGANISA
SHEFFIELD CITY COUNCIL        ,COMMUNITIES                   ,49661, LUNCH CLUB GRANT             ,8180,GRANTS                        ,06/04/2017,4182619,MPA20170604263 34        ,586.69,WESLEY HALL LUNCH CLUB                  ,511866,,CHARITIES & VOLUNTARY ORGANISA
SHEFFIELD CITY COUNCIL        ,COMMUNITIES                   ,49661, LUNCH CLUB GRANT             ,8180,GRANTS                        ,06/04/2017,4182620,MPA20170604263 35        ,878.00,MOSBOROUGH LUNCH & SOCIAL CLUB          ,510333,,"CLUBS & ASSOCIATIONS - SOCIAL,"
SHEFFIELD CITY COUNCIL        ,COMMUNITIES                   ,49661, LUNCH CLUB GRANT             ,8180,GRANTS                        ,06/04/2017,4182621,MPA20170604263 36        ,627.00,VALLEY LUNCH CLUB                       ,514281,,CHARITIES & VOLUNTARY ORGANISA
SHEFFIELD CITY COUNCIL        ,COMMUNITIES                   ,49661, LUNCH CLUB GRANT             ,8180,GRANTS                        ,06/04/2017,4182622,MPA20170604263 37        ,895.69,THE THURSDAY CLUB                       ,451641,,CHARITIES & VOLUNTARY ORGANISA
SHEFFIELD CITY COUNCIL        ,COMMUNITIES                   ,49661, LUNCH CLUB GRANT             ,8180,GRANTS                        ,06/04/2017,4182623,MPA20170604263 38        ,259.69,CHURCH ON THE CORNER                    ,362765,,PLACES OF WORSHIP             
SHEFFIELD CITY COUNCIL        ,COMMUNITIES                   ,49661, LUNCH CLUB GRANT             ,8180,GRANTS                        ,06/04/2017,4182624,MPA20170604263 39        ,530.00,MANOR LODGE LUNCHEON CLUB               ,545135,,CHARITIES & VOLUNTARY ORGANISA
